{"text_format":"1","workbook":"xlsx","n_sheets":14,"sheets":["Hoja2","lista de selecciones","Instructivo Evaluación","1.2.3 Concertación","4. Evaluación Semestral (1)","5. Evaluación Semestral (2)","6. Consolidado Anual","Instructivo CMI","7. Compromisos Mejoramiento I","8. Evaluación Extraordinaria FP","9. Evaluación Eventual (Sem I)","10. Evaluación Eventual Sem II","11. Evaluación Inferior un Año","12. Evaluación Periodo Prueba"],"not_rendered":{"charts":0,"images":1,"macros":1,"external_links":3,"defined_names":66,"comments":9,"pivot_tables":0},"unopened":[],"bounds":{"document_bytes":16777216,"sheet_cells":100000,"rows_first":2000,"rows_last":500,"rows_between":2000,"halvings":0,"cell_chars":16384,"cell_head_chars":4096},"cells_cut":0,"cells_raw":0,"read":"whole","date_system":"1900"}

{"sheet":"Hoja2","index":0,"n_rows":24,"n_cols":4,"rows_kept":24,"cut":false,"hidden":true,"merged":[[18,1,23,1],[1,1,5,1],[6,1,9,1],[10,1,11,1],[12,1,14,1],[15,1,17,1]]}
[]
[null,"ASESOR","Confiabilídad técnica","* Mantiene actualizados sus conocimientos para apoyar la gestión de la entidad\n* Conoce, maneja y sabe aplicar los conocimientos para el logro de resultados\n* Emite conceptos técnicos u orientaciones claros, precisos, pertinentes y ajustados a los lineamientos normativos y organizacionales\n* Genera conocimientos técnicos de interés para la entidad, los cuales son aprehendidos y utilizados en el actuar de la organización"]
[null,null,"Creatividad e innovación","* Apoya la generación de nuevas ideas y conceptos para el mejoramiento de la entidad\n* Prevé situaciones y alternativas de solución que orienten la toma de decisiones de la alta dirección\n* Reconoce y hace viables las oportunidades y las comparte con sus jefes para contribuir al logro de objetivos y metas institucionales\n* Adelanta estudios o investigaciones y los documenta, para contribuir a la dinámica de la entidad y su competitividad"]
[null,null,"Iniciativa","* Prevé situaciones y alternativas de solución que orientan la toma de decisiones de la alta dirección\n* Enfrenta los problemas y propone acciones concretas para solucionarlos\n* Reconoce y hace viables las oportunidades"]
[null,null,"Construcción de relaciones","* Establece y mantiene relaciones cordiales y recíprocas con redes o grupos de personas internas y externas de la organización que faciliten la consecución de los objetivos institucionales\n* Utiliza contactos para conseguir objetivos\n* Comparte información para establecer lazos\n* Interactúa con otros de un modo efectivo y adecuado"]
[null,null,"Conocimiento del entorno","* Se informa permanentemente sobre políticas gubernamentales, problemas y demandas del entorno\n* Comprende el entorno organizacional que enmarca las situaciones objeto de asesoría y lo toma como referente\n* Identifica las fuerzas políticas que afectan la organización y las posibles alianzas y las tiene en cuenta al emitir sus conceptos técnicos\n* Orienta el desarrollo de estrategias que concilien las fuerzas políticas y las alianzas en pro de la organización"]
[null,"PROFESIONAL \n","Aporte técnico profesional","* Aporta soluciones alternativas en lo que refiere a sus saberes específicos\n* Informa su experiencia específica en el proceso de toma de decisiones que involucran aspectos de su especialidad \n* Anticipa problemas previsibles que advierte en su carácter de especialista\n* Asume la interdisciplinariedad aprendiendo puntos de vista diversos y alternativos al propio, para analizar y ponderar soluciones posibles."]
[null,null,"Comunicación efectiva ","* Utiliza canales de comunicación, en su diversa expresión, con claridad, precisión y tono agradable para el receptor\n* Redacta textos, informes, mensajes, cuadros o gráficas con claridad en la expresión para hacer efectiva y sencilla la comprensión \n* Mantiene escucha y lectura atenta a efectos de comprender mejor los mensajes o información recibida\n* Da respuesta a cada comunicación recibida de modo inmediato."]
[null,null,"Gestión de procedimientos","* Ejecuta sus tareas con los criterios de calidad establecidos\n* Revisa procedimientos e instrumentos para mejorar tiempos y resultados y para anticipar soluciones a problemas\n* Desarrolla las actividades de acuerdo con las pautas y protocolos definidos "]
[null,null,"Instrumentación de decisiones","* Discrimina con efectividad entre las decisiones que deben ser elevadas a un superior, socializadas al equipo de trabajo o pertenecen a la esfera individual de trabajo\n* Adopta decisiones sobre ellas con base en información válida y rigurosa\n* Maneja criterios objetivos para analizar la materia a decidir con las personas involucradas\n* Asume los efectos de sus decisiones y también de las adoptadas por el equipo de trabajo al que pertenece"]
[null,"PROFESIONAL CON PERSONAL A CARGO","Dirección y Desarrollo de Personal","* Identifica, ubica y desarrolla el talento humano a su cargo\n* Orienta la identificación de necesidades de formación y capacitación y apoya la ejecución de las acciones propuestas para satisfacerlas\n* Hace uso de las habilidades y recursos del talento humano a su cargo, para alcanzar las metas y los estándares de productividad\n* Establece espacios regulares de retroalimentación y reconocimiento del buen desempeño en pro del mejoramiento continuo de las personas y la organización"]
[null,null,"Toma de decisiones","* Elige con oportunidad, entre muchas alternativas, los proyectos a realizar, estableciendo responsabilidades precisas con base en las prioridades de la entidad\n* Toma en cuenta la opinión técnica de sus colaboradores al analizar las alternativas existentes para tomar una decisión y desarrollarla\n* Decide en situaciones de alta complejidad e incertidumbre teniendo en consideración la consecución de logros y objetivos de la entidad\n* Efectúa los cambios que considera necesarios para solucionar los problemas detectados o atender situaciones particulares y se hace responsable de la decisión tomada"]
[null,"Técnico","Confiabilidad Técnica","* Aplica el conocimiento técnico en el desarrollo de sus responsabilidades\n* Mantiene actualizado su conocimiento técnico para apoyar su gestión\n* Resuelve problemas utilizando conocimientos técnicos de su especialidad, para apoyar el cumplimiento de metas y objetivos institucionales\n* Emite conceptos técnicos, juicios o propuestas claros, precisos, pertinentes y ajustados a los lineamientos normativos y organizacionales"]
[null,null,"Disciplina","* Recibe instrucciones y desarrolla actividades acorde con las mismas\n* Acepta la supervisión constante\n* Revisa de manera permanente los cambio en los procesos"]
[null,null,"Responsabilidad","* Utiliza el tiempo de manera eficiente\n* Maneja adecuadamente los implementos requeridos para la ejecución de su tarea\n* Realiza sus tareas con criterios de productividad, calidad, eficiencia y efectividad\n* Cumple con eficiencia la tarea encomendada"]
[null,"ASISTENCIAL","Manejo de la información ","* Maneja con responsabilidad las informaciones personales e institucionales de que dispone\n* Evade temas que indagan sobre información confidencial\n* Recoge solo información imprescindible para el desarrollo de la tarea\n* Organiza y custodia de forma adecuada la información a su cuidado, teniendo en cuenta las normas legales y de la organización\n* No hace pública la información laboral o de las personas que pueda afectar la organización o las personas\n* Transmite información oportuna y objetiva"]
[null,null,"Relaciones interpersonales","* Escucha con interés y capta las necesidades de los demás\n* Transmite la información de forma fidedigna evitando situaciones que puedan generar deterioro en el ambiente laboral"]
[null,null,"Colaboración","* Toma la iniciativa en el contacto con usuarios para dar avisos, citas o respuestas, utilizando un lenguaje claro para los destinatarios, especialmente con las personas que integran minorías con mayor vulnerabilidad social o con diferencias funcionales\n* Articula sus actuaciones con las de los demás\n* Cumple los compromisos adquiridos\n* Facilita la labor de sus superiores y compañeros de trabajo"]
[null,"COMPETENCIAS COMUNES","Aprendizaje continuo","* Mantiene sus competencias actualizadas en función de los cambios que exige la administración pública en la prestación de un óptimo servicio\n* Gestiona sus propias fuentes de información confiable y/o participa de espacios informativos y de capacitación\n* Comparte sus saberes y habilidades con sus compañeros de trabajo, y aprende de sus colegas habilidades diferenciales, que le permiten nivelar sus conocimientos en flujos informales de inter-aprendizaje"]
[null,null,"Orientación a resultados ","* Asume la responsabilidad por sus resultados\n* Trabaja con base en objetivos claramente establecidos y realistas\n* Diseña y utiliza indicadores para medir y comprobar los resultados obtenidos\n* Adopta medidas para minimizar riesgos\n* Plantea estrategias para alcanzar o superar los resultados esperados\n* Se fija metas y obtiene los resultados institucionales esperados\n* Cumple con oportunidad las funciones de acuerdo con los estándares, objetivos y tiempos establecidos por la entidad\n* Gestiona recursos para mejorar la productividad y toma medidas necesarias para minimizar los riesgos\n* Aporta elementos para la consecución de resultados enmarcando sus productos y /o servicios dentro de las normas que rigen a la entidad\n* Evalúa de forma regular el grado de consecución de los objetivos"]
[null,null,"Orientación al usuario y al ciudadano","* Valora y atiende las necesidades y peticiones de los usuarios y de los ciudadanos de forma oportuna\n* Reconoce la interdependencia entre su trabajo y el de otros\n* Establece mecanismos para conocer las necesidades e inquietudes de los usuarios y ciudadanos\n* Incorpora las necesidades de usuarios y ciudadanos en los proyectos institucionales, teniendo en cuenta la visión de servicio a corto, mediano y largo plazo\n* Aplica los conceptos de no estigmatización y no discriminación y genera espacios y lenguaje incluyente\n* Escucha activamente e informa con veracidad al usuario o ciudadano"]
[null,null,"Compromiso con la organización","* Promueve el cumplimiento de las metas de la\norganización y respeta sus normas\n* Antepone las necesidades de la organización a sus propias necesidades\n* Apoya a la organización en situaciones difíciles\n*  Demuestra sentido de pertenencia en todas sus actuaciones\n* Toma la iniciativa de colaborar con sus compañeros y con otras áreas cuando se requiere, sin descuidar sus tareas"]
[null,null,"Trabajo en equipo","* Cumple los compromisos que adquiere con el equipo\n* Respeta la diversidad de criterios y opiniones de los miembros del equipo\n* Asume su responsabilidad como miembro de un equipo de trabajo y se enfoca en contribuir con el compromiso y la motivación de sus miembros\n* Planifica las propias acciones teniendo en cuenta su repercusión en la consecución de los objetivos grupales\n* Establece una comunicación directa con los miembros del equipo que permite compartir información e ideas en condiciones de respeto y cordialidad\n* Integra a los nuevos miembros y facilita su proceso de reconocimiento y apropiación de las actividades a cargo del equipo"]
[null,null,"Adaptación al cambio","* Acepta y se adapta fácilmente a las nuevas situaciones\n* Responde al cambio con flexibilidad\n* Apoya a la entidad en nuevas decisiones y coopera activamente en la implementación de nuevos objetivos, formas de trabajo y procedimientos\n* Promueve al grupo para que se adapten a las nuevas condiciones"]

{"sheet":"lista de selecciones","index":1,"n_rows":200,"n_cols":24,"rows_kept":200,"cut":false,"hidden":true,"merged":[[132,0,132,1],[49,8,52,8],[34,7,41,7],[0,7,18,7],[0,0,1,0],[0,1,0,4],[19,0,19,1],[0,8,3,8],[4,8,7,8],[8,8,10,8],[11,8,14,8],[15,8,18,8],[19,8,22,8],[51,0,54,0],[42,7,52,7],[53,8,58,8],[59,8,60,8],[61,8,64,8],[53,7,64,7],[42,8,45,8],[46,8,48,8],[27,8,29,8],[24,0,33,0],[34,0,39,0],[40,0,44,0],[45,0,50,0],[23,8,26,8],[30,8,33,8],[19,7,33,7],[34,8,37,8],[38,8,41,8],[21,0,23,0]]}
["Competencias Comunes ","Competencias por nivel jerarquico",null,null,null,null,"Niveles ","ASESOR","Confiabilídad_técnica","Mantiene actualizados sus conocimientos para apoyar la gestión de la entidad"]
[null,"Asesor","Profesional ","Profesional_con_Personal_a_Cargo","Técnico ","Asistencial","Profesional ",null,null,"Conoce, maneja y sabe aplicar los conocimientos para el logro de resultados"]
["Aprendizaje continuo","Confiabilídad técnica","Aporte técnico profesional","Dirección y Desarrollo de Personal","Confiabilidad Técnica","Manejo de la información ","Profesional_con_personal_a_cargo",null,null,"Emite conceptos técnicos u orientaciones claros, precisos, pertinentes y ajustados a los lineamientos normativos y organizacionales"]
["Orientación a resultados ","Creatividad e innovación","Comunicación efectiva","Toma de decisiones","Disciplina","Relaciones interpersonales","Técnico ",null,null,"Genera conocimientos técnicos de interés para la entidad, los cuales son aprehendidos y utilizados en el actuar de la organización"]
["Orientación al usuario y al ciudadano","Iniciativa","Gestión de procedimientos","Aprendizaje continuo","Responsabilidad","Colaboración","Asistencial",null,"Creatividad_e_innovación","Apoya la generación de nuevas ideas y conceptos para el mejoramiento de la entidad"]
["Compromiso con la organización","Construcción de relaciones","Instrumentación de decisiones","Orientación a resultados ","Aprendizaje continuo","Aprendizaje continuo",null,null,null,"Prevé situaciones y alternativas de solución que orienten la toma de decisiones de la alta dirección"]
["Trabajo en equipo","Conocimiento del entorno","Aprendizaje continuo","Orientación al usuario y al ciudadano","Orientación a resultados ","Orientación a resultados ",null,null,null,"Reconoce y hace viables las oportunidades y las comparte con sus jefes para contribuir al logro de objetivos y metas institucionales"]
["Adaptación al cambio","Aprendizaje continuo","Orientación a resultados ","Compromiso con la organización","Orientación al usuario y al ciudadano","Orientación al usuario y al ciudadano","Orientación a resultados",null,null,"Adelanta estudios o investigaciones y los documenta, para contribuir a la dinámica de la entidad y su competitividad"]
[null,"Orientación a resultados ","Orientación al usuario y al ciudadano","Trabajo en equipo","Compromiso con la organización","Compromiso con la organización","Orientación al usuario y al ciudadano",null,"Iniciativa","Prevé situaciones y alternativas de solución que orientan la toma de decisiones de la alta dirección"]
[null,"Orientación al usuario y al ciudadano","Compromiso con la organización","Adaptación al cambio","Trabajo en equipo","Trabajo en equipo",null,null,null,"Enfrenta los problemas y propone acciones concretas para solucionarlos"]
[null,"Compromiso con la organización","Trabajo en equipo",null,"Adaptación al cambio","Adaptación al cambio",null,null,null,"Reconoce y hace viables las oportunidades"]
[null,"Trabajo en equipo","Adaptación al cambio",null,null,null,"Transparencia",null,"Construcción_de_relaciones","Establece y mantiene relaciones cordiales y recíprocas con redes o grupos de personas internas y externas de la organización que faciliten la consecución de los objetivos institucionales"]
[null,"Adaptación al cambio",null,null,null,null,"Compromiso con la organización",null,null,"Utiliza contactos para conseguir objetivos"]
[null,null,null,null,null,null,null,null,null,"Comparte información para establecer lazos"]
[null,null,null,null,null,null,null,null,null,"Interactúa con otros de un modo efectivo y adecuado"]
[null,null,null,null,null,null,null,null,"Conocimiento_del_entorno","Se informa permanentemente sobre políticas gubernamentales, problemas y demandas del entorno"]
[null,null,null,null,null,null,null,null,null,"Comprende el entorno organizacional que enmarca las situaciones objeto de asesoría y lo toma como referente"]
[null,null,null,null,null,null,null,null,null,"Identifica las fuerzas políticas que afectan la organización y las posibles alianzas y las tiene en cuenta al emitir sus conceptos técnicos"]
[null,null,null,null,null,null,null,null,null,"Orienta el desarrollo de estrategias que concilien las fuerzas políticas y las alianzas en pro de la organización"]
["Competencias comunes ",null,null,null,null,null,null,"PROFESIONAL \n","Aporte_técnico_profesional","Aporta soluciones alternativas en lo que refiere a sus saberes específicos"]
["COMPETENCIAS","CONDUCTAS ASOCIADAS",null,null,null,null,null,null,null,"Informa su experiencia específica en el proceso de toma de decisiones que involucran aspectos de su especialidad "]
["Aprendizaje continuo","Mantiene sus competencias actualizadas en función de los cambios que exige la administración pública en la prestación de un óptimo servicio",null,null,null,null,null,null,null,"Anticipa problemas previsibles que advierte en su carácter de especialista"]
[null,"Gestiona sus propias fuentes de información confiable y/o participa de espacios informativos y de capacitación",null,null,null,null,null,null,null,"Asume la interdisciplinariedad aprendiendo puntos de vista diversos y alternativos al propio, para analizar y ponderar soluciones posibles."]
[null,"Comparte sus saberes y habilidades con sus compañeros de trabajo, y aprende de sus colegas habilidades diferenciales, que le permiten nivelar sus conocimientos en flujos informales de inter-aprendizaje",null,null,null,null,null,null,"Comunicación_efectiva ","Utiliza canales de comunicación, en su diversa expresión, con claridad, precisión y tono agradable para el receptor"]
["Orientación a resultados ","Asume la responsabilidad por sus resultados",null,null,null,null,null,null,null,"Redacta textos, informes, mensajes, cuadros o gráficas con claridad en la expresión para hacer efectiva y sencilla la comprensión "]
[null,"Trabaja con base en objetivos claramente establecidos y realistas",null,null,null,null,null,null,null,"Mantiene escucha y lectura atenta a efectos de comprender mejor los mensajes o información recibida"]
[null,"Diseña y utiliza indicadores para medir y comprobar los resultados obtenidos",null,null,null,null,null,null,null,"Da respuesta a cada comunicación recibida de modo inmediato."]
[null,"Adopta medidas para minimizar riesgos",null,null,null,null,null,null,"Gestión_de_procedimientos","Ejecuta sus tareas con los criterios de calidad establecidos"]
[null,"Plantea estrategias para alcanzar o superar los resultados esperados",null,null,null,null,null,null,null,"Revisa procedimientos e instrumentos para mejorar tiempos y resultados y para anticipar soluciones a problemas"]
[null,"Se fija metas y obtiene los resultados institucionales esperados",null,null,null,null,null,null,null,"Desarrolla las actividades de acuerdo con las pautas y protocolos definidos "]
[null,"Cumple con oportunidad las funciones de acuerdo con los estándares, objetivos y tiempos establecidos por la entidad",null,null,null,null,null,null,"Instrumentación_de_decisiones","Discrimina con efectividad entre las decisiones que deben ser elevadas a un superior, socializadas al equipo de trabajo o pertenecen a la esfera individual de trabajo"]
[null,"Gestiona recursos para mejorar la productividad y toma medidas necesarias para minimizar los riesgos",null,null,null,null,null,null,null,"Adopta decisiones sobre ellas con base en información válida y rigurosa"]
[null,"Aporta elementos para la consecución de resultados enmarcando sus productos y /o servicios dentro de las normas que rigen a la entidad",null,null,null,null,null,null,null,"Maneja criterios objetivos para analizar la materia a decidir con las personas involucradas"]
[null,"Evalúa de forma regular el grado de consecución de los objetivos",null,null,null,null,null,null,null,"Asume los efectos de sus decisiones y también de las adoptadas por el equipo de trabajo al que pertenece"]
["Orientación al usuario y al ciudadano","Valora y atiende las necesidades y peticiones de los usuarios y de los ciudadanos de forma oportuna",null,null,null,null,null,"PROFESIONAL CON PERSONAL A CARGO","Dirección_y_Desarrollo_de_Personal","Identifica, ubica y desarrolla el talento humano a su cargo"]
[null,"Reconoce la interdependencia entre su trabajo y el de otros",null,null,null,null,null,null,null,"Orienta la identificación de necesidades de formación y capacitación y apoya la ejecución de las acciones propuestas para satisfacerlas"]
[null,"Establece mecanismos para conocer las necesidades e inquietudes de los usuarios y ciudadanos",null,null,null,null,null,null,null,"Hace uso de las habilidades y recursos del talento humano a su cargo, para alcanzar las metas y los estándares de productividad"]
[null,"Incorpora las necesidades de usuarios y ciudadanos en los proyectos institucionales, teniendo en cuenta la visión de servicio a corto, mediano y largo plazo",null,null,null,null,null,null,null,"Establece espacios regulares de retroalimentación y reconocimiento del buen desempeño en pro del mejoramiento continuo de las personas y la organización"]
[null,"Aplica los conceptos de no estigmatización y no discriminación y genera espacios y lenguaje incluyente",null,null,null,null,null,null,"Toma_de_decisiones","Elige con oportunidad, entre muchas alternativas, los proyectos a realizar, estableciendo responsabilidades precisas con base en las prioridades de la entidad"]
[null,"Escucha activamente e informa con veracidad al usuario o ciudadano",null,null,null,null,null,null,null,"Toma en cuenta la opinión técnica de sus colaboradores al analizar las alternativas existentes para tomar una decisión y desarrollarla"]
["Compromiso con la organización","Promueve el cumplimiento de las metas de la\norganización y respeta sus normas",null,null,null,null,null,null,null,"Decide en situaciones de alta complejidad e incertidumbre teniendo en consideración la consecución de logros y objetivos de la entidad"]
[null,"Antepone las necesidades de la organización a sus propias necesidades",null,null,null,null,null,null,null,"Efectúa los cambios que considera necesarios para solucionar los problemas detectados o atender situaciones particulares y se hace responsable de la decisión tomada"]
[null,"Apoya a la organización en situaciones difíciles",null,null,null,null,null,"Técnico","Confiabilidad_Técnica","Aplica el conocimiento técnico en el desarrollo de sus responsabilidades"]
[null,"Demuestra sentido de pertenencia en todas sus actuaciones",null,null,null,null,null,null,null,"Mantiene actualizado su conocimiento técnico para apoyar su gestión"]
[null,"Toma la iniciativa de colaborar con sus compañeros y con otras áreas cuando se requiere, sin descuidar sus tareas",null,null,null,null,null,null,null,"Resuelve problemas utilizando conocimientos técnicos de su especialidad, para apoyar el cumplimiento de metas y objetivos institucionales"]
["Trabajo en equipo","Cumple los compromisos que adquiere con el equipo",null,null,null,null,null,null,null,"Emite conceptos técnicos, juicios o propuestas claros, precisos, pertinentes y ajustados a los lineamientos normativos y organizacionales"]
[null,"Respeta la diversidad de criterios y opiniones de los miembros del equipo",null,null,null,null,null,null,"Disciplina","Recibe instrucciones y desarrolla actividades acorde con las mismas"]
[null,"Asume su responsabilidad como miembro de un equipo de trabajo y se enfoca en contribuir con el compromiso y la motivación de sus miembros",null,null,null,null,null,null,null,"Acepta la supervisión constante"]
[null,"Planifica las propias acciones teniendo en cuenta su repercusión en la consecución de los objetivos grupales",null,null,null,null,null,null,null,"Revisa de manera permanente los cambio en los procesos"]
[null,"Establece una comunicación directa con los miembros del equipo que permite compartir información e ideas en condiciones de respeto y cordialidad",null,null,null,null,null,null,"Responsabilidad","Utiliza el tiempo de manera eficiente"]
[null,"Integra a los nuevos miembros y facilita su proceso de reconocimiento y apropiación de las actividades a cargo del equipo",null,null,null,null,null,null,null,"Maneja adecuadamente los implementos requeridos para la ejecución de su tarea"]
["Adaptación al cambio","Acepta y se adapta fácilmente a las nuevas situaciones",null,null,null,null,null,null,null,"Realiza sus tareas con criterios de productividad, calidad, eficiencia y efectividad"]
[null,"Responde al cambio con flexibilidad",null,null,null,null,null,null,null,"Cumple con eficiencia la tarea encomendada"]
[null,"Apoya a la entidad en nuevas decisiones y coopera activamente en la implementación de nuevos objetivos, formas de trabajo y procedimientos",null,null,null,null,null,"ASISTENCIAL","Manejo_de_la_información ","Maneja con responsabilidad las informaciones personales e institucionales de que dispone"]
[null,"Promueve al grupo para que se adapten a las nuevas condiciones",null,null,null,null,null,null,null,"Evade temas que indagan sobre información confidencial"]
[null,null,null,null,null,null,null,null,null,"Recoge solo información imprescindible para el desarrollo de la tarea"]
[null,null,null,null,null,null,null,null,null,"Organiza y custodia de forma adecuada la información a su cuidado, teniendo en cuenta las normas legales y de la organización"]
[null,null,null,null,null,null,null,null,null,"No hace pública la información laboral o de las personas que pueda afectar la organización o las personas"]
[null,null,null,null,null,null,null,null,null,"Transmite información oportuna y objetiva"]
[null,null,null,null,null,null,null,null,"Relaciones_interpersonales","Escucha con interés y capta las necesidades de los demás"]
[null,null,null,null,null,null,null,null,null,"Transmite la información de forma fidedigna evitando situaciones que puedan generar deterioro en el ambiente laboral"]
[null,null,null,null,null,null,null,null,"Colaboración","Toma la iniciativa en el contacto con usuarios para dar avisos, citas o respuestas, utilizando un lenguaje claro para los destinatarios, especialmente con las personas que integran minorías con mayor vulnerabilidad social o con diferencias funcionales"]
[null,null,null,null,null,null,null,null,null,"Articula sus actuaciones con las de los demás"]
[null,null,null,null,null,null,null,null,null,"Cumple los compromisos adquiridos"]
[null,null,null,null,null,null,null,null,null,"Facilita la labor de sus superiores y compañeros de trabajo"]
[]
[]
[]
[]
[]
[]
[]
[]
[]
[]
[]
[]
[]
[]
[]
[]
[]
[]
[]
[]
[null,"Anual u ordinario"]
[null,"Periodo de Prueba y Extraordinaria"]
[]
[]
[]
[]
[]
[]
[]
[]
[]
[]
[]
[]
[]
[]
[]
[]
[]
[]
[]
[]
[]
[]
[]
[]
[]
[]
[]
[]
[]
[]
["EVALUACIONES DEFINITIVAS","ANUAL_U_ORDINARIA","EVALUACIONES_PARCIALES_EVENTUALES"]
["ANUAL_U_ORDINARIA ","SEMESTRE 1","CAMBIO DE EVALUADOR"]
["PRIMERA_EVALUACION_PARCIAL_SEMESTRAL"]
["SEGUNDA_EVALUACION_PARCIAL_SEMESTRAL"]
["EVALUACIONES_PARCIALES_EVENTUALES",null,"CAMBIO DEFINITIVO DEL EMPLEO"]
["PERIODO DE PRUEBA","SEMESTRE 2","SEPARACIÓN TEMPORAL DE LAS FUNCIONES POR MÁS DE 30 DÍAS"]
["EXTRAORDINARIA",null,"LAPSO COMPRENDIDO ENTRE LA ÚLTIMA EVALUACIÓN Y EL FINAL DE LA EVALUACIÓN PARCIAL CORRESPONDIENTE"]
[null,null,"SUSPENSIÓN Y CALIFICACIÓN POR ACOSO LABORAL"]
[null,null,"INTERRUPCIÓN PERIODO DE PRUEBA POR MÁS DE 20 DÍAS"]
[]
[]
[]
[]
[]
["NIVELES DE DESARROLLO","DESCRIPCIÓN CUALITATIVA","Resultados cuantitativos"]
[null,null,"Periodo"]
[null,null,"Anual u ordinario","Periodo de Prueba y Extraordinaria","Bajo"]
["BAJO","El nivel de desarrollo de la competencia no se presenta con un impacto positivo que permita la obtención de las metas y logros esperados.",4,6,1]
["ACEPTABLE","El nivel de desarrollo de la competencia se presenta de manera intermitente, con un mediano impacto en la obtención de metas y logros esperados.",6,9,1.5]
["ALTO","El nivel de desarrollo de la competencia se presenta de manera permanente e impacta significativamente de manera positiva la obtención de metas y logros esperados.",8,12,2]
["MUY ALTO","El nivel de desarrollo de la competencia se presenta de manera permanente, impactando significativamente la obtención de metas y logros esperados y agrega valor a los procesos generando un alto nivel de confianza.",10,15,2.5]
[null,null,null,null,3]
[null,null,null,null,3.5]
[null,null,null,null,4]
[]
[]
[]
[]
[]
[]
[]
[]
[]
[]
[]
["1. Cambios en los planes, programas o proyectos como base para la concertación"]
["2. Separación del cargo mayor a treinta (30) días calendario que afecte el compromiso concertado"]
["3. Traslado o encargo del empleado",null,null,null,null,null,null,null,null,null,null,null,"Periodo"]
[null,null,null,null,null,null,null,null,null,null,null,null,"anual_u_ordinario"]
[null,null,null,null,null,null,null,null,null,null,null,null,"periodo_de_prueba_y_extraordinaria"]
[]
["Escala de Calificación ",null,null,null,null,null,null,null,null,null,null,null,"anual_u_ordinario","periodo_de_prueba_y_extraordinaria"]
["Sobresaliente ","> 90 y <= 100",null,null,null,null,null,null,null,null,null,null,"alto_anual_u_ordinario","alto_ppye"]
["Satisfactorio",">69 y < 80",null,null,null,null,null,null,null,null,null,null,"muy_alto_anual_u_ordinario","muy_alto_ppye"]
["No satisfactorio","<=69"]
[]
["No puede superar 100 puntos",null,null,null,null,null,null,null,null,null,null,null,"bajo_anual_u_ordinario","aceptable_anual_u_ordinario","alto_anual_u_ordinario","muy_alto_anual_u_ordinario","bajo_ppye","aceptable_ppye","alto_ppye","muy_alto_ppye"]
[null,null,null,null,null,null,null,null,null,null,null,null,1.0009999999999999,4.5004,6.5,8.5079999999999991,1,6.5,9.5,12.5]
[null,null,null,null,null,null,null,null,null,null,null,null,1.5001,5.0049999999999999,7,9.0009999999999994,1.5,7,10,13]
[null,null,null,null,null,null,null,null,null,null,null,null,2.0019999999999998,5.5004999999999997,7.5,9.5005000000000006,2,7.5,10.5,13.5]
[null,null,null,null,null,null,null,null,null,null,null,null,2.5,6.0060000000000002,8,10.000999999999999,2.5,8,11,14]
[null,null,null,null,null,null,null,null,null,null,null,null,3,null,null,null,3,8.5,11.5,14.5]
[null,null,null,null,null,null,null,null,null,null,null,null,3.5,null,null,null,3.5,9,12,15]
[null,null,null,null,null,null,null,null,null,null,null,null,4.0039999999999996,null,null,null,4]
[null,null,null,null,null,null,null,null,null,null,null,null,null,null,null,null,4.5]
[null,null,null,null,null,null,null,null,null,null,null,null,null,null,null,null,5]
["OBJETIVOS INSTITUCIONALES",null,null,null,null,null,null,null,null,null,null,null,null,null,null,null,5.5]
["Enaltecer al Servidor Público y su labor.",null,null,null,null,null,null,null,null,null,null,null,null,null,null,null,6]
["Consolidar una gestión pública moderna, eficiente, transparente, focalizada y participativa al servicio de las ciudadanías."]
["Proveer servicios con criterios de legalidad y enfoque diferencial que acerquen la ciudadanía al Estado."]
["Consolidar a Función Pública como un Departamento eficiente, técnico e innovador."]
[]
[null,null,null,null,null,null,null,null,"nivel_frecuencia",null,null,null,null,null,null,null,null,null,null,null,null,null,"periodo_de_prueba_y_extraordinaria"]
[null,null,null,null,null,null,null,null,"Siempre","Cumple totalmente con la competencia comportamental de manera constante y suficiente.",10,null,null,null,null,null,null,null,null,null,null,null,"bajo_anual_u_ordinario","El nivel de desarrollo de la competencia no se presenta con un impacto positivo que permita la obtención de metas y logros esperados "]
[null,null,null,null,null,null,null,null,"Frecuentemente","Cumple recurrentemente con la competencia comportamental.",7,null,null,null,null,null,null,null,null,null,null,null,"aceptable_anual_u_ordinario","El nivel de desarrollo de la competencia se presenta de manera intermitente con un mediano impacto en la obtención de metas y logros esperados "]
[null,null,null,null,null,null,null,null,"Ocasionalmente","Cumple parcialmente con la competencia comportamental, sin embargo no demuestra suficiencia frente a la conducta asociada. ",5,null,null,null,null,null,null,null,null,null,null,null,"alto_anual_u_ordinario","El nivel de desarrollo de la competencia se presenta de manera permanente e impacta significativamente de manera positiva la obtención de metas y logros esperados "]
[null,null,null,null,null,null,null,null,"Nunca","No cumple con la competencia comportamental ",1,null,null,null,null,null,null,null,null,null,null,null,"muy_alto_anual_u_ordinario","El nivel de desarrollo de la competencia se presenta de manera permanente, impactando significativamente la obtención de metas y logros esperados y agrega valor a los procesos generando un alto nivel de confianza "]
[]
[]
[null,null,null,null,null,null,null,null,"nivel_frecuencia"]
[null,null,null,null,null,null,null,null,"Siempre","Cumple totalmente con la competencia comportamental de manera constante y suficiente.",10]
[null,null,null,null,null,null,null,null,"Frecuentemente","Cumple recurrentemente con la competencia comportamental.",7]
[null,null,null,null,null,null,null,null,"Ocasionalmente","Cumple parcialmente con la competencia comportamental, sin embargo no demuestra suficiencia frente a la conducta asociada. ",5]
[null,null,null,null,null,null,null,null,"Nunca","No cumple con la competencia comportamental ",1]
[]
[]
["ACUERDOS DE NIVEL DE SERVICIO "]
["CLARIDAD ",null,"CLARIDAD \n(Variable/atributo/característica de requisito determinado por el cliente)"]
["CONFIABILIDAD",null,"CONFIABILIDAD\n(Variable/atributo/característica de requisito determinado para el producto/ servicio/ resultado)"]
["CUMPLIMIENTO ",null,"CUMPLIMIENTO \n(Variable/atributo/característica de requisito determinado por la legislación vigente)"]
["OPORTUNIDAD",null,"OPORTUNIDAD\n(Variable/atributo/característica de requisito determinado por FP)"]
[]
[null,null,"CLARIDAD: (Variable/atributo/característica de requisito determinado por el cliente)\nCONFIABILIDAD: (Variable/atributo/característica de requisito determinado para el producto/ servicio/ resultado)\nCUMPLIMIENTO (Variable/atributo/característica de requisito determinado por la legislación vigente)\nOPORTUNIDAD (Variable/atributo/característica de requisito determinado por FP)"]

{"sheet":"Instructivo Evaluación","index":2,"n_rows":15,"n_cols":13,"rows_kept":15,"cut":false,"hidden":false,"merged":[[0,0,0,12],[2,0,2,7],[2,8,2,11],[4,1,4,7],[4,8,5,11],[1,0,1,12],[4,12,5,12],[5,1,5,7],[3,8,3,11],[3,0,3,7],[11,1,11,7],[11,8,11,11],[12,1,12,7],[12,8,12,11],[7,8,9,11],[9,1,9,7],[10,1,10,7],[6,1,6,7],[6,8,6,11],[7,1,7,7],[7,12,10,12],[8,1,8,7],[10,8,10,11],[14,1,14,7],[14,8,14,11],[12,12,13,12],[13,1,13,7],[13,8,13,11]]}
["Evaluación del Desempeño para Servidores en  Nombramiento Provisional"]
["Información General"]
["Procedimiento",null,null,null,null,null,null,null,"Hojas del Archivo",null,null,null,"Fase"]
["Revisión de la planeación Estratégica de la Entidad, Manual de Funciones y competencias laborales, Misión, Visión, Planes de acción.",null,null,null,null,null,null,null,"No aplica",null,null,null,"Fase i. Etapa Preparatoria "]
["Paso 1. ","Diligenciar  la información personal y de los empleos de los evaluadores y del evaluado.",null,null,null,null,null,null,"1.2.3 Concertación",null,null,null,"Fase ii. Concertación De Compromisos Laborales Y Competencias Comportamentales"]
["Paso 2.","Concertar en los primeros 15 días de febrero de cada año  los compromisos laborales y competencias comportamentales "]
["Paso 3. ","Acopiar durante todo el proceso de evaluación las evidencias especificando la ubicación y fecha de aporte.",null,null,null,null,null,null,"1.2.3 Concertación - Evidencia del Cumplimiento del Compromiso",null,null,null,"Fase iii. Seguimiento Al Desempeño Laboral Y Al Desarrollo De Las Competencias Comportamentales."]
["Paso 4. ","Efectuar la primera evaluación parcial semestral la cual comprende del primero (1º) de febrero hasta el treinta y uno (31) de julio de cada año; la calificación de los compromisos laborales deberá producirse dentro de los quince (15) días hábiles siguientes al vencimiento de dicho período.",null,null,null,null,null,null,"4. Evaluación Semestral (1)",null,null,null,"Fase iv. Evaluaciones Parciales En Período Anual U Ordinario"]
["Paso 5. ","Efectuar la calificación de las competencias comportamentales correspondientes al primer semestre. (las fechas proceden igual que lo especificado en el ítem anterior)"]
["Paso 6. ","Notificar la calificación máximo dos días después de efectuada."]
["Paso 7. ","Implementar de ser necesario el plan de mejoramiento de acuerdo al resultado del seguimiento o la evaluación.",null,null,null,null,null,null,"7. Compromiso Mejoramiento I"]
["Paso 8. ","Acopiar durante todo el proceso de evaluación las evidencias especificando la ubicación y fecha de aporte.",null,null,null,null,null,null,"1.2.3 Concertación - Evidencia del Cumplimiento del Compromiso",null,null,null,"Fase iii. Seguimiento Al Desempeño Laboral Y Al Desarrollo De Las Competencias Comportamentales."]
["Paso 9. ","Para la segunda evaluación parcial semestral comprende el primero (1º) de agosto y el treinta y uno (31) de enero del año siguiente, calificación que deberá producirse a más tardar dentro de los quince (15) días hábiles siguientes al vencimiento de dicho período",null,null,null,null,null,null,"5. Evaluación Semestral (2)",null,null,null,"Fase iv. Evaluaciones Parciales En Período Anual U Ordinario"]
["Paso 10. ","Deberá realizar la calificación de las competencias comportamentales correspondientes al primer semestre. (las fechas proceden igual que el ítem anterior)",null,null,null,null,null,null,"5. Evaluación Semestral (2)"]
["Paso 11. ","Notificar la calificación final, en el caso de presentarse recursos diligenciar la sección V y VI del formato.",null,null,null,null,null,null,"6. Consolidado Anual",null,null,null,"Fase v. Calificación Definitiva"]

{"sheet":"1.2.3 Concertación","index":3,"n_rows":49,"n_cols":35,"rows_kept":49,"cut":false,"hidden":false,"merged":[[35,0,35,1],[35,2,35,31],[31,2,31,6],[32,2,32,6],[33,2,33,6],[34,2,34,6],[27,13,27,14],[41,0,41,8],[41,15,41,24],[41,25,41,31],[36,0,36,31],[38,15,38,24],[34,7,34,13],[30,27,30,31],[31,27,31,31],[31,17,31,26],[32,17,32,26],[33,17,33,26],[37,0,37,8],[33,0,33,1],[34,0,34,1],[32,0,32,1],[37,9,37,14],[37,15,37,24],[40,15,40,24],[40,25,40,31],[39,25,39,31],[42,9,42,14],[40,0,40,8],[41,9,41,14],[42,25,42,31],[40,9,40,14],[39,0,39,8],[39,9,39,14],[42,0,42,8],[16,31,19,31],[18,13,18,14],[8,0,11,0],[12,24,15,30],[12,31,15,31],[5,11,5,13],[5,14,5,16],[29,0,29,31],[5,20,5,31],[28,0,28,30],[5,0,5,7],[5,8,5,10],[5,17,5,19],[13,13,13,14],[10,13,10,14],[11,13,11,14],[24,13,24,14],[25,13,25,14],[26,13,26,14],[16,0,19,0],[16,1,19,4],[16,5,19,12],[16,15,19,23],[20,31,23,31],[32,27,32,31],[33,27,33,31],[34,27,34,31],[31,14,31,16],[32,14,32,16],[30,0,30,1],[31,0,31,1],[24,0,27,0],[24,1,27,4],[24,5,27,12],[24,15,27,23],[24,24,27,30],[24,31,27,31],[31,7,31,13],[30,7,30,13],[30,14,30,16],[30,2,30,6],[32,7,32,13],[33,7,33,13],[8,15,11,23],[8,24,11,30],[16,13,16,14],[17,13,17,14],[14,13,14,14],[15,13,15,14],[12,13,12,14],[16,24,19,30],[20,0,23,0],[20,1,23,4],[20,5,23,12],[20,15,23,23],[20,24,23,30],[2,0,2,31],[1,0,1,31],[3,0,3,7],[4,8,4,10],[4,0,4,5],[4,6,4,7],[4,11,4,12],[4,14,4,19],[4,20,4,22],[4,23,4,27],[4,28,4,31],[3,8,3,31],[7,1,7,4],[6,0,6,31],[7,24,7,30],[7,5,7,12],[33,14,33,16],[34,14,34,16],[30,17,30,26],[34,17,34,26],[8,13,8,14],[9,13,9,14],[7,15,7,23],[19,13,19,14],[20,13,20,14],[7,13,7,14],[21,13,21,14],[22,13,22,14],[23,13,23,14],[8,31,11,31],[12,0,15,0],[12,1,15,4],[12,5,15,12],[12,15,15,23],[8,1,11,4],[8,5,11,12],[0,0,0,31],[38,25,38,31],[38,0,38,8],[37,25,37,31],[38,9,38,14],[48,0,48,31],[49,0,49,31],[44,19,44,31],[45,5,46,10],[45,11,46,13],[45,14,46,18],[46,19,46,28],[46,29,46,31],[44,5,44,10],[44,11,44,13],[44,0,46,4],[44,14,44,18],[47,0,47,31],[45,19,45,28],[45,29,45,31],[43,0,43,8],[43,9,43,31],[42,15,42,24],[39,15,39,24]]}
["Evaluación del Desempeño para Servidores Vinculados en Nombramiento Provisional"]
["Objetivos Institucionales"]
[" 1. Concertación de Compromisos Laborales"]
["1.1 Tipo De Empleo",null,null,null,null,null,null,null,"Nombramiento Provisional. Seguimiento cumplimiento de funciones empleados vinculados mediante nombramiento provisional\n(No Genera Derechos de Carrera)",null,null,null,null,null,null,null,null,null,null,null,null,null,null,null,null,null,null,null,null,null,null,null,null,"",{"$f":"PROPER(C4)","v":""}]
["1.2 Fecha de Concertación",null,null,null,null,null,"Desde",null,null,null,null,"Hasta",null,null,"No. Días Concertados en el Año",null,null,null,null,null,{"$f":"IF((N5-I5+1)=1,0,N5-I5+1)","v":0},null,null,"1.3 Nivel del Empleo"]
["Concertación de Compromisos",null,null,null,null,null,null,null,null,null,null,"Ajuste de Compromiso",null,null,null,null,null,"Justificación del Ajuste",null,null,null,null,null,null,null,null,null,null,null,null,null,null,null,null,""]
["1.4 Componentes de la Evaluación",null,null,null,null,null,null,null,null,null,null,null,null,null,null,null,null,null,null,null,null,null,null,null,null,null,null,null,null,null,null,null,null,null,""]
["N.","No. Objetivo Institucional",null,null,null,"Compromisos Laborales",null,null,null,null,null,null,null,"Requisitos de Calidad",null,"Metas",null,null,null,null,null,null,null,null,"Evidencia del Cumplimiento del Compromiso",null,null,null,null,null,null,"Peso"]
[1]
[]
[]
[]
[2]
[]
[]
[]
[3]
[]
[]
[]
[4]
[]
[]
[]
[5]
[]
[]
[]
["Total de los Compromisos Laborales",null,null,null,null,null,null,null,null,null,null,null,null,null,null,null,null,null,null,null,null,null,null,null,null,null,null,null,null,null,null,{"$f":"IF(SUM(AF8:AF28)<>100,\"Número no puede ser mayor ni menor que 100\",SUM(AF8:AF28))","v":"Número no puede ser mayor ni menor que 100"}]
["2. Fijación Compromisos Comportamentales"]
["N° Compromiso Laboral",null,"Nivel Jerárquico",null,null,null,null,"Competencias Comportamentales",null,null,null,null,null,null,"Tipo de Competencia",null,null,"Conducta Asociada",null,null,null,null,null,null,null,null,null,"Evidencias"]
[1,null,{"$f":"+AC5","v":0},null,null,null,null,null,null,null,null,null,null,null,{"$f":"IF(H32=\"\",\"\",IF(H32='lista de selecciones'!$A$3,'lista de selecciones'!$A$1,IF(H32='lista de selecciones'!$A$4,'lista de selecciones'!$A$1,IF(H32='lista de selecciones'!$A$5,'lista de selecciones'!$A$1,IF(H32='lista de selecciones'!$A$6,'lista de selecciones'!$A$1,IF(H32='lista de selecciones'!A7,'lista de selecciones'!A1,IF(H32='lista de selecciones'!$A$8,'lista de selecciones'!$A$1,'lista de selecciones'!$B$1)))))))","v":""},null,null,{"$f":"IF(H32=\"\",\"\",VLOOKUP(H32,Hoja2!$C$2:$D$24,2,0))","v":""}]
[2,null,{"$f":"C32","v":0},null,null,null,null,null,null,null,null,null,null,null,{"$f":"IF(H33=\"\",\"\",IF(H33='lista de selecciones'!$A$3,'lista de selecciones'!$A$1,IF(H33='lista de selecciones'!$A$4,'lista de selecciones'!$A$1,IF(H33='lista de selecciones'!$A$5,'lista de selecciones'!$A$1,IF(H33='lista de selecciones'!$A$6,'lista de selecciones'!$A$1,IF(H33='lista de selecciones'!A8,'lista de selecciones'!A2,IF(H33='lista de selecciones'!$A$8,'lista de selecciones'!$A$1,'lista de selecciones'!$B$1)))))))","v":""},null,null,{"$f":"IF(H33=\"\",\"\",VLOOKUP(H33,Hoja2!$C$2:$D$24,2,0))","v":""}]
[3,null,{"$f":"C32","v":0},null,null,null,null,null,null,null,null,null,null,null,{"$f":"IF(H34=\"\",\"\",IF(H34='lista de selecciones'!$A$3,'lista de selecciones'!$A$1,IF(H34='lista de selecciones'!$A$4,'lista de selecciones'!$A$1,IF(H34='lista de selecciones'!$A$5,'lista de selecciones'!$A$1,IF(H34='lista de selecciones'!$A$6,'lista de selecciones'!$A$1,IF(H34='lista de selecciones'!A9,'lista de selecciones'!A3,IF(H34='lista de selecciones'!$A$8,'lista de selecciones'!$A$1,'lista de selecciones'!$B$1)))))))","v":""},null,null,{"$f":"IF(H34=\"\",\"\",VLOOKUP(H34,Hoja2!$C$2:$D$24,2,0))","v":""}]
[4,null,{"$f":"C33","v":0},null,null,null,null,null,null,null,null,null,null,null,{"$f":"IF(H35=\"\",\"\",IF(H35='lista de selecciones'!$A$3,'lista de selecciones'!$A$1,IF(H35='lista de selecciones'!$A$4,'lista de selecciones'!$A$1,IF(H35='lista de selecciones'!$A$5,'lista de selecciones'!$A$1,IF(H35='lista de selecciones'!$A$6,'lista de selecciones'!$A$1,IF(H35='lista de selecciones'!A10,'lista de selecciones'!A4,IF(H35='lista de selecciones'!$A$8,'lista de selecciones'!$A$1,'lista de selecciones'!$B$1)))))))","v":""},null,null,{"$f":"IF(H35=\"\",\"\",VLOOKUP(H35,Hoja2!$C$2:$D$24,2,0))","v":""}]
[]
["3. Datos Generales"]
[null,null,null,null,null,null,null,null,null,"Empleado a Evaluar",null,null,null,null,null,"Jefe Inmediato (Primer Evaluador)",null,null,null,null,null,null,null,null,null,"Segundo Evaluador \n(si lo hay)"]
["Nombre Completo"]
["Numero de Documento Identidad"]
["Cargo (Denominación-Código-Grado)"]
["Dependencia"]
["Firmas"]
["Fecha de Diligenciamiento del Formato",null,null,null,null,null,null,null,null,"2023-02-20"]
["Renuencia del Evaluado para firmar la fijación de compromisos \n(Si aplica)",null,null,null,null,"Nombre del Testigo",null,null,null,null,null,"Firma del Testigo",null,null,"Fecha",null,null,null,null,"Reclamación u Objeción en Única Instancia Ante la Comisión de Personal (Parágrafo del Articulo 22º,  del Acuerdo 565 de 2016)"]
[null,null,null,null,null,null,null,null,null,null,null,null,null,null,null,null,null,null,null,"Número de Radicado"]
[null,null,null,null,null,null,null,null,null,null,null,null,null,null,null,null,null,null,null,"Fecha Reclamación (dd/mm/aa)"]
[]
["3.1 Observaciones"]

{"sheet":"4. Evaluación Semestral (1)","index":4,"n_rows":48,"n_cols":38,"rows_kept":48,"cut":false,"hidden":false,"merged":[[19,1,22,13],[23,1,26,13],[29,0,29,25],[7,0,10,0],[11,0,14,0],[15,0,18,0],[19,0,22,0],[23,0,26,0],[17,23,17,26],[18,23,18,26],[19,23,19,26],[20,23,20,26],[21,23,21,26],[22,23,22,26],[23,23,23,26],[24,23,24,26],[13,23,13,26],[8,23,8,26],[7,14,10,22],[11,14,14,22],[14,23,14,26],[15,23,15,26],[16,23,16,26],[26,23,26,26],[33,1,33,9],[34,1,34,9],[27,14,27,22],[30,32,30,34],[30,26,30,31],[31,26,31,31],[32,26,32,31],[28,0,28,34],[27,0,27,13],[27,27,27,34],[32,10,32,17],[31,18,31,25],[32,18,32,25],[34,32,34,34],[1,0,1,37],[2,0,2,10],[3,14,3,15],[4,0,4,8],[3,16,3,19],[3,20,3,25],[3,26,3,28],[3,29,3,33],[4,9,4,37],[3,34,3,37],[2,11,2,37],[6,1,6,13],[7,1,10,13],[11,1,14,13],[15,1,18,13],[39,0,39,11],[5,0,5,37],[3,0,3,8],[3,9,3,10],[3,11,3,13],[6,27,6,34],[15,14,18,22],[19,14,22,22],[23,14,26,22],[25,23,25,26],[23,27,26,34],[9,23,9,26],[10,23,10,26],[11,23,11,26],[12,23,12,26],[15,27,18,34],[19,27,22,34],[7,35,10,35],[7,36,10,36],[19,35,22,35],[37,17,37,27],[37,28,37,30],[27,37,28,37],[31,10,31,17],[30,10,30,17],[36,14,36,16],[36,17,36,27],[32,35,32,37],[37,31,37,34],[37,35,37,37],[36,31,36,34],[36,35,36,37],[30,35,30,37],[31,35,31,37],[27,23,27,26],[33,26,33,31],[31,32,31,34],[27,35,28,35],[33,35,33,37],[34,35,34,37],[35,35,35,37],[32,32,32,34],[33,32,33,34],[7,37,10,37],[11,35,14,35],[11,36,14,36],[11,37,14,37],[15,35,18,35],[7,27,10,34],[19,36,22,36],[19,37,22,37],[23,35,26,35],[23,36,26,36],[23,37,26,37],[11,27,14,34],[15,36,18,36],[15,37,18,37],[6,23,6,26],[7,23,7,26],[37,0,37,13],[39,12,39,37],[0,0,0,37],[46,0,46,37],[42,0,42,11],[45,0,45,11],[47,0,47,37],[35,0,35,34],[30,18,30,25],[30,1,30,9],[31,1,31,9],[32,1,32,9],[6,14,6,22],[40,0,40,11],[40,12,40,20],[44,0,44,11],[44,12,44,20],[44,21,44,31],[36,28,36,30],[44,32,44,37],[41,0,41,11],[41,12,41,20],[48,0,48,37],[29,26,29,37],[33,18,33,25],[34,18,34,25],[45,32,45,37],[43,0,43,11],[43,12,43,20],[43,21,43,31],[43,32,43,37],[33,10,33,17],[34,10,34,17],[34,26,34,31],[42,32,42,37],[45,12,45,20],[45,21,45,31],[42,21,42,31],[42,12,42,20],[40,21,40,31],[40,32,40,37],[41,21,41,31],[41,32,41,37],[36,0,36,13],[38,0,38,37],[37,14,37,16]]}
["Evaluación del Desempeño para Servidores Vinculados en Nombramiento Provisional"]
[" 4. Evaluación Parcial Semestral (1)"]
["4.1 Tipo de Empleo",null,null,null,null,null,null,null,null,null,null,"NOMBRAMIENTO PROVISIONAL. Seguimiento cumplimiento de funciones empleados vinculados mediante NOMBRAMIENTO PROVISIONAL\n(NO GENERA DERECHOS DE CARRERA)"]
["4.2 Fecha de Evaluación",null,null,null,null,null,null,null,null,"Desde",null,null,null,null,"Hasta",null,null,null,null,null,"No. Días Evaluacod en el Año",null,null,null,null,null,{"$f":"IF((Q4-L4+1)=1,0,Q4-L4+1)","v":0},null,null,"4.3 Nivel del Empleo",null,null,null,null,{"$f":"+'1.2.3 Concertación'!AC5","v":0}]
["4.4 Casos de Evaluación",null,null,null,null,null,null,null,null,"Primera_Evaluación_Parcial_Semestral"]
["4.5 Portafolio De Evidencias Compromisos Laborales"]
["N°","Compromiso Laboral",null,null,null,null,null,null,null,null,null,null,null,null,"Evidencia del Cumplimiento del Compromiso",null,null,null,null,null,null,null,null,"Requisitos de Calidad",null,null,null,"Comentarios - Ruta de Evidencia",null,null,null,null,null,null,null,"Peso","Logro %","Puntaje"]
[{"$f":"+'1.2.3 Concertación'!A9","v":1},{"$f":"+'1.2.3 Concertación'!F9","v":0},null,null,null,null,null,null,null,null,null,null,null,null,{"$f":"+'1.2.3 Concertación'!Y9","v":0},null,null,null,null,null,null,null,null,{"$f":"+'1.2.3 Concertación'!N9","v":0},null,null,null,null,null,null,null,null,null,null,null,{"$f":"+'1.2.3 Concertación'!AF9","v":0},1,{"$f":"(AJ8*AK8)","v":0}]
[null,null,null,null,null,null,null,null,null,null,null,null,null,null,null,null,null,null,null,null,null,null,null,{"$f":"+'1.2.3 Concertación'!N10","v":0}]
[null,null,null,null,null,null,null,null,null,null,null,null,null,null,null,null,null,null,null,null,null,null,null,{"$f":"+'1.2.3 Concertación'!N11","v":0}]
[null,null,null,null,null,null,null,null,null,null,null,null,null,null,null,null,null,null,null,null,null,null,null,{"$f":"+'1.2.3 Concertación'!N12","v":0}]
[{"$f":"+'1.2.3 Concertación'!A13","v":2},{"$f":"+'1.2.3 Concertación'!F13","v":0},null,null,null,null,null,null,null,null,null,null,null,null,{"$f":"+'1.2.3 Concertación'!Y13","v":0},null,null,null,null,null,null,null,null,{"$f":"+'1.2.3 Concertación'!N13","v":0},null,null,null,null,null,null,null,null,null,null,null,{"$f":"+'1.2.3 Concertación'!AF13","v":0},1,{"$f":"(AJ12*AK12)","v":0}]
[null,null,null,null,null,null,null,null,null,null,null,null,null,null,{"$f":"+'1.2.3 Concertación'!Y20","v":0},null,null,null,null,null,null,null,null,{"$f":"+'1.2.3 Concertación'!N14","v":0}]
[null,null,null,null,null,null,null,null,null,null,null,null,null,null,{"$f":"+'1.2.3 Concertación'!Y21","v":0},null,null,null,null,null,null,null,null,{"$f":"+'1.2.3 Concertación'!N15","v":0}]
[null,null,null,null,null,null,null,null,null,null,null,null,null,null,null,null,null,null,null,null,null,null,null,{"$f":"+'1.2.3 Concertación'!N16","v":0}]
[{"$f":"+'1.2.3 Concertación'!A17","v":3},{"$f":"+'1.2.3 Concertación'!F17","v":0},null,null,null,null,null,null,null,null,null,null,null,null,{"$f":"+'1.2.3 Concertación'!Y17","v":0},null,null,null,null,null,null,null,null,{"$f":"+'1.2.3 Concertación'!N17","v":0},null,null,null,null,null,null,null,null,null,null,null,{"$f":"+'1.2.3 Concertación'!AF17","v":0},1,{"$f":"(AJ16*AK16)","v":0}]
[null,null,null,null,null,null,null,null,null,null,null,null,null,null,null,null,null,null,null,null,null,null,null,{"$f":"+'1.2.3 Concertación'!N18","v":0}]
[null,null,null,null,null,null,null,null,null,null,null,null,null,null,null,null,null,null,null,null,null,null,null,{"$f":"+'1.2.3 Concertación'!N19","v":0}]
[null,null,null,null,null,null,null,null,null,null,null,null,null,null,null,null,null,null,null,null,null,null,null,{"$f":"+'1.2.3 Concertación'!N20","v":0}]
[{"$f":"+'1.2.3 Concertación'!A21","v":4},{"$f":"+'1.2.3 Concertación'!F21","v":0},null,null,null,null,null,null,null,null,null,null,null,null,{"$f":"+'1.2.3 Concertación'!Y21","v":0},null,null,null,null,null,null,null,null,{"$f":"+'1.2.3 Concertación'!N21","v":0},null,null,null,null,null,null,null,null,null,null,null,{"$f":"+'1.2.3 Concertación'!AF21","v":0},1,{"$f":"(AJ20*AK20)","v":0}]
[null,null,null,null,null,null,null,null,null,null,null,null,null,null,null,null,null,null,null,null,null,null,null,{"$f":"+'1.2.3 Concertación'!N22","v":0}]
[null,null,null,null,null,null,null,null,null,null,null,null,null,null,null,null,null,null,null,null,null,null,null,{"$f":"+'1.2.3 Concertación'!N23","v":0}]
[null,null,null,null,null,null,null,null,null,null,null,null,null,null,null,null,null,null,null,null,null,null,null,{"$f":"+'1.2.3 Concertación'!N24","v":0}]
[{"$f":"+'1.2.3 Concertación'!A25","v":5},{"$f":"+'1.2.3 Concertación'!F25","v":0},null,null,null,null,null,null,null,null,null,null,null,null,"Dar respuesta de fondo las PQRS asignadas dentro de los terminos establecidos por la Ley",null,null,null,null,null,null,null,null,{"$f":"+'1.2.3 Concertación'!N25","v":0},null,null,null,null,null,null,null,null,null,null,null,{"$f":"+'1.2.3 Concertación'!AF25","v":0},1,{"$f":"(AJ24*AK24)","v":0}]
[null,null,null,null,null,null,null,null,null,null,null,null,null,null,null,null,null,null,null,null,null,null,null,{"$f":"+'1.2.3 Concertación'!N26","v":0}]
[null,null,null,null,null,null,null,null,null,null,null,null,null,null,null,null,null,null,null,null,null,null,null,{"$f":"+'1.2.3 Concertación'!N27","v":0}]
[null,null,null,null,null,null,null,null,null,null,null,null,null,null,{"$f":"+'1.2.3 Concertación'!#REF!","v":{"$error":"#REF!"}},null,null,null,null,null,null,null,null,{"$f":"+'1.2.3 Concertación'!N28","v":0}]
[null,null,null,null,null,null,null,null,null,null,null,null,null,null,null,null,null,null,null,null,null,null,null,null,null,null,null,null,null,null,null,null,null,null,null,{"$f":"IF(SUM(AJ7:AJ26)<>100,\"Numero no puede ser mayor ni menor que 100\",SUM(AJ7:AJ26))","v":"Numero no puede ser mayor ni menor que 100"},null,{"$f":"+SUM(AL8:AL27)","v":0}]
["Total Compromisos Laborales"]
["4.6 Compromisos Comportamentales Fijados",null,null,null,null,null,null,null,null,null,null,null,null,null,null,null,null,null,null,null,null,null,null,null,null,null,"4.7 Seguimiento Compromisos Comportamentales"]
["N° ","Nivel Jerarquico",null,null,null,null,null,null,null,null,"Competencia Comportamental",null,null,null,null,null,null,null,"Conducta Asociada",null,null,null,null,null,null,null,"Niveles de Frecuencia",null,null,null,null,null,"Descripción",null,null,"Resultado Cuantitativo"]
[{"$f":"+'1.2.3 Concertación'!A32","v":1},{"$f":"+'1.2.3 Concertación'!C32","v":0},null,null,null,null,null,null,null,null,{"$f":"+'1.2.3 Concertación'!H32","v":0},null,null,null,null,null,null,null,{"$f":"+'1.2.3 Concertación'!R32","v":""},null,null,null,null,null,null,null,null,null,null,null,null,null,{"$f":"IF(AA32='lista de selecciones'!$I$181,'lista de selecciones'!$J$181,IF(AA32='lista de selecciones'!$I$182,'lista de selecciones'!$J$182,IF(AA32='lista de selecciones'!$I$183,'lista de selecciones'!$J$183,IF(AA32='lista de selecciones'!$I$184,'lista de selecciones'!$J$184,0))))","v":0},null,null,{"$f":"IF(AA32='lista de selecciones'!$I$181,'lista de selecciones'!$K$181,IF(AA32='lista de selecciones'!$I$182,'lista de selecciones'!$K$182,IF(AA32='lista de selecciones'!$I$183,'lista de selecciones'!$K$183,IF(AA32='lista de selecciones'!$I$184,'lista de selecciones'!$K$184,0))))","v":0}]
[{"$f":"+'1.2.3 Concertación'!A33","v":2},{"$f":"B32","v":0},null,null,null,null,null,null,null,null,{"$f":"+'1.2.3 Concertación'!H33","v":0},null,null,null,null,null,null,null,{"$f":"+'1.2.3 Concertación'!R33","v":""},null,null,null,null,null,null,null,null,null,null,null,null,null,{"$f":"IF(AA33='lista de selecciones'!$I$181,'lista de selecciones'!$J$181,IF(AA33='lista de selecciones'!$I$182,'lista de selecciones'!$J$182,IF(AA33='lista de selecciones'!$I$183,'lista de selecciones'!$J$183,IF(AA33='lista de selecciones'!$I$184,'lista de selecciones'!$J$184,0))))","v":0},null,null,{"$f":"IF(AA33='lista de selecciones'!$I$181,'lista de selecciones'!$K$181,IF(AA33='lista de selecciones'!$I$182,'lista de selecciones'!$K$182,IF(AA33='lista de selecciones'!$I$183,'lista de selecciones'!$K$183,IF(AA33='lista de selecciones'!$I$184,'lista de selecciones'!$K$184,0))))","v":0}]
[{"$f":"+'1.2.3 Concertación'!A34","v":3},{"$f":"B32","v":0},null,null,null,null,null,null,null,null,{"$f":"+'1.2.3 Concertación'!H34","v":0},null,null,null,null,null,null,null,{"$f":"+'1.2.3 Concertación'!R34","v":""},null,null,null,null,null,null,null,null,null,null,null,null,null,{"$f":"IF(AA34='lista de selecciones'!$I$181,'lista de selecciones'!$J$181,IF(AA34='lista de selecciones'!$I$182,'lista de selecciones'!$J$182,IF(AA34='lista de selecciones'!$I$183,'lista de selecciones'!$J$183,IF(AA34='lista de selecciones'!$I$184,'lista de selecciones'!$J$184,0))))","v":0},null,null,{"$f":"IF(AA34='lista de selecciones'!$I$181,'lista de selecciones'!$K$181,IF(AA34='lista de selecciones'!$I$182,'lista de selecciones'!$K$182,IF(AA34='lista de selecciones'!$I$183,'lista de selecciones'!$K$183,IF(AA34='lista de selecciones'!$I$184,'lista de selecciones'!$K$184,0))))","v":0}]
[{"$f":"+'1.2.3 Concertación'!A35","v":4},{"$f":"B33","v":0},null,null,null,null,null,null,null,null,{"$f":"+'1.2.3 Concertación'!H35","v":0},null,null,null,null,null,null,null,{"$f":"+'1.2.3 Concertación'!R35","v":""},null,null,null,null,null,null,null,null,null,null,null,null,null,{"$f":"IF(AA35='lista de selecciones'!$I$181,'lista de selecciones'!$J$181,IF(AA35='lista de selecciones'!$I$182,'lista de selecciones'!$J$182,IF(AA35='lista de selecciones'!$I$183,'lista de selecciones'!$J$183,IF(AA35='lista de selecciones'!$I$184,'lista de selecciones'!$J$184,0))))","v":0},null,null,{"$f":"IF(AA35='lista de selecciones'!$I$181,'lista de selecciones'!$K$181,IF(AA35='lista de selecciones'!$I$182,'lista de selecciones'!$K$182,IF(AA35='lista de selecciones'!$I$183,'lista de selecciones'!$K$183,IF(AA35='lista de selecciones'!$I$184,'lista de selecciones'!$K$184,0))))","v":0}]
["Total Compromisos Comportamentales ",null,null,null,null,null,null,null,null,null,null,null,null,null,null,null,null,null,null,null,null,null,null,null,null,null,null,null,null,null,null,null,null,null,null,{"$f":"SUM(AJ32:AL35)/4","v":0}]
["Evaluaciones Eventuales Para Compromisos Laborales (Si Las Hay)",null,null,null,null,null,null,null,null,null,null,null,null,null,{"$f":"+'9. Evaluación Eventual (Sem I)'!M16","v":0},null,null,"Evaluaciones Eventuales Para Compromisos Comportamentales (Si Las Hay)",null,null,null,null,null,null,null,null,null,null,{"$f":"+'9. Evaluación Eventual (Sem I)'!M30","v":0},null,null,"Total de evaluación eventual ",null,null,null,{"$f":"+O37+AC37","v":0}]
["Calificación Evaluación Compromisos Laborales Primer Semestre (Sobre 80%) ",null,null,null,null,null,null,null,null,null,null,null,null,null,{"$f":"AL28*80%","v":0},null,null,"Calificación Total Competencias Comportamentales Primer Semestre (Sobre 20%) ",null,null,null,null,null,null,null,null,null,null,{"$f":"+(AJ36*20%)*10","v":0},null,null,"Total de la Calificación Semestre 1",null,null,null,{"$f":"IF(AJ37>1,((AVERAGE(O37,AC37))+(AVERAGE(O38,AC38))),(AVERAGE(O38+AC38)))","v":0}]
["4.8 Datos Generales"]
["Fecha de Diligenciamiento",null,null,null,null,null,null,null,null,null,null,null,"2024-09-02"]
[null,null,null,null,null,null,null,null,null,null,null,null,"Empleado a Evaluar",null,null,null,null,null,null,null,null,"Jefe Inmediato (Primer Evaluador)",null,null,null,null,null,null,null,null,null,null,"Segundo Evaluador"]
["Nombre Completo",null,null,null,null,null,null,null,null,null,null,null,{"$f":"+'1.2.3 Concertación'!J39","v":0},null,null,null,null,null,null,null,null,{"$f":"'1.2.3 Concertación'!P39","v":0},null,null,null,null,null,null,null,null,null,null,{"$f":"++'1.2.3 Concertación'!Z39","v":0}]
["Numero De Documento Identidad",null,null,null,null,null,null,null,null,null,null,null,{"$f":"'1.2.3 Concertación'!J40","v":0},null,null,null,null,null,null,null,null,{"$f":"'1.2.3 Concertación'!P40","v":0},null,null,null,null,null,null,null,null,null,null,{"$f":"'1.2.3 Concertación'!Z40","v":0}]
["Cargo (Denominación-Código-Grado)",null,null,null,null,null,null,null,null,null,null,null,{"$f":"'1.2.3 Concertación'!J41","v":0},null,null,null,null,null,null,null,null,{"$f":"'1.2.3 Concertación'!P41","v":0},null,null,null,null,null,null,null,null,null,null,{"$f":"'1.2.3 Concertación'!Z41","v":0}]
["Dependencia",null,null,null,null,null,null,null,null,null,null,null,{"$f":"'1.2.3 Concertación'!J42","v":0},null,null,null,null,null,null,null,null,{"$f":"'1.2.3 Concertación'!P42","v":0},null,null,null,null,null,null,null,null,null,null,{"$f":"'1.2.3 Concertación'!Z42","v":0}]
["Firmas",null,null,null,null,null,null,null,null,null,null,null,null,null,null,null,null,null,null,null,null,null,null,null,null,null,null,null,null,null,null,null,"No aplica"]
[]
["4.9 Observaciones"]

{"sheet":"5. Evaluación Semestral (2)","index":5,"n_rows":48,"n_cols":49,"rows_kept":48,"cut":false,"hidden":false,"merged":[[33,1,33,9],[34,1,34,9],[6,1,6,12],[7,1,10,12],[11,1,14,12],[15,1,18,12],[19,1,22,12],[23,1,26,12],[7,0,10,0],[11,0,14,0],[15,0,18,0],[19,0,22,0],[23,0,26,0],[32,10,32,19],[34,10,34,19],[7,48,10,48],[11,13,14,28],[11,34,14,44],[15,34,18,44],[19,34,22,44],[11,48,14,48],[15,48,18,48],[19,48,22,48],[15,29,15,33],[16,29,16,33],[13,29,13,33],[14,29,14,33],[19,45,22,45],[7,29,7,33],[8,29,8,33],[9,29,9,33],[10,29,10,33],[7,13,10,28],[7,34,10,44],[7,45,10,45],[7,46,10,47],[11,29,11,33],[12,29,12,33],[11,45,14,45],[23,45,26,45],[11,46,14,47],[15,46,18,47],[19,46,22,47],[23,46,26,47],[19,13,22,28],[23,48,26,48],[15,13,18,28],[23,13,26,28],[25,29,25,33],[26,29,26,33],[23,29,23,33],[24,29,24,33],[21,29,21,33],[22,29,22,33],[19,29,19,33],[20,29,20,33],[17,29,17,33],[18,29,18,33],[23,34,26,44],[15,45,18,45],[32,20,32,31],[32,32,32,40],[32,41,32,44],[32,45,32,48],[27,48,28,48],[27,45,28,45],[28,0,28,44],[28,46,28,47],[27,34,27,44],[27,46,27,47],[27,0,27,12],[27,13,27,28],[27,29,27,33],[30,1,30,9],[31,1,31,9],[32,1,32,9],[1,0,1,48],[2,0,2,11],[5,0,5,48],[6,46,6,47],[3,32,3,36],[3,37,3,43],[3,44,3,48],[4,0,4,8],[3,0,3,8],[4,9,4,48],[6,13,6,28],[3,9,3,10],[3,11,3,13],[3,14,3,17],[3,18,3,22],[3,23,3,31],[6,34,6,44],[6,29,6,33],[2,12,2,48],[45,0,45,11],[45,12,45,24],[45,25,45,40],[45,41,45,48],[39,0,39,11],[39,12,39,48],[41,0,41,11],[41,12,41,24],[41,25,41,40],[41,41,41,48],[42,0,42,11],[42,12,42,24],[42,25,42,40],[42,41,42,48],[43,0,43,11],[43,12,43,24],[43,25,43,40],[43,41,43,48],[40,0,40,11],[40,12,40,24],[40,25,40,40],[40,41,40,48],[44,12,44,24],[44,25,44,40],[38,0,38,48],[34,20,34,31],[34,32,34,40],[34,41,34,44],[34,45,34,48],[35,0,35,44],[36,19,36,34],[37,19,37,34],[37,35,37,39],[36,0,36,13],[36,14,36,18],[36,35,36,39],[37,0,37,13],[37,14,37,18],[37,40,37,44],[37,45,37,48],[36,40,36,44],[36,45,36,48],[0,0,0,48],[46,0,46,48],[47,0,47,48],[48,0,51,48],[29,0,29,31],[29,32,29,48],[30,10,30,19],[30,20,30,31],[44,0,44,11],[30,32,30,40],[30,41,30,44],[30,45,30,48],[31,10,31,19],[31,20,31,31],[31,32,31,40],[31,41,31,44],[31,45,31,48],[44,41,44,48],[33,10,33,19],[33,20,33,31],[33,32,33,40],[33,41,33,44],[33,45,33,48],[35,45,35,48]]}
["Evaluación del Desempeño para Servidores Vinculados en Nombramiento Provisional"]
["5. Evaluación Parcial Semestral (2)"]
["5.1 Tipo de Empleo",null,null,null,null,null,null,null,null,null,null,null,"NOMBRAMIENTO PROVISIONAL. Seguimiento cumplimiento de funciones empleados vinculados mediante NOMBRAMIENTO PROVISIONAL\n(NO GENERA DERECHOS DE CARRERA)"]
["5.2 Fecha de Evaluación",null,null,null,null,null,null,null,null,"Desde",null,null,null,null,"Hasta",null,null,null,null,null,null,null,null,"No. Días Evaluados en el Año",null,null,null,null,null,null,null,null,{"$f":"IF((S4-L4+1)=1,0,S4-L4+1)","v":0},null,null,null,null,"5.3 Nivel del Empleo",null,null,null,null,null,null,{"$f":"+'1.2.3 Concertación'!AC5","v":0}]
["5.4 Casos de Evaluación",null,null,null,null,null,null,null,null,"Segunda_Evaluación_Parcial_Semestral"]
["5.5 Portafolio De Evidencias Compromisos Laborales"]
["N°","Compromiso Laboral",null,null,null,null,null,null,null,null,null,null,null,"Evidencia del Cumplimiento del Compromiso",null,null,null,null,null,null,null,null,null,null,null,null,null,null,null,"Requisitos de Calidad",null,null,null,null,"Comentarios - Ruta de Evidencia",null,null,null,null,null,null,null,null,null,null,"Peso","Logro %",null,"Puntaje"]
[{"$f":"+'1.2.3 Concertación'!A9","v":1},{"$f":"'1.2.3 Concertación'!F9","v":0},null,null,null,null,null,null,null,null,null,null,null,{"$f":"+'1.2.3 Concertación'!Y9","v":0},null,null,null,null,null,null,null,null,null,null,null,null,null,null,null,{"$f":"+'1.2.3 Concertación'!N9","v":0},null,null,null,null,{"$f":"'4. Evaluación Semestral (1)'!$AB$8","v":0},null,null,null,null,null,null,null,null,null,null,{"$f":"'1.2.3 Concertación'!AF9","v":0},1,null,{"$f":"(AT8*AU8)","v":0}]
[null,null,null,null,null,null,null,null,null,null,null,null,null,null,null,null,null,null,null,null,null,null,null,null,null,null,null,null,null,{"$f":"+'1.2.3 Concertación'!N10","v":0}]
[null,null,null,null,null,null,null,null,null,null,null,null,null,null,null,null,null,null,null,null,null,null,null,null,null,null,null,null,null,{"$f":"+'1.2.3 Concertación'!N11","v":0}]
[null,null,null,null,null,null,null,null,null,null,null,null,null,null,null,null,null,null,null,null,null,null,null,null,null,null,null,null,null,{"$f":"+'1.2.3 Concertación'!N12","v":0}]
[{"$f":"+'1.2.3 Concertación'!A13","v":2},{"$f":"'1.2.3 Concertación'!F13","v":0},null,null,null,null,null,null,null,null,null,null,null,null,null,null,null,null,null,null,null,null,null,null,null,null,null,null,null,{"$f":"+'1.2.3 Concertación'!N13","v":0},null,null,null,null,null,null,null,null,null,null,null,null,null,null,null,{"$f":"'1.2.3 Concertación'!AF13","v":0},1,null,{"$f":"(AT12*AU12)","v":0}]
[null,null,null,null,null,null,null,null,null,null,null,null,null,null,null,null,null,null,null,null,null,null,null,null,null,null,null,null,null,{"$f":"+'1.2.3 Concertación'!N14","v":0}]
[null,null,null,null,null,null,null,null,null,null,null,null,null,null,null,null,null,null,null,null,null,null,null,null,null,null,null,null,null,{"$f":"+'1.2.3 Concertación'!N15","v":0}]
[null,null,null,null,null,null,null,null,null,null,null,null,null,null,null,null,null,null,null,null,null,null,null,null,null,null,null,null,null,{"$f":"+'1.2.3 Concertación'!N16","v":0}]
[{"$f":"+'1.2.3 Concertación'!A17","v":3},{"$f":"'1.2.3 Concertación'!F17","v":0},null,null,null,null,null,null,null,null,null,null,null,null,null,null,null,null,null,null,null,null,null,null,null,null,null,null,null,{"$f":"+'1.2.3 Concertación'!N17","v":0},null,null,null,null,null,null,null,null,null,null,null,null,null,null,null,{"$f":"'1.2.3 Concertación'!AF17","v":0},1,null,{"$f":"(AT16*AU16)","v":0}]
[null,null,null,null,null,null,null,null,null,null,null,null,null,null,null,null,null,null,null,null,null,null,null,null,null,null,null,null,null,{"$f":"+'1.2.3 Concertación'!N18","v":0}]
[null,null,null,null,null,null,null,null,null,null,null,null,null,null,null,null,null,null,null,null,null,null,null,null,null,null,null,null,null,{"$f":"+'1.2.3 Concertación'!N19","v":0}]
[null,null,null,null,null,null,null,null,null,null,null,null,null,null,null,null,null,null,null,null,null,null,null,null,null,null,null,null,null,{"$f":"+'1.2.3 Concertación'!N20","v":0}]
[{"$f":"+'1.2.3 Concertación'!A21","v":4},{"$f":"'1.2.3 Concertación'!F21","v":0},null,null,null,null,null,null,null,null,null,null,null,null,null,null,null,null,null,null,null,null,null,null,null,null,null,null,null,{"$f":"+'1.2.3 Concertación'!N21","v":0},null,null,null,null,null,null,null,null,null,null,null,null,null,null,null,{"$f":"'1.2.3 Concertación'!AF21","v":0},1,null,{"$f":"(AT20*AU20)","v":0}]
[null,null,null,null,null,null,null,null,null,null,null,null,null,null,null,null,null,null,null,null,null,null,null,null,null,null,null,null,null,{"$f":"+'1.2.3 Concertación'!N22","v":0}]
[null,null,null,null,null,null,null,null,null,null,null,null,null,null,null,null,null,null,null,null,null,null,null,null,null,null,null,null,null,{"$f":"+'1.2.3 Concertación'!N23","v":0}]
[null,null,null,null,null,null,null,null,null,null,null,null,null,null,null,null,null,null,null,null,null,null,null,null,null,null,null,null,null,{"$f":"+'1.2.3 Concertación'!N24","v":0}]
[{"$f":"+'1.2.3 Concertación'!A25","v":5},{"$f":"'1.2.3 Concertación'!F25","v":0},null,null,null,null,null,null,null,null,null,null,null,null,null,null,null,null,null,null,null,null,null,null,null,null,null,null,null,{"$f":"+'1.2.3 Concertación'!N25","v":0},null,null,null,null,null,null,null,null,null,null,null,null,null,null,null,{"$f":"'1.2.3 Concertación'!AF25","v":0},1,null,{"$f":"(AT24*AU24)","v":0}]
[null,null,null,null,null,null,null,null,null,null,null,null,null,null,null,null,null,null,null,null,null,null,null,null,null,null,null,null,null,{"$f":"+'1.2.3 Concertación'!N26","v":0}]
[null,null,null,null,null,null,null,null,null,null,null,null,null,null,null,null,null,null,null,null,null,null,null,null,null,null,null,null,null,{"$f":"+'1.2.3 Concertación'!N27","v":0}]
[null,null,null,null,null,null,null,null,null,null,null,null,null,null,null,null,null,null,null,null,null,null,null,null,null,null,null,null,null,{"$f":"+'1.2.3 Concertación'!N28","v":0}]
[null,null,null,null,null,null,null,null,null,null,null,null,null,null,null,null,null,null,null,null,null,null,null,null,null,null,null,null,null,null,null,null,null,null,null,null,null,null,null,null,null,null,null,null,null,{"$f":"IF(SUM(AT7:AT27)<>100,\"Número no puede ser mayor ni menor que 100\",SUM(AT7:AT27))","v":"Número no puede ser mayor ni menor que 100"},null,null,{"$f":"SUM(AW8:AW27)","v":0}]
["Total Compromisos Laborales "]
["5.6 Compromisos Comportamentales Fijados",null,null,null,null,null,null,null,null,null,null,null,null,null,null,null,null,null,null,null,null,null,null,null,null,null,null,null,null,null,null,null,"5.7 Seguimiento Compromisos Comportamentales"]
["N° ","Nivel Jerarquico",null,null,null,null,null,null,null,null,"Competencia Comportamentales",null,null,null,null,null,null,null,null,null,"Conducta Asociada",null,null,null,null,null,null,null,null,null,null,null,"Niveles De Frecuencia",null,null,null,null,null,null,null,null,"Descripción",null,null,null,"Resultado Cuantitativo"]
[{"$f":"+'1.2.3 Concertación'!A32","v":1},{"$f":"+'1.2.3 Concertación'!C32","v":0},null,null,null,null,null,null,null,null,{"$f":"+'1.2.3 Concertación'!H32","v":0},null,null,null,null,null,null,null,null,null,{"$f":"'1.2.3 Concertación'!R32","v":""},null,null,null,null,null,null,null,null,null,null,null,null,null,null,null,null,null,null,null,null,{"$f":"IF(AG32='lista de selecciones'!I181,'lista de selecciones'!J181,IF(AG32='lista de selecciones'!I182,'lista de selecciones'!J182,IF(AG32='lista de selecciones'!I183,'lista de selecciones'!J183,IF(AG32='lista de selecciones'!I184,'lista de selecciones'!J184,0))))","v":0},null,null,null,{"$f":"IF(AG32='lista de selecciones'!$I$181,'lista de selecciones'!$K$181,IF(AG32='lista de selecciones'!$I$182,'lista de selecciones'!$K$182,IF(AG32='lista de selecciones'!$I$183,'lista de selecciones'!$K$183,IF(AG32='lista de selecciones'!$I$184,'lista de selecciones'!$K$184,0))))","v":0}]
[{"$f":"+'1.2.3 Concertación'!A33","v":2},{"$f":"B32","v":0},null,null,null,null,null,null,null,null,{"$f":"+'1.2.3 Concertación'!H33","v":0},null,null,null,null,null,null,null,null,null,{"$f":"'1.2.3 Concertación'!R33","v":""},null,null,null,null,null,null,null,null,null,null,null,null,null,null,null,null,null,null,null,null,{"$f":"IF(AG33='lista de selecciones'!I181,'lista de selecciones'!J181,IF(AG33='lista de selecciones'!I182,'lista de selecciones'!J182,IF(AG33='lista de selecciones'!I183,'lista de selecciones'!J183,IF(AG33='lista de selecciones'!I184,'lista de selecciones'!J184,0))))","v":0},null,null,null,{"$f":"IF(AG33='lista de selecciones'!$I$181,'lista de selecciones'!$K$181,IF(AG33='lista de selecciones'!$I$182,'lista de selecciones'!$K$182,IF(AG33='lista de selecciones'!$I$183,'lista de selecciones'!$K$183,IF(AG33='lista de selecciones'!$I$184,'lista de selecciones'!$K$184,0))))","v":0}]
[{"$f":"+'1.2.3 Concertación'!A34","v":3},{"$f":"B32","v":0},null,null,null,null,null,null,null,null,{"$f":"+'1.2.3 Concertación'!H34","v":0},null,null,null,null,null,null,null,null,null,{"$f":"'1.2.3 Concertación'!R34","v":""},null,null,null,null,null,null,null,null,null,null,null,null,null,null,null,null,null,null,null,null,{"$f":"IF(AG34='lista de selecciones'!I181,'lista de selecciones'!J181,IF(AG34='lista de selecciones'!I183,'lista de selecciones'!J183,IF(AG34='lista de selecciones'!I184,'lista de selecciones'!J184,IF(AG34='lista de selecciones'!I185,'lista de selecciones'!J185,0))))","v":0},null,null,null,{"$f":"IF(AG34='lista de selecciones'!$I$181,'lista de selecciones'!$K$181,IF(AG34='lista de selecciones'!$I$182,'lista de selecciones'!$K$182,IF(AG34='lista de selecciones'!$I$183,'lista de selecciones'!$K$183,IF(AG34='lista de selecciones'!$I$184,'lista de selecciones'!$K$184,0))))","v":0}]
[{"$f":"+'1.2.3 Concertación'!A35","v":4},{"$f":"B33","v":0},null,null,null,null,null,null,null,null,{"$f":"+'1.2.3 Concertación'!H35","v":0},null,null,null,null,null,null,null,null,null,{"$f":"'1.2.3 Concertación'!R35","v":""},null,null,null,null,null,null,null,null,null,null,null,null,null,null,null,null,null,null,null,null,{"$f":"IF(AG35='lista de selecciones'!I181,'lista de selecciones'!J181,IF(AG35='lista de selecciones'!I182,'lista de selecciones'!J182,IF(AG35='lista de selecciones'!I183,'lista de selecciones'!J183,IF(AG35='lista de selecciones'!I184,'lista de selecciones'!J184,0))))","v":0},null,null,null,{"$f":"IF(AG35='lista de selecciones'!$I$181,'lista de selecciones'!$K$181,IF(AG35='lista de selecciones'!$I$182,'lista de selecciones'!$K$182,IF(AG35='lista de selecciones'!$I$183,'lista de selecciones'!$K$183,IF(AG35='lista de selecciones'!$I$184,'lista de selecciones'!$K$184,0))))","v":0}]
["Total Compromisos Comportamentales ",null,null,null,null,null,null,null,null,null,null,null,null,null,null,null,null,null,null,null,null,null,null,null,null,null,null,null,null,null,null,null,null,null,null,null,null,null,null,null,null,null,null,null,null,{"$f":"SUM(AT32:AW35)/4","v":0}]
["Evaluaciones Eventuales Para Compromisos Laborales",null,null,null,null,null,null,null,null,null,null,null,null,null,{"$f":"+'10. Evaluación Eventual Sem II'!M23","v":0},null,null,null,null,"Evaluaciones Eventuales Para Compromisos Comportamentales",null,null,null,null,null,null,null,null,null,null,null,null,null,null,null,{"$f":"+'10. Evaluación Eventual Sem II'!M39","v":0},null,null,null,null,"Total de evaluación eventual ",null,null,null,null,{"$f":"+O37+AJ37","v":0}]
["Calificación Evaluación Compromisos Laborales Segundo Semestre (Sobre 80%)",null,null,null,null,null,null,null,null,null,null,null,null,null,{"$f":"+AW28*80%","v":0},null,null,null,null,"Calificación Total Competencias Comportamentales Segundo Semestre (Sobre 20%)",null,null,null,null,null,null,null,null,null,null,null,null,null,null,null,{"$f":"+(AT36*20%)*10","v":0},null,null,null,null,"5.8 Total de la Calificación Semestre 2",null,null,null,null,{"$f":"IF(AT37>1,((AVERAGE(O37,AJ37))+(AVERAGE(O38,AJ38))),(AVERAGE(O38+AJ38)))","v":0}]
["5.9 Datos Generales"]
["Fecha de Diligenciamiento",null,null,null,null,null,null,null,null,null,null,null,"2025-02-07"]
[null,null,null,null,null,null,null,null,null,null,null,null,"Empleado A Evaluar",null,null,null,null,null,null,null,null,null,null,null,null,"Jefe Inmediato (Primer Evaluador)",null,null,null,null,null,null,null,null,null,null,null,null,null,null,null,"Segundo Evaluador"]
["Nombre Completo",null,null,null,null,null,null,null,null,null,null,null,{"$f":"+'1.2.3 Concertación'!J39","v":0},null,null,null,null,null,null,null,null,null,null,null,null,{"$f":"'1.2.3 Concertación'!P39","v":0},null,null,null,null,null,null,null,null,null,null,null,null,null,null,null,{"$f":"'1.2.3 Concertación'!Z39","v":0}]
["Numero De Documento Identidad",null,null,null,null,null,null,null,null,null,null,null,{"$f":"'1.2.3 Concertación'!J40","v":0},null,null,null,null,null,null,null,null,null,null,null,null,{"$f":"'1.2.3 Concertación'!P40","v":0},null,null,null,null,null,null,null,null,null,null,null,null,null,null,null,{"$f":"'1.2.3 Concertación'!Z40","v":0}]
["Cargo (Denominación-Código-Grado)",null,null,null,null,null,null,null,null,null,null,null,{"$f":"'1.2.3 Concertación'!J41","v":0},null,null,null,null,null,null,null,null,null,null,null,null,{"$f":"'1.2.3 Concertación'!P41","v":0},null,null,null,null,null,null,null,null,null,null,null,null,null,null,null,{"$f":"'1.2.3 Concertación'!Z41","v":0}]
["Dependencia",null,null,null,null,null,null,null,null,null,null,null,{"$f":"'1.2.3 Concertación'!J42","v":0},null,null,null,null,null,null,null,null,null,null,null,null,{"$f":"'1.2.3 Concertación'!P42","v":0},null,null,null,null,null,null,null,null,null,null,null,null,null,null,null,{"$f":"'1.2.3 Concertación'!Z42","v":0}]
["Firmas"]
[]
["5.10 Observaciones"]

{"sheet":"6. Consolidado Anual","index":6,"n_rows":32,"n_cols":13,"rows_kept":32,"cut":false,"hidden":false,"merged":[[1,0,1,13],[4,0,4,4],[5,0,5,1],[5,2,5,4],[5,8,5,9],[2,0,2,2],[2,7,2,8],[2,9,2,11],[15,11,15,13],[15,0,16,1],[15,6,15,10],[6,10,6,11],[2,4,2,5],[4,5,4,9],[5,5,5,7],[6,2,6,4],[6,5,6,7],[4,10,5,11],[3,0,3,13],[6,0,6,1],[6,12,6,13],[2,12,2,13],[4,12,5,13],[6,8,6,9],[29,7,29,13],[26,0,26,6],[27,0,27,6],[26,7,26,13],[15,2,15,5],[16,2,16,5],[17,11,17,13],[28,0,28,6],[28,7,28,13],[24,12,24,13],[24,0,24,1],[18,0,18,1],[19,0,19,1],[18,2,18,5],[19,2,19,5],[19,11,19,13],[10,8,10,9],[10,10,10,11],[10,12,10,13],[32,0,32,13],[20,0,20,1],[20,6,20,10],[20,11,20,13],[21,0,21,13],[22,0,23,13],[20,2,20,5],[24,6,24,9],[24,4,24,5],[31,0,31,13],[30,0,30,13],[29,0,29,6],[27,7,27,13],[16,6,16,10],[14,0,14,1],[11,10,11,13],[12,10,12,13],[8,0,8,4],[8,5,8,9],[9,0,9,1],[9,8,9,9],[11,0,12,4],[11,5,12,9],[13,0,13,13],[8,10,9,11],[8,12,9,13],[10,0,10,1],[10,2,10,4],[10,5,10,7],[18,6,18,10],[19,6,19,10],[18,11,18,13],[0,0,0,13],[25,0,25,1],[25,4,25,5],[25,6,25,9],[25,12,25,13],[16,11,16,13],[17,6,17,10],[14,2,14,13],[17,2,17,5],[9,2,9,4],[9,5,9,7],[7,0,7,13],[17,0,17,1]]}
["Evaluación del Desempeño para Servidores Vinculados \nen Nombramiento Provisional"]
["6. Consolidado Evaluación Anual Definitiva"]
["Periodo Evaluado",null,null,"Desde",null,null,"Hasta",null,null,"No. Días Evaluados en el Año",null,null,{"$f":"IF((H3-E3+1)=1,0,H3-E3+1)","v":0}]
["6.1 Evaluaciones de Compromisos Laborales "]
["Primer Semestre",null,null,null,null,"Segundo Semestre",null,null,null,null,"Consolidado Anual Sobre 100%",null,"Consolidado Sobre El Peso Porcentual De 80%"]
["Puntaje Obtenido",null,"No. Días",null,null,"Puntaje Obtenido",null,null,"No. Días"]
[{"$f":"IF('4. Evaluación Semestral (1)'!O37=0,'4. Evaluación Semestral (1)'!AL28,AVERAGE('4. Evaluación Semestral (1)'!AL28,'9. Evaluación Eventual (Sem I)'!M15))","v":0},null,{"$f":"'4. Evaluación Semestral (1)'!AA4+'9. Evaluación Eventual (Sem I)'!N4","v":0},null,null,{"$f":"IF('5. Evaluación Semestral (2)'!O37=0,'5. Evaluación Semestral (2)'!AW28,AVERAGE('5. Evaluación Semestral (2)'!AW28,'10. Evaluación Eventual Sem II'!M22))","v":0},null,null,{"$f":"'5. Evaluación Semestral (2)'!AG4+'10. Evaluación Eventual Sem II'!N4","v":0},null,{"$f":"IFERROR((((A7*C7)+(F7*I7))/M3),\"\")","v":""},null,{"$f":"IFERROR(K7*80%,\"\")","v":""}]
["6.2 Evaluaciones de Compromisos Comportamentales "]
["Primer Semestre",null,null,null,null,"Segundo Semestre",null,null,null,null,"Consolidado Anual Sobre 100%",null,"Consolidado Sobre El Peso Porcentual De 20%"]
["Puntaje Obtenido",null,"No. Días",null,null,"Puntaje Obtenido",null,null,"No. Días"]
[{"$f":"IF('9. Evaluación Eventual (Sem I)'!M29=0,'4. Evaluación Semestral (1)'!AJ36*10,AVERAGE('4. Evaluación Semestral (1)'!AJ36*10,'9. Evaluación Eventual (Sem I)'!M29*10))","v":0},null,{"$f":"+'4. Evaluación Semestral (1)'!AA4","v":0},null,null,{"$f":"IF('10. Evaluación Eventual Sem II'!M37=0,'5. Evaluación Semestral (2)'!AT36*10,AVERAGE('5. Evaluación Semestral (2)'!AT36*10,'10. Evaluación Eventual Sem II'!M37*10))","v":0},null,null,{"$f":"+'5. Evaluación Semestral (2)'!AG4+'10. Evaluación Eventual Sem II'!N4","v":0},null,{"$f":"IFERROR((((A11*C11)+(F11*I11))/M3),\"\")","v":""},null,{"$f":"IFERROR(K11*20%,\"\")","v":""}]
["6.3 Calificación Definitiva ",null,null,null,null,{"$f":"IFERROR($M$11+$M$7,\"\")","v":""},null,null,null,null,"Nivel"]
[null,null,null,null,null,null,null,null,null,null,{"$f":"IF(F12<=69,'lista de selecciones'!A162,IF(F12<90,'lista de selecciones'!A161,IF(F12>=90,'lista de selecciones'!A160)))","v":"Sobresaliente "}]
["6.4 Notificación"]
["Ciudad - Fecha de Diligenciamiento del Formato",null,"2025-02-07"]
["Nombre Completo",null,"Empleado a Evaluar",null,null,null,"Jefe Inmediato (Primer Evaluador)",null,null,null,null,"Segundo Evaluador "]
[null,null,{"$f":"+'1.2.3 Concertación'!J39","v":0},null,null,null,{"$f":"'1.2.3 Concertación'!P39","v":0},null,null,null,null,{"$f":"+'1.2.3 Concertación'!Z39","v":0}]
["Numero de Documento Identidad",null,{"$f":"+'1.2.3 Concertación'!J40","v":0},null,null,null,{"$f":"'1.2.3 Concertación'!P40","v":0},null,null,null,null,{"$f":"+'1.2.3 Concertación'!Z40","v":0}]
["Cargo (Denominación-Código-Grado)",null,{"$f":"+'1.2.3 Concertación'!J41","v":0},null,null,null,{"$f":"'1.2.3 Concertación'!P41","v":0},null,null,null,null,{"$f":"+'1.2.3 Concertación'!Z41","v":0}]
["Dependencia",null,{"$f":"+'1.2.3 Concertación'!J42","v":0},null,null,null,{"$f":"'1.2.3 Concertación'!P42","v":0},null,null,null,null,{"$f":"+'1.2.3 Concertación'!Z42","v":0}]
["Firmas"]
["6.5 Recursos"]
["Contra esta calificación procede el recurso de reposición y en subsidio el de apelación interpuestos ante el evaluador dentro de los cinco (5) días hábiles siguientes a la fecha de notificación. Los recursos deben presentarse por escrito, personalmente o mediante apoderado y exponiendo los motivos de inconformidad."]
[]
["Interpuso recurso de Reposición",null,null,"Fecha",null,null,"Interpuso Recurso de Apelación",null,null,null,null,"Fecha"]
[]
[]
["Nombre del Evaluado",null,null,null,null,null,null,"Firma del Evaluado"]
[]
["Nombre del Notificador",null,null,null,null,null,null,"Firma del Notificador"]
[]
["6.6 Observaciones"]

{"sheet":"Instructivo CMI","index":7,"n_rows":1,"n_cols":1,"rows_kept":1,"cut":false,"hidden":false,"merged":[[0,0,49,7]]}
["                \n              \n\n\nInstrucciones Compromisos de Mejoramiento Individual\n\n\nEnuncie los aspectos susceptibles de mejorar o de potenciar del funcionario (Se pueden incluir aspectos funcionales, comportamentales o ambos):  Se eligen los tres aspectos de la evaluación del desempeño o del acuerdo de gestión que hayan obtenido la valoración mas baja, o aquellos que sin ser bajos requieran ser fortalecidos o mejorados. El formato debe implementarse si la calificación es igual o menor de 85 puntos.\n\nDescripción del hecho  o situación a mejorar: Es la explicación del hecho o situación  que afecta el desarrollo de las actividades, los procedimientos, el proceso y/o  conducta o comportamiento, según sea el caso,  para  el logro de los objetivos y/o el clima organizacional de la dependencia.   \n\nRecursos o acciones requeridos para el mejoramiento (competencias asociadas: educación, formación, habilidades, experiencia):    En caso de que se requieran recursos específicos para el  cumplimiento de la acción de mejora, estos se deben especificar. Estos pueden ir relacionados con el plan de capacitación.\n\nFecha de cumplimiento: Plazo límite establecido para el cumplimiento de la acción de mejora. Así mismo de acuerdo con la fecha establecida se debe efectuar el seguimiento respectivo a las acciones.  \n\nObservaciones: Comentarios adicionales que se considere necesario dejar registrados.\n \nFecha de Concertación: Se debe diligenciar la fecha en la cual se esta concertando las acciones de mejora.\n\nSeguimiento y verificación del Cumplimiento a las acciones de  mejora (jefe dependencia) \n\nAcciones de mejoramiento concertadas: Es la narración de la acción concertada a implementar para mejorar la situación o hecho encontrado. Se debe redactar empleando un verbo en infinitivo que  signifique una acción evidenciable de la cual se debe dejar soporte.\n\nEvidencias - Soportes del cumplimiento de la acción de mejora: Se debe relacionar las fuentes de verificación del cumplimiento de la acción de mejora, para la verificación que hará la Oficina Asesora de Control Interno. \n\nCumplimiento: Se debe seleccionar con una X si la acción determinada cumplio o no con lo establecido en el Plan de Mejoramiento.\n\nFecha de seguimiento o cierre: Se debe diligenciar la fecha en la cual se realiza el seguimiento o el cierre de la acción concertada. "]

{"sheet":"7. Compromisos Mejoramiento I","index":8,"n_rows":41,"n_cols":18,"rows_kept":41,"cut":false,"hidden":false,"merged":[[1,0,1,17],[2,0,2,17],[3,0,3,17],[4,0,4,2],[4,3,4,10],[4,12,4,16],[5,0,5,17],[6,0,6,1],[6,3,6,10],[6,12,6,16],[9,0,9,1],[9,3,9,9],[14,0,14,3],[14,4,14,7],[14,8,14,11],[14,12,14,16],[15,0,15,3],[11,12,11,16],[12,0,12,17],[33,11,33,14],[40,0,42,17],[34,0,34,10],[34,11,34,14],[35,0,35,10],[35,11,35,14],[36,0,36,10],[36,11,36,14],[38,0,38,17],[39,0,39,17],[13,0,13,3],[13,4,13,7],[13,8,13,11],[13,12,13,16],[37,0,37,10],[37,11,37,14],[15,4,15,7],[15,8,15,11],[15,12,15,16],[26,0,26,7],[26,11,26,16],[31,15,31,16],[16,0,16,3],[16,4,16,7],[16,8,16,11],[16,12,16,16],[0,0,0,17],[29,0,29,17],[33,0,33,10],[17,0,17,3],[17,4,17,7],[17,8,17,11],[17,12,17,16],[19,2,19,4],[23,0,23,7],[23,11,23,16],[30,0,30,17],[31,0,32,10],[31,11,32,14],[31,17,32,17],[11,0,11,1],[11,3,11,10]]}
["Evaluación del Desempeño para Servidores Vinculados \nen Nombramiento Provisional"]
["7. Compromisos de Mejoramiento Individual (Jefe Inmediato  – Servidor)"]
["Estimados Servidores: Los planes de mejoramiento deben ser concertados anualmente con seguimiento obligatorio semestral."]
[]
["Nombre de la Dependencia: ",null,null,{"$f":"'1.2.3 Concertación'!J42","v":0},null,null,null,null,null,null,null,"Fecha: ","dd/mm/aaaa"]
[]
["Nombre de Servidor: ",null,null,{"$f":"'1.2.3 Concertación'!J39","v":0},null,null,null,null,null,null,null,"Cargo:",{"$f":"'1.2.3 Concertación'!J41","v":0}]
[]
[]
["Naturaleza del Cargo:",null,null,"Nombramiento Provisional"]
[]
["Nombre del Jefe Inmediato:",null,null,{"$f":"'1.2.3 Concertación'!P39","v":0},null,null,null,null,null,null,null,"Cargo:",{"$f":"'1.2.3 Concertación'!P41","v":0}]
[]
["Enuncie los Aspectos Susceptibles de Mejorar o de Potenciar del Funcionario (Se Pueden Incluir Aspectos Funcionales, Comportamentales o Ambos)",null,null,null,"Descripción del Hecho a Mejorar o Potenciar ",null,null,null,"Recursos Requeridos",null,null,null,"Fecha de Cumplimiento",null,null,null,null,"Observaciones "]
[]
[]
[]
[]
[]
["Fecha de Concertación: ",null,"dd/mm/aa"]
[]
["Acordado por:"]
[]
[{"$f":"D7","v":0},null,null,null,null,null,null,null,null,null,null,{"$f":"D12","v":0}]
["Nombre del Servidor",null,null,null,null,null,null,null,null,null,null,"Nombre Jefe Inmediato"]
[]
[]
["Firma del Servidor ",null,null,null,null,null,null,null,null,null,null,"Firma del Jefe Inmediato"]
[]
["Compromisos de Mejoramiento Individual (Jefe Inmediato  – Servidor)"]
["Seguimiento y Verificación del Cumplimiento de las Acciones de Mejora  (Jefe Inmediato)"]
["Acciones de Mejora Concertadas ",null,null,null,null,null,null,null,null,null,null,"Evidencias – Soportes del Cumplimiento de la Acción de Mejora",null,null,null,"Cumplimiento",null,"Fecha de Seguimiento o Cierre"]
[null,null,null,null,null,null,null,null,null,null,null,null,null,null,null,"Si","No"]
[]
[]
[]
[]
[]
[]
[]
["Observaciones: "]

{"sheet":"8. Evaluación Extraordinaria FP","index":9,"n_rows":60,"n_cols":25,"rows_kept":60,"cut":false,"hidden":false,"merged":[[1,0,1,24],[4,9,4,10],[9,10,9,12],[10,10,10,12],[19,10,19,12],[8,10,8,12],[3,14,3,16],[3,11,3,13],[3,9,3,10],[3,7,3,8],[2,0,2,2],[7,21,10,21],[2,3,2,24],[3,0,4,0],[7,0,10,3],[4,1,4,2],[4,3,4,4],[6,4,6,9],[6,10,6,12],[7,10,7,12],[7,4,10,9],[4,5,4,6],[5,0,5,19],[11,0,14,3],[3,5,3,6],[3,3,3,4],[4,7,4,8],[15,22,18,22],[11,20,14,20],[3,1,3,2],[7,22,10,22],[6,0,6,3],[19,0,22,3],[21,10,21,12],[20,10,20,12],[11,4,14,9],[15,0,18,3],[15,4,18,9],[19,4,22,9],[16,10,16,12],[17,10,17,12],[13,10,13,12],[14,10,14,12],[15,10,15,12],[11,10,11,12],[12,10,12,12],[22,10,22,12],[19,22,22,22],[19,23,22,23],[19,24,22,24],[11,21,14,21],[11,13,14,19],[15,13,18,19],[19,13,22,19],[15,20,18,20],[11,22,14,22],[11,23,14,23],[11,24,14,24],[55,1,55,7],[57,1,57,7],[56,1,56,7],[32,0,33,1],[32,2,33,4],[38,23,38,24],[38,15,38,16],[37,15,37,16],[45,17,45,24],[45,9,45,16],[43,0,43,24],[44,3,44,24],[36,23,36,24],[37,23,37,24],[36,11,36,14],[37,11,37,14],[36,21,36,22],[52,7,52,8],[46,3,46,8],[45,3,45,8],[39,23,40,24],[40,3,40,5],[40,6,40,8],[48,17,48,24],[60,0,60,24],[54,13,54,21],[55,13,55,21],[56,13,56,21],[57,13,57,21],[39,0,40,2],[39,3,39,5],[39,6,39,8],[39,9,40,9],[39,10,40,12],[39,13,40,22],[54,1,54,6],[51,0,51,24],[52,0,52,5],[52,9,52,10],[52,11,52,20],[52,22,52,23],[59,0,59,24],[48,3,48,8],[41,6,42,10],[41,11,42,16],[41,17,42,24],[46,9,46,16],[41,5,42,5],[49,17,49,24],[50,17,50,24],[47,17,47,24],[47,9,47,16],[48,9,48,16],[49,9,49,16],[50,9,50,16],[41,0,42,4],[48,0,48,2],[45,0,45,2],[46,0,46,2],[50,0,50,2],[50,3,50,8],[49,0,49,2],[49,3,49,8],[47,0,47,2],[47,3,47,8],[46,17,46,24],[44,0,44,2],[27,0,28,19],[25,10,25,12],[26,10,26,12],[15,24,18,24],[38,8,38,14],[38,17,38,22],[35,2,35,4],[32,5,33,7],[33,11,33,14],[33,15,33,16],[34,2,34,4],[38,0,38,7],[37,21,37,22],[35,0,35,1],[32,17,32,24],[34,5,34,7],[35,5,35,7],[37,5,37,7],[35,8,35,10],[34,8,34,10],[36,8,36,10],[34,17,34,20],[33,23,33,24],[34,23,34,24],[32,8,32,16],[36,17,36,20],[37,17,37,20],[34,11,34,14],[3,23,4,24],[5,23,5,24],[27,24,28,24],[27,23,28,23],[27,21,28,21],[27,20,28,20],[27,22,28,22],[7,13,10,19],[7,20,10,20],[5,20,5,22],[7,23,10,23],[7,24,10,24],[15,21,18,21],[23,20,26,20],[4,14,4,16],[6,13,6,19],[4,11,4,13],[3,17,4,22],[18,10,18,12],[23,10,23,12],[37,8,37,10],[35,15,35,16],[36,15,36,16],[35,23,35,24],[35,11,35,14],[35,21,35,22],[33,8,33,10],[34,0,34,1],[36,0,36,1],[37,0,37,1],[36,2,36,4],[37,2,37,4],[36,5,36,7],[35,17,35,20],[33,17,33,20],[34,15,34,16],[33,21,33,22],[34,21,34,22],[0,0,0,24],[29,9,30,9],[29,10,30,12],[58,0,58,24],[31,0,31,7],[29,6,29,8],[23,23,26,23],[23,24,26,24],[15,23,18,23],[24,10,24,12],[29,0,30,2],[29,23,30,24],[19,20,22,20],[29,3,29,5],[30,3,30,5],[30,6,30,8],[29,13,30,22],[19,21,22,21],[23,21,26,21],[23,22,26,22],[23,0,26,3],[23,4,26,9],[23,13,26,19],[31,8,31,24]]}
["Evaluación del Desempeño para Servidores Vinculados en Nombramiento Provisional"]
[" 8. Evaluacion Extraordinaria"]
["8.1 Tipo de Empleo",null,null,"Nombramiento Provisional. Seguimiento Cumplimiento de Funciones Empleados Vinculados Mediante Nombramiento Provisional\n(No Genera Derechos de Carrera)"]
["8.2 Fecha de Evaluación ","Previa a la Extraordinaria (Si Hubo)",null,"Desde",null,null,null,"Hasta",null,null,null,"No. Días Evaluados ",null,null,{"$f":"+IF((J4-F4+1)=1,0,J4-F4+1)","v":0},null,null,"8.3 Nivel del Empleo",null,null,null,null,null,{"$f":"'1.2.3 Concertación'!AC5","v":0}]
[null,"Evaluación Último Período",null,"Desde",null,null,null,"Hasta",null,null,null,"No. Días Evaluados ",null,null,{"$f":"IF((J5-F5+1)=1,0,J5-F5+1)","v":0}]
["8.4 Evaluacion de Compromisos Laborales",null,null,null,null,null,null,null,null,null,null,null,null,null,null,null,null,null,null,null,"8.5  Evaluación Realizada Previa a la Extraordinaria (Si Hubo)",null,null,"8.6 Evaluación Último Período"]
["Compromiso Laboral",null,null,null,"Evidencia del Cumplimiento del Compromiso",null,null,null,null,null,"Requisitos de Calidad",null,null,"Comentarios  - Ruta de Evidencia",null,null,null,null,null,null,"Peso","Logro %","Puntaje","Logro %","Puntaje"]
[{"$f":"'1.2.3 Concertación'!F9","v":0},null,null,null,{"$f":"'1.2.3 Concertación'!Y9","v":0},null,null,null,null,null,{"$f":"'1.2.3 Concertación'!N9","v":0},null,null,null,null,null,null,null,null,null,{"$f":"'1.2.3 Concertación'!AF9","v":0},null,{"$f":"+(U8*V8)","v":0},null,{"$f":"+(U8*X8)","v":0}]
[null,null,null,null,null,null,null,null,null,null,{"$f":"'1.2.3 Concertación'!N10","v":0}]
[null,null,null,null,null,null,null,null,null,null,{"$f":"'1.2.3 Concertación'!N11","v":0}]
[null,null,null,null,null,null,null,null,null,null,{"$f":"'1.2.3 Concertación'!N12","v":0}]
[{"$f":"'1.2.3 Concertación'!F13","v":0},null,null,null,{"$f":"'1.2.3 Concertación'!Y13","v":0},null,null,null,null,null,{"$f":"'1.2.3 Concertación'!N13","v":0},null,null,null,null,null,null,null,null,null,{"$f":"'1.2.3 Concertación'!AF13","v":0},null,{"$f":"+(U12*V12)","v":0},null,{"$f":"+(U12*X12)","v":0}]
[null,null,null,null,null,null,null,null,null,null,{"$f":"'1.2.3 Concertación'!N14","v":0}]
[null,null,null,null,null,null,null,null,null,null,{"$f":"'1.2.3 Concertación'!N15","v":0}]
[null,null,null,null,null,null,null,null,null,null,{"$f":"'1.2.3 Concertación'!N16","v":0}]
[{"$f":"'1.2.3 Concertación'!F17","v":0},null,null,null,{"$f":"'1.2.3 Concertación'!Y17","v":0},null,null,null,null,null,{"$f":"'1.2.3 Concertación'!N17","v":0},null,null,null,null,null,null,null,null,null,{"$f":"'1.2.3 Concertación'!AF17","v":0},null,{"$f":"+(U16*V16)","v":0},null,{"$f":"+(U16*X16)","v":0}]
[null,null,null,null,null,null,null,null,null,null,{"$f":"'1.2.3 Concertación'!N18","v":0}]
[null,null,null,null,null,null,null,null,null,null,{"$f":"'1.2.3 Concertación'!N19","v":0}]
[null,null,null,null,null,null,null,null,null,null,{"$f":"'1.2.3 Concertación'!N20","v":0}]
[{"$f":"'1.2.3 Concertación'!F21","v":0},null,null,null,{"$f":"'1.2.3 Concertación'!Y21","v":0},null,null,null,null,null,{"$f":"'1.2.3 Concertación'!N21","v":0},null,null,null,null,null,null,null,null,null,{"$f":"'1.2.3 Concertación'!AF21","v":0},null,{"$f":"+(U20*V20)","v":0},null,{"$f":"+(U20*X20)","v":0}]
[null,null,null,null,null,null,null,null,null,null,{"$f":"'1.2.3 Concertación'!N22","v":0}]
[null,null,null,null,null,null,null,null,null,null,{"$f":"'1.2.3 Concertación'!N23","v":0}]
[null,null,null,null,null,null,null,null,null,null,{"$f":"'1.2.3 Concertación'!N24","v":0}]
[{"$f":"'1.2.3 Concertación'!F25","v":0},null,null,null,{"$f":"'1.2.3 Concertación'!Y25","v":0},null,null,null,null,null,{"$f":"'1.2.3 Concertación'!N25","v":0},null,null,null,null,null,null,null,null,null,{"$f":"'1.2.3 Concertación'!AF25","v":0},null,{"$f":"+(U24*V24)","v":0},null,{"$f":"+(U24*X24)","v":0}]
[null,null,null,null,null,null,null,null,null,null,{"$f":"'1.2.3 Concertación'!N26","v":0}]
[null,null,null,null,null,null,null,null,null,null,{"$f":"'1.2.3 Concertación'!N27","v":0}]
[null,null,null,null,null,null,null,null,null,null,{"$f":"'1.2.3 Concertación'!N28","v":0}]
[" Total Compromisos Laborales",null,null,null,null,null,null,null,null,null,null,null,null,null,null,null,null,null,null,null,{"$f":"SUM(U8:U27)","v":0},null,{"$f":"SUM(W8:W27)","v":0},null,{"$f":"SUM(Y8:Y27)","v":0}]
[]
["% Participación Días Laborados para la Evaluación Extraordinaria",null,null,"Previa a la Extraordinaria (Si Hubo)",null,null,{"$f":"+IFERROR(+O4/($O$4+$O$5),0)","v":0},null,null,"Sobre 100%",{"$f":"+(W28*G30+Y28*G31)","v":0},null,null,"8.7 Calificación Evaluaciòn Primer Semestre (Sobre 80%) ",null,null,null,null,null,null,null,null,null,{"$f":"+K30*80%","v":0}]
[null,null,null,"Evaluación Último Período",null,null,{"$f":"+IFERROR(+O5/($O$4+$O$5),0)","v":0}]
["8.8 Compromisos Comportamentales Fijados",null,null,null,null,null,null,null,"8.9 Evaluación de Compromisos Comportamentales"]
["Nivel Jerarquico",null,"Competencias Comportamentales",null,null,"Conducta Asociada ",null,null,"Eva. Previa a la Extr.\n(Si Hubo)",null,null,null,null,null,null,null,null,"Eva. Último Período."]
[null,null,null,null,null,null,null,null,"Niveles De Frecuencia",null,null,"Descripción ",null,null,null,"Resultados Cuantitativos",null,"Niveles de Frecuencia",null,null,null,"Descripción Cualitativa",null,"Resultado Cuantitativo"]
[{"$f":"'1.2.3 Concertación'!C32","v":0},null,{"$f":"'1.2.3 Concertación'!H32","v":0},null,null,{"$f":"'1.2.3 Concertación'!R32","v":""},null,null,null,null,null,{"$f":"IF(I35='lista de selecciones'!$I$188,'lista de selecciones'!$J$188,IF('8. Evaluación Extraordinaria FP'!I35='lista de selecciones'!$I$189,'lista de selecciones'!$J$189,IF('8. Evaluación Extraordinaria FP'!I35='lista de selecciones'!$I$190,'lista de selecciones'!$J$190,IF('8. Evaluación Extraordinaria FP'!I35='lista de selecciones'!$I$191,'lista de selecciones'!$J$191,0))))","v":0},null,null,null,{"$f":"IF(I35='lista de selecciones'!I188,'lista de selecciones'!K188,IF(I35='lista de selecciones'!I189,'lista de selecciones'!K189,IF(I35='lista de selecciones'!I190,'lista de selecciones'!K190,IF(I35='lista de selecciones'!I191,'lista de selecciones'!K191,0))))","v":0},null,null,null,null,null,{"$f":"IF(R35='lista de selecciones'!$I$188,'lista de selecciones'!$J$188,IF(R35='lista de selecciones'!$I$189,'lista de selecciones'!$J$189,IF(R35='lista de selecciones'!$I$190,'lista de selecciones'!$J$190,IF(R35='lista de selecciones'!$I$191,'lista de selecciones'!$J$191,0))))","v":0},null,{"$f":"IF(R35='lista de selecciones'!I188,'lista de selecciones'!K188,IF(R35='lista de selecciones'!I189,'lista de selecciones'!K189,IF(R35='lista de selecciones'!I190,'lista de selecciones'!K190,IF(R35='lista de selecciones'!I191,'lista de selecciones'!K191,0))))","v":0}]
[{"$f":"A35","v":0},null,{"$f":"'1.2.3 Concertación'!H33","v":0},null,null,{"$f":"'1.2.3 Concertación'!R33","v":""},null,null,null,null,null,{"$f":"IF(I36='lista de selecciones'!$I$188,'lista de selecciones'!$J$188,IF('8. Evaluación Extraordinaria FP'!I36='lista de selecciones'!$I$189,'lista de selecciones'!$J$189,IF('8. Evaluación Extraordinaria FP'!I36='lista de selecciones'!$I$190,'lista de selecciones'!$J$190,IF('8. Evaluación Extraordinaria FP'!I36='lista de selecciones'!$I$191,'lista de selecciones'!$J$191,0))))","v":0},null,null,null,{"$f":"IF(I36='lista de selecciones'!I188,'lista de selecciones'!K188,IF(I36='lista de selecciones'!I189,'lista de selecciones'!K189,IF(I36='lista de selecciones'!I190,'lista de selecciones'!K190,IF(I36='lista de selecciones'!I191,'lista de selecciones'!K191,0))))","v":0},null,null,null,null,null,{"$f":"IF(R36='lista de selecciones'!$I$188,'lista de selecciones'!$J$188,IF(R36='lista de selecciones'!$I$189,'lista de selecciones'!$J$189,IF(R36='lista de selecciones'!$I$190,'lista de selecciones'!$J$190,IF(R36='lista de selecciones'!$I$191,'lista de selecciones'!$J$191,0))))","v":0},null,{"$f":"IF(R36='lista de selecciones'!I188,'lista de selecciones'!K188,IF(R36='lista de selecciones'!I189,'lista de selecciones'!K189,IF(R36='lista de selecciones'!I190,'lista de selecciones'!K190,IF(R36='lista de selecciones'!I191,'lista de selecciones'!K191,0))))","v":0}]
[{"$f":"A35","v":0},null,{"$f":"'1.2.3 Concertación'!H34","v":0},null,null,{"$f":"'1.2.3 Concertación'!R34","v":""},null,null,null,null,null,{"$f":"IF(I37='lista de selecciones'!$I$188,'lista de selecciones'!$J$188,IF('8. Evaluación Extraordinaria FP'!I37='lista de selecciones'!$I$189,'lista de selecciones'!$J$189,IF('8. Evaluación Extraordinaria FP'!I37='lista de selecciones'!$I$190,'lista de selecciones'!$J$190,IF('8. Evaluación Extraordinaria FP'!I37='lista de selecciones'!$I$191,'lista de selecciones'!$J$191,0))))","v":0},null,null,null,{"$f":"IF(I37='lista de selecciones'!I188,'lista de selecciones'!K188,IF(I37='lista de selecciones'!I189,'lista de selecciones'!K189,IF(I37='lista de selecciones'!I190,'lista de selecciones'!K190,IF(I37='lista de selecciones'!I191,'lista de selecciones'!K191,0))))","v":0},null,null,null,null,null,{"$f":"IF(R37='lista de selecciones'!$I$188,'lista de selecciones'!$J$188,IF(R37='lista de selecciones'!$I$189,'lista de selecciones'!$J$189,IF(R37='lista de selecciones'!$I$190,'lista de selecciones'!$J$190,IF(R37='lista de selecciones'!$I$191,'lista de selecciones'!$J$191,0))))","v":0},null,{"$f":"IF(R37='lista de selecciones'!I188,'lista de selecciones'!K188,IF(R37='lista de selecciones'!I189,'lista de selecciones'!K189,IF(R37='lista de selecciones'!I190,'lista de selecciones'!K190,IF(R37='lista de selecciones'!I191,'lista de selecciones'!K191,0))))","v":0}]
[{"$f":"A36","v":0},null,{"$f":"'1.2.3 Concertación'!H35","v":0},null,null,{"$f":"'1.2.3 Concertación'!R35","v":""},null,null,null,null,null,{"$f":"IF(I38='lista de selecciones'!$I$188,'lista de selecciones'!$J$188,IF('8. Evaluación Extraordinaria FP'!I38='lista de selecciones'!$I$189,'lista de selecciones'!$J$189,IF('8. Evaluación Extraordinaria FP'!I38='lista de selecciones'!$I$190,'lista de selecciones'!$J$190,IF('8. Evaluación Extraordinaria FP'!I38='lista de selecciones'!$I$191,'lista de selecciones'!$J$191,0))))","v":0},null,null,null,{"$f":"IF(I38='lista de selecciones'!I188,'lista de selecciones'!K188,IF(I38='lista de selecciones'!I189,'lista de selecciones'!K189,IF(I38='lista de selecciones'!I190,'lista de selecciones'!K190,IF(I38='lista de selecciones'!I191,'lista de selecciones'!K191,0))))","v":0},null,null,null,null,null,{"$f":"IF(R38='lista de selecciones'!$I$188,'lista de selecciones'!$J$188,IF(R38='lista de selecciones'!$I$189,'lista de selecciones'!$J$189,IF(R38='lista de selecciones'!$I$190,'lista de selecciones'!$J$190,IF(R38='lista de selecciones'!$I$191,'lista de selecciones'!$J$191,0))))","v":0},null,{"$f":"IF(R38='lista de selecciones'!I188,'lista de selecciones'!K188,IF(R38='lista de selecciones'!I189,'lista de selecciones'!K189,IF(R38='lista de selecciones'!I190,'lista de selecciones'!K190,IF(R38='lista de selecciones'!I191,'lista de selecciones'!K191,0))))","v":0}]
[null,null,null,null,null,null,null,null,"Total Compromisos Comportamentales Previa a la Evaluación Extraordinaria (Si Hubo) ",null,null,null,null,null,null,{"$f":"+SUM(P35:Q38)/4","v":0},null,"Total Compromisos Comportamentales Último Periodo ",null,null,null,null,null,{"$f":"+SUM(X35:Y38)/4","v":0}]
["% Participación Días Laborados para la Evaluación Extraordinaria",null,null,"Previa a la Extraordinaria (Si Hubo)",null,null,{"$f":"+IFERROR(+O4/($O$4+$O$5),0)","v":0},null,null,"Sobre 100%",{"$f":"+(P39*G40+X39*G41)","v":0},null,null,"8.10 Calificación Total Competencias Comportamentales (Sobre 20%)",null,null,null,null,null,null,null,null,null,{"$f":"+(K40*20%)*10","v":0}]
[null,null,null,"Evaluación Último Período",null,null,{"$f":"+IFERROR(+O5/($O$4+$O$5),0)","v":0}]
["Resultados Consolidados Evaluación Extraordinaria",null,null,null,null,"Resultados ",{"$f":"+X30+X40","v":0},null,null,null,null,"Nivel de Calificación",null,null,null,null,null,{"$f":"+IF(G42<=69,'lista de selecciones'!A162,IF(G42<90,'lista de selecciones'!A161,IF(G42>=90,'lista de selecciones'!A160)))","v":"No satisfactorio"}]
[]
["8.11 Notificación"]
["Lugar y Fecha de Diligenciamiento"]
[null,null,null,"Empleado a Evaluar",null,null,null,null,null,"Jefe Inmediato (Primer Evaluador)",null,null,null,null,null,null,null,"Segundo Evaluador \n"]
["Nombre Completo",null,null,{"$f":"'1.2.3 Concertación'!J39","v":0},null,null,null,null,null,{"$f":"'1.2.3 Concertación'!P39","v":0},null,null,null,null,null,null,null,{"$f":"'1.2.3 Concertación'!Z39","v":0}]
["Numero de Documento Identidad",null,null,{"$f":"'1.2.3 Concertación'!J40","v":0},null,null,null,null,null,{"$f":"'1.2.3 Concertación'!P40","v":0},null,null,null,null,null,null,null,{"$f":"'1.2.3 Concertación'!Z40","v":0}]
["Cargo (Denominación-Código-Grado)",null,null,{"$f":"'1.2.3 Concertación'!J41","v":0},null,null,null,null,null,{"$f":"'1.2.3 Concertación'!P41","v":0},null,null,null,null,null,null,null,{"$f":"'1.2.3 Concertación'!Z41","v":0}]
["Dependencia",null,null,{"$f":"'1.2.3 Concertación'!J42","v":0},null,null,null,null,null,{"$f":"'1.2.3 Concertación'!P42","v":0},null,null,null,null,null,null,null,{"$f":"'1.2.3 Concertación'!Z42","v":0}]
["Firmas"]
["Contra Esta Calificación Procede El Recurso De Reposición Y En Subsidio El De Apelación Interpuestos Ante El Evaluador Dentro De Los Cinco (5) Días Hábiles Siguientes A La Fecha De Notificación. Los Recursos Deben Presentarse Por Escrito, Personalmente O Mediante Apoderado Y Exponiendo Los Motivos De Inconformidad."]
["Interpuso Recurso de Reposición",null,null,null,null,null,null,"Fecha",null,null,null,"Interpuso Recurso de Apelación",null,null,null,null,null,null,null,null,null,null,"Fecha"]
[]
[]
[null,"Nombre del Evaluado",null,null,null,null,null,null,null,null,null,null,null,"Firma del Evaluado"]
[]
[null,"Nombre del Notificador",null,null,null,null,null,null,null,null,null,null,null,"Firma del Notificador"]
[]
["8.12 Observaciones"]

{"sheet":"9. Evaluación Eventual (Sem I)","index":10,"n_rows":40,"n_cols":19,"rows_kept":40,"cut":false,"hidden":false,"merged":[[35,0,35,2],[3,14,3,15],[40,0,40,18],[4,0,5,3],[4,4,5,8],[14,12,14,18],[14,0,14,11],[37,10,37,14],[33,15,33,18],[34,15,34,18],[35,15,35,18],[36,15,36,18],[37,15,37,18],[35,10,35,14],[36,10,36,14],[39,0,39,18],[37,0,37,2],[3,0,3,3],[1,0,1,18],[33,0,33,2],[33,10,33,14],[6,0,6,3],[6,4,6,8],[8,0,8,3],[8,4,8,8],[10,0,10,3],[9,0,9,3],[9,10,9,11],[11,10,11,11],[11,18,13,18],[12,0,13,5],[20,0,21,1],[17,0,17,1],[18,6,19,11],[20,6,21,11],[22,6,23,11],[20,18,21,18],[18,18,19,18],[32,15,32,18],[32,3,32,9],[33,3,33,9],[34,3,34,9],[24,2,25,5],[34,0,34,2],[24,0,25,1],[32,0,32,2],[30,0,30,18],[31,0,31,2],[31,3,31,18],[24,18,25,18],[29,0,29,11],[29,12,29,18],[24,6,25,11],[27,0,27,11],[3,16,3,18],[10,10,10,11],[7,0,7,3],[4,9,5,9],[3,5,3,6],[10,4,10,8],[6,10,6,11],[4,10,5,11],[4,12,4,18],[7,4,7,8],[13,6,13,10],[37,3,37,9],[8,10,8,11],[7,10,7,11],[34,10,34,14],[32,10,32,14],[17,6,17,11],[11,0,11,9],[36,0,36,2],[35,3,35,9],[36,3,36,9],[28,0,28,11],[28,12,28,18],[16,0,16,18],[26,0,26,11],[26,18,27,18],[0,0,0,18],[38,0,38,18],[2,0,2,18],[17,2,17,5],[18,2,19,5],[20,2,21,5],[22,2,23,5],[18,0,19,1],[22,0,23,1],[22,18,23,18],[3,10,3,12],[3,7,3,8],[9,4,9,8],[15,0,15,11],[15,12,15,18],[12,6,12,10]]}
["Evaluación del Desempeño para Servidores Vinculados en Nombramiento Provisional"]
["9. Compromisos Laborales - Evaluación Eventual (Sem I)"]
["Nombramiento Provisional. Seguimiento Cumplimiento de Funciones Empleados Vinculados Mediante Nombramiento Provisional\n(No Genera Derechos de Carrera)"]
["Periodo Evaluado",null,null,null,"Desde",null,null,"Hasta",null,null,"No. Días Concertados en el Año",null,null,{"$f":"+IF((J4-F4+1)=1,0,J4-F4+1)","v":0},"Nivel del Empleo",null,{"$f":"'1.2.3 Concertación'!AC5","v":0}]
["Compromiso Laboral",null,null,null,"Evidencia del Cumplimiento del Compromiso",null,null,null,null,"Comentarios - Ruta de Evidencia","Peso Porcentual del Compromiso",null,"Calificación Eventuales"]
[null,null,null,null,null,null,null,null,null,null,null,null,"Cambio de Evaluador","Traslado","Situaciones Administrativas Superiores a 30 Días","Lapso Entre Ultima EDL y Final del Periodo","Ajuste de Compromisos","Nombramiento en Periodo de Prueba en Ascenso","Total Semestre"]
[{"$f":"'1.2.3 Concertación'!F9","v":0},null,null,null,{"$f":"'1.2.3 Concertación'!Y9","v":0},null,null,null,null,null,{"$f":"'1.2.3 Concertación'!AF9","v":0},null,null,null,null,null,null,null,{"$f":"+IF($L$13=\"No Aplica\",0,SUM(((K7*M7)*$M$14),((K7*N7)*$N$14),((K7*O7)*$O$14),((K7*P7)*$P$14),((K7*Q7)*$Q$14),((K7*R7)*$R$14)))","v":0}]
[{"$f":"'1.2.3 Concertación'!F13","v":0},null,null,null,{"$f":"'1.2.3 Concertación'!Y13","v":0},null,null,null,null,null,{"$f":"'1.2.3 Concertación'!AF13","v":0},null,null,null,null,null,null,null,{"$f":"+IF($L$13=\"No Aplica\",0,SUM(((K8*M8)*$M$14),((K8*N8)*$N$14),((K8*O8)*$O$14),((K8*P8)*$P$14),((K8*Q8)*$Q$14),((K8*R8)*$R$14)))","v":0}]
[{"$f":"'1.2.3 Concertación'!F17","v":0},null,null,null,{"$f":"'1.2.3 Concertación'!Y17","v":0},null,null,null,null,null,{"$f":"'1.2.3 Concertación'!AF17","v":0},null,null,null,null,null,null,null,{"$f":"+IF($L$13=\"No Aplica\",0,SUM(((K9*M9)*$M$14),((K9*N9)*$N$14),((K9*O9)*$O$14),((K9*P9)*$P$14),((K9*Q9)*$Q$14),((K9*R9)*$R$14)))","v":0}]
[{"$f":"'1.2.3 Concertación'!F21","v":0},null,null,null,{"$f":"'1.2.3 Concertación'!Y21","v":0},null,null,null,null,null,{"$f":"'1.2.3 Concertación'!AF21","v":0},null,null,null,null,null,null,null,{"$f":"+IF($L$13=\"No Aplica\",0,SUM(((K10*M10)*$M$14),((K10*N10)*$N$14),((K10*O10)*$O$14),((K10*P10)*$P$14),((K10*Q10)*$Q$14),((K10*R10)*$R$14)))","v":0}]
[{"$f":"'1.2.3 Concertación'!F25","v":0},null,null,null,{"$f":"'1.2.3 Concertación'!Y25","v":0},null,null,null,null,null,{"$f":"'1.2.3 Concertación'!AF25","v":0},null,null,null,null,null,null,null,{"$f":"+IF($L$13=\"No Aplica\",0,SUM(((K11*M11)*$M$14),((K11*N11)*$N$14),((K11*O11)*$O$14),((K11*P11)*$P$14),((K11*Q11)*$Q$14),((K11*R11)*$R$14)))","v":0}]
["Totales",null,null,null,null,null,null,null,null,null,{"$f":"SUM(K7:L11)","v":0},null,{"$f":"M7*$K$7+M8*$K$8+M9*$K$9+M10*$K$10+M11*$K$11","v":0},0,0,0,0,0]
["Días Efectivamente Laborados",null,null,null,null,null,"Total Días Laborados de Cada Ev. Eventual",null,null,null,null,{"$f":"+IF(SUM(M12:R12)<=30,\"No Aplica\",SUM(M12:R12))","v":"No Aplica"}]
[null,null,null,null,null,null,"% Participación Días Laborados de Cada Evaluación. Eventual",null,null,null,null,{"$f":"+IFERROR(+L13/$L$13,0)","v":0},{"$f":"+IFERROR(+M12/$L$13,0)","v":0},{"$f":"+IFERROR(+N12/$L$13,0)","v":0},{"$f":"+IFERROR(+O12/$L$13,0)","v":0},{"$f":"+IFERROR(+P12/$L$13,0)","v":0},{"$f":"+IFERROR(+Q12/$L$13,0)","v":0},{"$f":"+IFERROR(+R12/$L$13,0)","v":0}]
["Calificación Evaluaciòn Primer Semestre (Sobre 100) ",null,null,null,null,null,null,null,null,null,null,null,{"$f":"(M12*M14+N12*N14+O12*O14+P12*P14+Q12*Q14+R12*R14)","v":0}]
["Calificación Total Compromisos Laborales",null,null,null,null,null,null,null,null,null,null,null,{"$f":"M15*0.8","v":0}]
["9.1. Competencias Comportamentales"]
["Nivel ",null,"Competencia",null,null,null,"Conductas Asociadas",null,null,null,null,null,"Cambio de Evaluador","Traslado","Situaciones Administrativas Superiores a 30 Días","Lapso Entre Ultima EDL y Final del Periodo","Ajuste de Compromisos","Nombramiento en Periodo de Prueba en Ascenso","Total Semestre"]
[{"$f":"'1.2.3 Concertación'!C32","v":0},null,{"$f":"'1.2.3 Concertación'!H32","v":0},null,null,null,{"$f":"+'1.2.3 Concertación'!R32","v":""},null,null,null,null,null,null,null,null,null,null,null,{"$f":"+M20*M$28+N20*N$28+O20*O$28+P20*P$28+Q20*Q$28+R20*R$28","v":0}]
[null,null,null,null,null,null,null,null,null,null,null,null,{"$f":"IF(M19='lista de selecciones'!$I$188,'lista de selecciones'!$K$188,IF(M19='lista de selecciones'!$I$189,'lista de selecciones'!$K$189,IF(M19='lista de selecciones'!$I$190,'lista de selecciones'!$K$190,IF(M19='lista de selecciones'!$I$191,'lista de selecciones'!$K$191,0))))","v":0},{"$f":"IF(N19='lista de selecciones'!$I$188,'lista de selecciones'!$K$188,IF(N19='lista de selecciones'!$I$189,'lista de selecciones'!$K$189,IF(N19='lista de selecciones'!$I$190,'lista de selecciones'!$K$190,IF(N19='lista de selecciones'!$I$191,'lista de selecciones'!$K$191,0))))","v":0},{"$f":"IF(O19='lista de selecciones'!$I$188,'lista de selecciones'!$K$188,IF(O19='lista de selecciones'!$I$189,'lista de selecciones'!$K$189,IF(O19='lista de selecciones'!$I$190,'lista de selecciones'!$K$190,IF(O19='lista de selecciones'!$I$191,'lista de selecciones'!$K$191,0))))","v":0},{"$f":"IF(P19='lista de selecciones'!$I$188,'lista de selecciones'!$K$188,IF(P19='lista de selecciones'!$I$189,'lista de selecciones'!$K$189,IF(P19='lista de selecciones'!$I$190,'lista de selecciones'!$K$190,IF(P19='lista de selecciones'!$I$191,'lista de selecciones'!$K$191,0))))","v":0},{"$f":"IF(Q19='lista de selecciones'!$I$188,'lista de selecciones'!$K$188,IF(Q19='lista de selecciones'!$I$189,'lista de selecciones'!$K$189,IF(Q19='lista de selecciones'!$I$190,'lista de selecciones'!$K$190,IF(Q19='lista de selecciones'!$I$191,'lista de selecciones'!$K$191,0))))","v":0},{"$f":"IF(R19='lista de selecciones'!$I$188,'lista de selecciones'!$K$188,IF(R19='lista de selecciones'!$I$189,'lista de selecciones'!$K$189,IF(R19='lista de selecciones'!$I$190,'lista de selecciones'!$K$190,IF(R19='lista de selecciones'!$I$191,'lista de selecciones'!$K$191,0))))","v":0}]
[{"$f":"+'1.2.3 Concertación'!C33","v":0},null,{"$f":"+'1.2.3 Concertación'!H33","v":0},null,null,null,{"$f":"+'1.2.3 Concertación'!R33","v":""},null,null,null,null,null,null,null,null,null,null,null,{"$f":"+M22*M$28+N22*N$28+O22*O$28+P22*P$28+Q22*Q$28+R22*R$28","v":0}]
[null,null,null,null,null,null,null,null,null,null,null,null,{"$f":"IF(M21='lista de selecciones'!$I$188,'lista de selecciones'!$K$188,IF(M21='lista de selecciones'!$I$189,'lista de selecciones'!$K$189,IF(M21='lista de selecciones'!$I$190,'lista de selecciones'!$K$190,IF(M21='lista de selecciones'!$I$191,'lista de selecciones'!$K$191,0))))","v":0},{"$f":"IF(N21='lista de selecciones'!$I$188,'lista de selecciones'!$K$188,IF(N21='lista de selecciones'!$I$189,'lista de selecciones'!$K$189,IF(N21='lista de selecciones'!$I$190,'lista de selecciones'!$K$190,IF(N21='lista de selecciones'!$I$191,'lista de selecciones'!$K$191,0))))","v":0},{"$f":"IF(O21='lista de selecciones'!$I$188,'lista de selecciones'!$K$188,IF(O21='lista de selecciones'!$I$189,'lista de selecciones'!$K$189,IF(O21='lista de selecciones'!$I$190,'lista de selecciones'!$K$190,IF(O21='lista de selecciones'!$I$191,'lista de selecciones'!$K$191,0))))","v":0},{"$f":"IF(P21='lista de selecciones'!$I$188,'lista de selecciones'!$K$188,IF(P21='lista de selecciones'!$I$189,'lista de selecciones'!$K$189,IF(P21='lista de selecciones'!$I$190,'lista de selecciones'!$K$190,IF(P21='lista de selecciones'!$I$191,'lista de selecciones'!$K$191,0))))","v":0},{"$f":"IF(Q21='lista de selecciones'!$I$188,'lista de selecciones'!$K$188,IF(Q21='lista de selecciones'!$I$189,'lista de selecciones'!$K$189,IF(Q21='lista de selecciones'!$I$190,'lista de selecciones'!$K$190,IF(Q21='lista de selecciones'!$I$191,'lista de selecciones'!$K$191,0))))","v":0},{"$f":"IF(R21='lista de selecciones'!$I$188,'lista de selecciones'!$K$188,IF(R21='lista de selecciones'!$I$189,'lista de selecciones'!$K$189,IF(R21='lista de selecciones'!$I$190,'lista de selecciones'!$K$190,IF(R21='lista de selecciones'!$I$191,'lista de selecciones'!$K$191,0))))","v":0}]
[{"$f":"+'1.2.3 Concertación'!C34","v":0},null,{"$f":"+'1.2.3 Concertación'!H34","v":0},null,null,null,{"$f":"+'1.2.3 Concertación'!R34","v":""},null,null,null,null,null,null,null,null,null,null,null,{"$f":"+M24*M$28+N24*N$28+O24*O$28+P24*P$28+Q24*Q$28+R24*R$28","v":0}]
[null,null,null,null,null,null,null,null,null,null,null,null,{"$f":"IF(M23='lista de selecciones'!$I$188,'lista de selecciones'!$K$188,IF(M23='lista de selecciones'!$I$189,'lista de selecciones'!$K$189,IF(M23='lista de selecciones'!$I$190,'lista de selecciones'!$K$190,IF(M23='lista de selecciones'!$I$191,'lista de selecciones'!$K$191,0))))","v":0},{"$f":"IF(N23='lista de selecciones'!$I$188,'lista de selecciones'!$K$188,IF(N23='lista de selecciones'!$I$189,'lista de selecciones'!$K$189,IF(N23='lista de selecciones'!$I$190,'lista de selecciones'!$K$190,IF(N23='lista de selecciones'!$I$191,'lista de selecciones'!$K$191,0))))","v":0},{"$f":"IF(O23='lista de selecciones'!$I$188,'lista de selecciones'!$K$188,IF(O23='lista de selecciones'!$I$189,'lista de selecciones'!$K$189,IF(O23='lista de selecciones'!$I$190,'lista de selecciones'!$K$190,IF(O23='lista de selecciones'!$I$191,'lista de selecciones'!$K$191,0))))","v":0},{"$f":"IF(P23='lista de selecciones'!$I$188,'lista de selecciones'!$K$188,IF(P23='lista de selecciones'!$I$189,'lista de selecciones'!$K$189,IF(P23='lista de selecciones'!$I$190,'lista de selecciones'!$K$190,IF(P23='lista de selecciones'!$I$191,'lista de selecciones'!$K$191,0))))","v":0},{"$f":"IF(Q23='lista de selecciones'!$I$188,'lista de selecciones'!$K$188,IF(Q23='lista de selecciones'!$I$189,'lista de selecciones'!$K$189,IF(Q23='lista de selecciones'!$I$190,'lista de selecciones'!$K$190,IF(Q23='lista de selecciones'!$I$191,'lista de selecciones'!$K$191,0))))","v":0},{"$f":"IF(R23='lista de selecciones'!$I$188,'lista de selecciones'!$K$188,IF(R23='lista de selecciones'!$I$189,'lista de selecciones'!$K$189,IF(R23='lista de selecciones'!$I$190,'lista de selecciones'!$K$190,IF(R23='lista de selecciones'!$I$191,'lista de selecciones'!$K$191,0))))","v":0}]
[{"$f":"+'1.2.3 Concertación'!C35","v":0},null,{"$f":"+'1.2.3 Concertación'!H35","v":0},null,null,null,{"$f":"+'1.2.3 Concertación'!R35","v":""},null,null,null,null,null,null,null,null,null,null,null,{"$f":"+M26*M$28+N26*N$28+O26*O$28+P26*P$28+Q26*Q$28+R26*R$28","v":0}]
[null,null,null,null,null,null,null,null,null,null,null,null,{"$f":"IF(M25='lista de selecciones'!$I$188,'lista de selecciones'!$K$188,IF(M25='lista de selecciones'!$I$189,'lista de selecciones'!$K$189,IF(M25='lista de selecciones'!$I$190,'lista de selecciones'!$K$190,IF(M25='lista de selecciones'!$I$191,'lista de selecciones'!$K$191,0))))","v":0},{"$f":"IF(N25='lista de selecciones'!$I$188,'lista de selecciones'!$K$188,IF(N25='lista de selecciones'!$I$189,'lista de selecciones'!$K$189,IF(N25='lista de selecciones'!$I$190,'lista de selecciones'!$K$190,IF(N25='lista de selecciones'!$I$191,'lista de selecciones'!$K$191,0))))","v":0},{"$f":"IF(O25='lista de selecciones'!$I$188,'lista de selecciones'!$K$188,IF(O25='lista de selecciones'!$I$189,'lista de selecciones'!$K$189,IF(O25='lista de selecciones'!$I$190,'lista de selecciones'!$K$190,IF(O25='lista de selecciones'!$I$191,'lista de selecciones'!$K$191,0))))","v":0},{"$f":"IF(P25='lista de selecciones'!$I$188,'lista de selecciones'!$K$188,IF(P25='lista de selecciones'!$I$189,'lista de selecciones'!$K$189,IF(P25='lista de selecciones'!$I$190,'lista de selecciones'!$K$190,IF(P25='lista de selecciones'!$I$191,'lista de selecciones'!$K$191,0))))","v":0},{"$f":"IF(Q25='lista de selecciones'!$I$188,'lista de selecciones'!$K$188,IF(Q25='lista de selecciones'!$I$189,'lista de selecciones'!$K$189,IF(Q25='lista de selecciones'!$I$190,'lista de selecciones'!$K$190,IF(Q25='lista de selecciones'!$I$191,'lista de selecciones'!$K$191,0))))","v":0},{"$f":"IF(R25='lista de selecciones'!$I$188,'lista de selecciones'!$K$188,IF(R25='lista de selecciones'!$I$189,'lista de selecciones'!$K$189,IF(R25='lista de selecciones'!$I$190,'lista de selecciones'!$K$190,IF(R25='lista de selecciones'!$I$191,'lista de selecciones'!$K$191,0))))","v":0}]
["Ponderación por Evaluación Eventual",null,null,null,null,null,null,null,null,null,null,null,{"$f":"+(M20+M22+M24+M26)/4","v":0},{"$f":"+(N20+N22+N24+N26)/4","v":0},0,0,0,0]
["% Participación Días Laborados de cada Evaluación Eventual",null,null,null,null,null,null,null,null,null,null,null,{"$f":"+M14","v":0},{"$f":"+N14","v":0},{"$f":"+O14","v":0},{"$f":"+P14","v":0},{"$f":"+Q14","v":0},0]
["Calificación Total Competencias Comportamentales",null,null,null,null,null,null,null,null,null,null,null,{"$f":"+SUMPRODUCT(M27:R27,M28:R28)","v":0}]
["Calificación Total Compromisos Laborales",null,null,null,null,null,null,null,null,null,null,null,{"$f":"(M29*0.2)*10","v":0}]
["9.2 Notificación"]
["Lugar y Fecha de Diligenciamiento"]
[null,null,null,"Empleado a Evaluar",null,null,null,null,null,null,"Jefe Inmediato (Primer Evaluador)",null,null,null,null,"Segundo Evaluador \n"]
["Nombre Completo",null,null,{"$f":"+'1.2.3 Concertación'!J39","v":0},null,null,null,null,null,null,{"$f":"+'1.2.3 Concertación'!P39","v":0},null,null,null,null,{"$f":"+'1.2.3 Concertación'!Z39","v":0}]
["Numero de Documento Identidad",null,null,{"$f":"+'1.2.3 Concertación'!J40","v":0},null,null,null,null,null,null,{"$f":"+'1.2.3 Concertación'!P40","v":0},null,null,null,null,{"$f":"+'1.2.3 Concertación'!Z40","v":0}]
["Cargo (Denominación-Código-Grado)",null,null,{"$f":"+'1.2.3 Concertación'!J41","v":0},null,null,null,null,null,null,{"$f":"+'1.2.3 Concertación'!P41","v":0},null,null,null,null,{"$f":"+'1.2.3 Concertación'!Z41","v":0}]
["Dependencia",null,null,{"$f":"+'1.2.3 Concertación'!J42","v":0},null,null,null,null,null,null,{"$f":"+'1.2.3 Concertación'!P42","v":0},null,null,null,null,{"$f":"+'1.2.3 Concertación'!Z42","v":0}]
["Firmas"]
[]
["9.3 Observaciones"]

{"sheet":"10. Evaluación Eventual Sem II","index":11,"n_rows":49,"n_cols":20,"rows_kept":49,"cut":false,"hidden":false,"merged":[[2,0,2,16383],[10,4,11,7],[12,18,13,18],[1,0,1,18],[4,0,7,3],[4,10,7,11],[4,12,5,18],[6,12,7,12],[6,13,7,13],[6,14,7,14],[6,15,7,15],[6,16,7,16],[6,17,7,17],[6,18,7,18],[3,0,3,3],[3,5,3,6],[3,11,3,12],[3,14,3,15],[3,16,3,18],[4,8,7,9],[3,9,3,10],[3,7,3,8],[4,4,7,7],[12,10,13,11],[14,18,15,18],[14,4,15,7],[16,15,17,15],[16,16,17,16],[16,17,17,17],[8,18,9,18],[10,0,11,3],[10,10,11,11],[10,12,11,12],[10,13,11,13],[10,14,11,14],[10,15,11,15],[10,16,11,16],[10,17,11,17],[10,18,11,18],[8,0,9,3],[8,10,9,11],[8,12,9,12],[8,13,9,13],[8,14,9,14],[8,15,9,15],[8,16,9,16],[8,17,9,17],[8,4,9,7],[12,12,13,12],[12,13,13,13],[12,14,13,14],[12,15,13,15],[12,16,13,16],[12,17,13,17],[12,4,13,7],[8,8,9,9],[10,8,11,9],[12,8,13,9],[24,0,25,1],[24,17,25,17],[26,0,27,1],[24,2,25,6],[26,2,27,6],[28,7,29,11],[23,0,23,18],[16,4,17,7],[21,0,21,11],[22,0,22,11],[21,12,21,18],[22,12,22,18],[16,8,17,9],[18,0,18,9],[26,18,27,18],[24,18,25,18],[24,12,25,12],[24,13,25,13],[24,14,25,14],[24,15,25,15],[24,16,25,16],[24,7,25,11],[26,7,27,11],[28,2,29,6],[30,2,31,6],[32,2,33,6],[40,0,40,2],[40,3,40,23],[41,0,41,2],[28,0,29,1],[28,18,29,18],[36,12,37,18],[39,0,39,23],[30,0,31,1],[30,18,31,18],[32,0,33,1],[32,18,33,18],[34,18,35,18],[35,0,35,11],[36,0,37,11],[38,0,38,11],[38,12,38,18],[34,0,34,11],[41,10,41,14],[41,15,41,18],[41,3,41,9],[30,7,31,11],[48,0,48,23],[49,0,49,18],[44,0,44,2],[45,0,45,2],[42,0,42,2],[43,0,43,2],[44,10,44,14],[46,0,46,2],[45,10,45,14],[42,15,42,18],[43,15,43,18],[44,15,44,18],[45,15,45,256],[46,15,46,256],[46,10,46,14],[42,10,42,14],[43,10,43,14],[42,3,42,9],[44,3,44,9],[45,3,45,9],[46,3,46,9],[43,3,43,9],[0,0,0,18],[47,0,47,18],[12,0,13,3],[16,18,17,18],[18,10,18,11],[18,18,20,18],[19,0,20,5],[19,6,19,10],[20,6,20,10],[16,0,17,3],[16,10,17,11],[16,12,17,12],[16,13,17,13],[16,14,17,14],[14,0,15,3],[14,10,15,11],[14,12,15,12],[14,13,15,13],[14,14,15,14],[14,15,15,15],[14,16,15,16],[14,17,15,17],[14,8,15,9],[32,7,33,11]]}
["Evaluación del desempeño para Servidores Vinculados en Nombramiento Provisional"]
["10. Compromisos Laborales - Evaluación Eventual (Sem II)"]
["Nombramiento Provisional. Seguimiento Cumplimiento de Funciones Empleados Vinculados Mediante Nombramiento Provisional\n(No Genera derechos de Carrera)"]
["Periodo Evaluado",null,null,null,"desde",null,null,"Hasta",null,null,null,"No. Días Concertados en el Año",null,{"$f":"IF((J4-F4+1)=1,0,J4-F4+1)","v":0},"Nivel del Empleo",null,{"$f":"'1.2.3 Concertación'!AC5","v":0}]
["Compromiso Laboral",null,null,null,"Evidencia del Cumplimiento del Compromiso",null,null,null,"Comentarios - Ruta de Evidencia",null,"Peso Porcentual del Compromiso",null,"Calificación Eventuales"]
[]
[null,null,null,null,null,null,null,null,null,null,null,null,"Cambio de Evaluador","Traslado","Situaciones Administrativas Superiores a 30 Días","Lapso Entre Ultima EDL y Final del Periodo","Ajuste de Compromisos","Nombramiento en Periodo de Prueba en Ascenso","Total Semestre"]
[]
[{"$f":"+'1.2.3 Concertación'!F9","v":0},null,null,null,{"$f":"+'1.2.3 Concertación'!Y9","v":0},null,null,null,null,null,{"$f":"+'1.2.3 Concertación'!AF9","v":0},null,null,null,null,null,null,null,{"$f":"IF($L$20=\"No Aplica\",0,SUM(((K9*M9)*$M$21),((K9*N9)*$N$21),((K9*O9)*$O$21),((K9*P9)*$P$21),((K9*Q9)*$Q$21),((K9*R9)*$R$21)))","v":0}]
[null,null,null,null,null,null,null,null,null,null,null,null,null,null,null,null,null,null,{"$f":"IF($L$13=\"No Aplica\",0,SUM(((K10*M10)*$M$14),((K10*N10)*$N$14),((K10*O10)*$O$14),((K10*P10)*$P$14),((K10*Q10)*$Q$14),((K10*R10)*$R$14)))","v":0}]
[{"$f":"+'1.2.3 Concertación'!F13","v":0},null,null,null,{"$f":"+'1.2.3 Concertación'!Y13","v":0},null,null,null,null,null,{"$f":"+'1.2.3 Concertación'!AF13","v":0},null,null,null,null,null,null,null,{"$f":"IF($L$20=\"No Aplica\",0,SUM(((K11*M11)*$M$21),((K11*N11)*$N$21),((K11*O11)*$O$21),((K11*P11)*$P$21),((K11*Q11)*$Q$21),((K11*R11)*$R$21)))","v":0}]
[]
[{"$f":"+'1.2.3 Concertación'!F17","v":0},null,null,null,{"$f":"+'1.2.3 Concertación'!Y17","v":0},null,null,null,null,null,{"$f":"+'1.2.3 Concertación'!AF17","v":0},null,null,null,null,null,null,null,{"$f":"IF($L$20=\"No Aplica\",0,SUM(((K13*M13)*$M$21),((K13*N13)*$N$21),((K13*O13)*$O$21),((K13*P13)*$P$21),((K13*Q13)*$Q$21),((K13*R13)*$R$21)))","v":0}]
[]
[{"$f":"+'1.2.3 Concertación'!F21","v":0},null,null,null,{"$f":"+'1.2.3 Concertación'!Y21","v":0},null,null,null,null,null,{"$f":"+'1.2.3 Concertación'!AF21","v":0},null,null,null,null,null,null,null,{"$f":"IF($L$20=\"No Aplica\",0,SUM(((K15*M15)*$M$21),((K15*N15)*$N$21),((K15*O15)*$O$21),((K15*P15)*$P$21),((K15*Q15)*$Q$21),((K15*R15)*$R$21)))","v":0}]
[]
[{"$f":"+'1.2.3 Concertación'!F25","v":0},null,null,null,{"$f":"+'1.2.3 Concertación'!Y25","v":0},null,null,null,null,null,{"$f":"+'1.2.3 Concertación'!AF25","v":0},null,null,null,null,null,null,null,{"$f":"IF($L$20=\"No Aplica\",0,SUM(((K17*M17)*$M$21),((K17*N17)*$N$21),((K17*O17)*$O$21),((K17*P17)*$P$21),((K17*Q17)*$Q$21),((K17*R17)*$R$21)))","v":0}]
[]
["Totales",null,null,null,null,null,null,null,null,null,{"$f":"SUM(K9:L18)","v":0},null,{"$f":"+M9*$K$9+M11*$K$11+M13*$K$13+M15*$K$15+M17*$K$17","v":0},0,0,0,0,0]
["Días Efectivamente Laborados",null,null,null,null,null,"Total Días Laborados de cada Ev. Eventual",null,null,null,null,{"$f":"IF(SUM(M19:R19)<=30,\"No Aplica\",SUM(M19:R19))","v":"No Aplica"}]
[null,null,null,null,null,null,"% Participación Días Laborados de cada Evaluación. Eventual",null,null,null,null,{"$f":"IFERROR(+L20/$L$20,0)","v":0},{"$f":"IFERROR(+M19/$L$20,0)","v":0},0,0,0,0,0]
["Calificación Evaluaciòn Primer Semestre (Sobre 100) ",null,null,null,null,null,null,null,null,null,null,null,{"$f":"(+M19*M21+N19*N21+O19*O21+P19*P21+Q19*Q21+R19*R21)","v":0}]
["Calificación Total Compromisos Laborales",null,null,null,null,null,null,null,null,null,null,null,{"$f":"M22*0.8","v":0}]
["10.1 Competencias Comportamentales"]
["Nivel ",null,"Competencia",null,null,null,null,"Conductas Asociadas",null,null,null,null,"Cambio de Evaluador","Traslado","Situaciones Administrativas Superiores a 30 Días","Lapso Entre Última EDL y Final del Periodo","Ajuste de Compromisos","Nombramiento en Periodo de Prueba en Ascenso","Total Semestre"]
[]
[{"$f":"+'1.2.3 Concertación'!C32","v":0},null,{"$f":"+'1.2.3 Concertación'!H32","v":0},null,null,null,null,{"$f":"+'1.2.3 Concertación'!R32","v":""},null,null,null,null,null,null,null,null,null,null,{"$f":"+M28*M$36+N28*N$36+O28*O$36+P28*P$36+Q28*Q$36+R28*R$36","v":0}]
[null,null,null,null,null,null,null,null,null,null,null,null,{"$f":"IF(M27='lista de selecciones'!$I$188,'lista de selecciones'!$K$188,IF(M27='lista de selecciones'!$I$189,'lista de selecciones'!$K$189,IF(M27='lista de selecciones'!$I$190,'lista de selecciones'!$K$190,IF(M27='lista de selecciones'!$I$191,'lista de selecciones'!$K$191,0))))","v":0},{"$f":"IF(N27='lista de selecciones'!$I$188,'lista de selecciones'!$K$188,IF(N27='lista de selecciones'!$I$189,'lista de selecciones'!$K$189,IF(N27='lista de selecciones'!$I$190,'lista de selecciones'!$K$190,IF(N27='lista de selecciones'!$I$191,'lista de selecciones'!$K$191,0))))","v":0},{"$f":"IF(O27='lista de selecciones'!$I$188,'lista de selecciones'!$K$188,IF(O27='lista de selecciones'!$I$189,'lista de selecciones'!$K$189,IF(O27='lista de selecciones'!$I$190,'lista de selecciones'!$K$190,IF(O27='lista de selecciones'!$I$191,'lista de selecciones'!$K$191,0))))","v":0},{"$f":"IF(P27='lista de selecciones'!$I$188,'lista de selecciones'!$K$188,IF(P27='lista de selecciones'!$I$189,'lista de selecciones'!$K$189,IF(P27='lista de selecciones'!$I$190,'lista de selecciones'!$K$190,IF(P27='lista de selecciones'!$I$191,'lista de selecciones'!$K$191,0))))","v":0},{"$f":"IF(Q27='lista de selecciones'!$I$188,'lista de selecciones'!$K$188,IF(Q27='lista de selecciones'!$I$189,'lista de selecciones'!$K$189,IF(Q27='lista de selecciones'!$I$190,'lista de selecciones'!$K$190,IF(Q27='lista de selecciones'!$I$191,'lista de selecciones'!$K$191,0))))","v":0},{"$f":"IF(R27='lista de selecciones'!$I$188,'lista de selecciones'!$K$188,IF(R27='lista de selecciones'!$I$189,'lista de selecciones'!$K$189,IF(R27='lista de selecciones'!$I$190,'lista de selecciones'!$K$190,IF(R27='lista de selecciones'!$I$191,'lista de selecciones'!$K$191,0))))","v":0}]
[{"$f":"+'1.2.3 Concertación'!C33","v":0},null,{"$f":"+'1.2.3 Concertación'!H33","v":0},null,null,null,null,{"$f":"+'1.2.3 Concertación'!R33","v":""},null,null,null,null,null,null,null,null,null,null,{"$f":"+M30*M$36+N30*N$36+O30*O$36+P30*P$36+Q30*Q$36+R30*R$36","v":0}]
[null,null,null,null,null,null,null,null,null,null,null,null,{"$f":"IF(M29='lista de selecciones'!$I$188,'lista de selecciones'!$K$188,IF(M29='lista de selecciones'!$I$189,'lista de selecciones'!$K$189,IF(M29='lista de selecciones'!$I$190,'lista de selecciones'!$K$190,IF(M29='lista de selecciones'!$I$191,'lista de selecciones'!$K$191,0))))","v":0},{"$f":"IF(N29='lista de selecciones'!$I$188,'lista de selecciones'!$K$188,IF(N29='lista de selecciones'!$I$189,'lista de selecciones'!$K$189,IF(N29='lista de selecciones'!$I$190,'lista de selecciones'!$K$190,IF(N29='lista de selecciones'!$I$191,'lista de selecciones'!$K$191,0))))","v":0},{"$f":"IF(O29='lista de selecciones'!$I$188,'lista de selecciones'!$K$188,IF(O29='lista de selecciones'!$I$189,'lista de selecciones'!$K$189,IF(O29='lista de selecciones'!$I$190,'lista de selecciones'!$K$190,IF(O29='lista de selecciones'!$I$191,'lista de selecciones'!$K$191,0))))","v":0},{"$f":"IF(P29='lista de selecciones'!$I$188,'lista de selecciones'!$K$188,IF(P29='lista de selecciones'!$I$189,'lista de selecciones'!$K$189,IF(P29='lista de selecciones'!$I$190,'lista de selecciones'!$K$190,IF(P29='lista de selecciones'!$I$191,'lista de selecciones'!$K$191,0))))","v":0},{"$f":"IF(Q29='lista de selecciones'!$I$188,'lista de selecciones'!$K$188,IF(Q29='lista de selecciones'!$I$189,'lista de selecciones'!$K$189,IF(Q29='lista de selecciones'!$I$190,'lista de selecciones'!$K$190,IF(Q29='lista de selecciones'!$I$191,'lista de selecciones'!$K$191,0))))","v":0},{"$f":"IF(R29='lista de selecciones'!$I$188,'lista de selecciones'!$K$188,IF(R29='lista de selecciones'!$I$189,'lista de selecciones'!$K$189,IF(R29='lista de selecciones'!$I$190,'lista de selecciones'!$K$190,IF(R29='lista de selecciones'!$I$191,'lista de selecciones'!$K$191,0))))","v":0}]
[{"$f":"+'1.2.3 Concertación'!C34","v":0},null,{"$f":"+'1.2.3 Concertación'!H34","v":0},null,null,null,null,{"$f":"+'4. Evaluación Semestral (1)'!S32","v":""},null,null,null,null,null,null,null,null,null,null,{"$f":"+M32*M$36+N32*N$36+O32*O$36+P32*P$36+Q32*Q$36+R32*R$36","v":0}]
[null,null,null,null,null,null,null,null,null,null,null,null,{"$f":"IF(M31='lista de selecciones'!$I$188,'lista de selecciones'!$K$188,IF(M31='lista de selecciones'!$I$189,'lista de selecciones'!$K$189,IF(M31='lista de selecciones'!$I$190,'lista de selecciones'!$K$190,IF(M31='lista de selecciones'!$I$191,'lista de selecciones'!$K$191,0))))","v":0},{"$f":"IF(N31='lista de selecciones'!$I$188,'lista de selecciones'!$K$188,IF(N31='lista de selecciones'!$I$189,'lista de selecciones'!$K$189,IF(N31='lista de selecciones'!$I$190,'lista de selecciones'!$K$190,IF(N31='lista de selecciones'!$I$191,'lista de selecciones'!$K$191,0))))","v":0},{"$f":"IF(O31='lista de selecciones'!$I$188,'lista de selecciones'!$K$188,IF(O31='lista de selecciones'!$I$189,'lista de selecciones'!$K$189,IF(O31='lista de selecciones'!$I$190,'lista de selecciones'!$K$190,IF(O31='lista de selecciones'!$I$191,'lista de selecciones'!$K$191,0))))","v":0},{"$f":"IF(P31='lista de selecciones'!$I$188,'lista de selecciones'!$K$188,IF(P31='lista de selecciones'!$I$189,'lista de selecciones'!$K$189,IF(P31='lista de selecciones'!$I$190,'lista de selecciones'!$K$190,IF(P31='lista de selecciones'!$I$191,'lista de selecciones'!$K$191,0))))","v":0},{"$f":"IF(Q31='lista de selecciones'!$I$188,'lista de selecciones'!$K$188,IF(Q31='lista de selecciones'!$I$189,'lista de selecciones'!$K$189,IF(Q31='lista de selecciones'!$I$190,'lista de selecciones'!$K$190,IF(Q31='lista de selecciones'!$I$191,'lista de selecciones'!$K$191,0))))","v":0},{"$f":"IF(R31='lista de selecciones'!$I$188,'lista de selecciones'!$K$188,IF(R31='lista de selecciones'!$I$189,'lista de selecciones'!$K$189,IF(R31='lista de selecciones'!$I$190,'lista de selecciones'!$K$190,IF(R31='lista de selecciones'!$I$191,'lista de selecciones'!$K$191,0))))","v":0}]
[{"$f":"+'1.2.3 Concertación'!C35","v":0},null,{"$f":"+'1.2.3 Concertación'!H35","v":0},null,null,null,null,{"$f":"+'4. Evaluación Semestral (1)'!S33","v":""},null,null,null,null,null,null,null,null,null,null,{"$f":"+M34*M$36+N34*N$36+O34*O$36+P34*P$36+Q34*Q$36+R34*R$36","v":0}]
[null,null,null,null,null,null,null,null,null,null,null,null,{"$f":"IF(M33='lista de selecciones'!$I$188,'lista de selecciones'!$K$188,IF(M33='lista de selecciones'!$I$189,'lista de selecciones'!$K$189,IF(M33='lista de selecciones'!$I$190,'lista de selecciones'!$K$190,IF(M33='lista de selecciones'!$I$191,'lista de selecciones'!$K$191,0))))","v":0},{"$f":"IF(N33='lista de selecciones'!$I$188,'lista de selecciones'!$K$188,IF(N33='lista de selecciones'!$I$189,'lista de selecciones'!$K$189,IF(N33='lista de selecciones'!$I$190,'lista de selecciones'!$K$190,IF(N33='lista de selecciones'!$I$191,'lista de selecciones'!$K$191,0))))","v":0},{"$f":"IF(O33='lista de selecciones'!$I$188,'lista de selecciones'!$K$188,IF(O33='lista de selecciones'!$I$189,'lista de selecciones'!$K$189,IF(O33='lista de selecciones'!$I$190,'lista de selecciones'!$K$190,IF(O33='lista de selecciones'!$I$191,'lista de selecciones'!$K$191,0))))","v":0},{"$f":"IF(P33='lista de selecciones'!$I$188,'lista de selecciones'!$K$188,IF(P33='lista de selecciones'!$I$189,'lista de selecciones'!$K$189,IF(P33='lista de selecciones'!$I$190,'lista de selecciones'!$K$190,IF(P33='lista de selecciones'!$I$191,'lista de selecciones'!$K$191,0))))","v":0},{"$f":"IF(Q33='lista de selecciones'!$I$188,'lista de selecciones'!$K$188,IF(Q33='lista de selecciones'!$I$189,'lista de selecciones'!$K$189,IF(Q33='lista de selecciones'!$I$190,'lista de selecciones'!$K$190,IF(Q33='lista de selecciones'!$I$191,'lista de selecciones'!$K$191,0))))","v":0},{"$f":"IF(R33='lista de selecciones'!$I$188,'lista de selecciones'!$K$188,IF(R33='lista de selecciones'!$I$189,'lista de selecciones'!$K$189,IF(R33='lista de selecciones'!$I$190,'lista de selecciones'!$K$190,IF(R33='lista de selecciones'!$I$191,'lista de selecciones'!$K$191,0))))","v":0}]
["Ponderación por Evaluación Eventual",null,null,null,null,null,null,null,null,null,null,null,{"$f":"+(M28+M30+M32+M34)/4","v":0},0,0,0,0,0,null,0]
["% Participación Días Laborados de Cada Evaluación Eventual",null,null,null,null,null,null,null,null,null,null,null,{"$f":"M21","v":0},0,0,0,0,0,null,0]
["Calificación Total Competencias Comportamentales",null,null,null,null,null,null,null,null,null,null,null,{"$f":"SUMPRODUCT(M35:R35,M36:R36)","v":0}]
[]
["Calificación Total Compromisos Laborales",null,null,null,null,null,null,null,null,null,null,null,{"$f":"(M37*0.2)*10","v":0}]
["10.2 Notificación"]
["Lugar y Fecha de Diligenciamiento"]
[null,null,null,"Empleado a Evaluar",null,null,null,null,null,null,"Jefe Inmediato (Primer Evaluador)",null,null,null,null,"Segundo Evaluador \n"]
["Nombre Completo",null,null,{"$f":"+'1.2.3 Concertación'!J39","v":0},null,null,null,null,null,null,{"$f":"+'1.2.3 Concertación'!P39","v":0},null,null,null,null,{"$f":"+'1.2.3 Concertación'!Z39","v":0}]
["Numero de Documento Identidad",null,null,{"$f":"+'1.2.3 Concertación'!J40","v":0},null,null,null,null,null,null,{"$f":"+'1.2.3 Concertación'!P40","v":0},null,null,null,null,{"$f":"+'1.2.3 Concertación'!Z40","v":0}]
["Cargo (denominación-Código-Grado)",null,null,{"$f":"+'1.2.3 Concertación'!J41","v":0},null,null,null,null,null,null,{"$f":"+'1.2.3 Concertación'!P41","v":0},null,null,null,null,{"$f":"+'1.2.3 Concertación'!Z41","v":0}]
["Dependencia",null,null,{"$f":"+'1.2.3 Concertación'!J42","v":0},null,null,null,null,null,null,{"$f":"+'1.2.3 Concertación'!P42","v":0},null,null,null,null,{"$f":"+'1.2.3 Concertación'!Z42","v":0}]
["Firmas"]
[]
["10.3 Observaciones "]

{"sheet":"11. Evaluación Inferior un Año","index":12,"n_rows":61,"n_cols":25,"rows_kept":61,"cut":false,"hidden":false,"merged":[[60,0,60,24],[61,0,61,24],[56,1,56,7],[56,13,56,21],[57,1,57,7],[57,13,57,21],[58,1,58,7],[58,13,58,21],[53,0,53,5],[53,7,53,8],[53,9,53,10],[53,11,53,20],[53,22,53,23],[59,0,59,24],[54,0,58,0],[54,1,55,7],[54,8,58,12],[54,13,55,21],[54,22,58,24],[50,0,50,2],[50,3,50,8],[50,9,50,16],[50,17,50,24],[51,0,51,24],[52,0,52,24],[48,0,48,2],[48,3,48,8],[48,9,48,16],[48,17,48,24],[49,0,49,2],[49,3,49,8],[49,9,49,16],[49,17,49,24],[47,0,47,2],[47,3,47,8],[47,9,47,16],[47,17,47,24],[43,0,43,24],[44,0,44,2],[44,3,44,24],[45,0,45,2],[45,3,45,8],[45,9,45,16],[45,17,45,24],[41,0,42,4],[41,5,42,5],[41,6,42,10],[41,11,42,16],[41,17,42,24],[46,0,46,2],[46,3,46,8],[46,9,46,16],[46,17,46,24],[38,0,38,7],[38,8,38,14],[38,15,38,16],[38,17,38,22],[38,23,38,24],[39,0,40,2],[39,3,39,5],[39,6,39,8],[39,9,40,9],[39,10,40,12],[39,13,40,22],[39,23,40,24],[40,3,40,5],[40,6,40,8],[37,0,37,1],[37,2,37,4],[37,5,37,7],[37,8,37,10],[37,11,37,14],[37,15,37,16],[37,17,37,20],[37,21,37,22],[37,23,37,24],[36,0,36,1],[36,2,36,4],[36,5,36,7],[36,8,36,10],[36,11,36,14],[36,15,36,16],[36,17,36,20],[36,21,36,22],[36,23,36,24],[34,17,34,20],[34,21,34,22],[34,23,34,24],[35,0,35,1],[35,2,35,4],[35,5,35,7],[35,8,35,10],[35,11,35,14],[35,15,35,16],[35,17,35,20],[34,0,34,1],[34,2,34,4],[34,5,34,7],[34,8,34,10],[34,11,34,14],[34,15,34,16],[35,21,35,22],[35,23,35,24],[33,8,33,10],[33,11,33,14],[33,15,33,16],[33,17,33,20],[33,21,33,22],[33,23,33,24],[29,23,30,24],[30,3,30,5],[30,6,30,8],[31,0,31,7],[31,8,31,24],[32,0,33,1],[32,2,33,4],[32,5,33,7],[32,8,32,16],[32,17,32,24],[29,0,30,2],[29,3,29,5],[29,6,29,8],[29,9,30,9],[29,10,30,12],[29,13,30,22],[27,0,28,19],[27,20,28,20],[27,21,28,21],[27,22,28,22],[27,23,28,23],[27,24,28,24],[23,22,26,22],[23,23,26,23],[23,24,26,24],[24,10,24,12],[25,10,25,12],[26,10,26,12],[23,0,26,3],[23,4,26,9],[23,10,23,12],[23,13,26,19],[23,20,26,20],[23,21,26,21],[19,22,22,22],[19,23,22,23],[19,24,22,24],[20,10,20,12],[21,10,21,12],[22,10,22,12],[19,0,22,3],[19,4,22,9],[19,10,19,12],[19,13,22,19],[19,20,22,20],[19,21,22,21],[15,22,18,22],[15,23,18,23],[15,24,18,24],[16,10,16,12],[17,10,17,12],[18,10,18,12],[15,0,18,3],[15,4,18,9],[15,10,15,12],[15,13,18,19],[15,20,18,20],[15,21,18,21],[11,22,14,22],[11,23,14,23],[11,24,14,24],[12,10,12,12],[13,10,13,12],[14,10,14,12],[11,0,14,3],[11,4,14,9],[11,10,11,12],[11,13,14,19],[11,20,14,20],[11,21,14,21],[3,3,3,4],[3,5,3,6],[3,7,3,8],[3,9,3,10],[7,22,10,22],[7,23,10,23],[7,24,10,24],[8,10,8,12],[9,10,9,12],[10,10,10,12],[7,0,10,3],[7,4,10,9],[7,10,7,12],[7,13,10,19],[7,20,10,20],[7,21,10,21],[1,0,1,24],[2,0,2,2],[4,14,4,16],[2,3,2,24],[5,0,5,19],[5,20,5,22],[5,23,5,24],[0,0,0,24],[6,0,6,3],[6,4,6,9],[6,10,6,12],[6,13,6,19],[3,11,3,13],[3,14,3,16],[3,17,4,22],[3,23,4,24],[4,1,4,2],[4,3,4,4],[4,5,4,6],[4,7,4,8],[4,9,4,10],[4,11,4,13],[3,0,4,0],[3,1,3,2]]}
["Evaluación del Desempeño para Servidores Vinculados en Nombramiento Provisional"]
["11. Evaluacion Inferior a Un año "]
["11.1 Tipo de Empleo",null,null,"Nombramiento Provisional. Seguimiento Cumplimiento de Funciones Empleados Vinculados Mediante Nombramiento Provisional\n(No Genera derechos de Carrera)"]
["11.2 Fecha de Evaluación ","Previa a la Evaluación \n(Si Hubo)",null,"Desde",null,null,null,"Hasta",null,null,null,"No. Días Evaluados ",null,null,{"$f":"IF((J4-F4+1)=1,0,J4-F4+1)","v":0},null,null,"11.3 Nivel del Empleo",null,null,null,null,null,{"$f":"'1.2.3 Concertación'!AC5","v":0}]
[null,"Evaluación Último Período",null,"Desde",null,null,null,"Hasta",null,null,null,"No. Días Evaluados ",null,null,{"$f":"IF((J5-F5+1)=1,0,J5-F5+1)","v":0}]
["11.4 Evaluacion de Compromisos Laborales",null,null,null,null,null,null,null,null,null,null,null,null,null,null,null,null,null,null,null,"11.5  Evaluación Previa \n(Si Hubo)",null,null,"11.6 Evaluación Último Período"]
["Compromiso Laboral",null,null,null,"Evidencia del Cumplimiento del Compromiso",null,null,null,null,null,"Requisitos de Calidad",null,null,"Comentarios - Ruta de Evidencia",null,null,null,null,null,null,"Peso","Logro %","Puntaje","Logro %","Puntaje"]
[{"$f":"'1.2.3 Concertación'!F9","v":0},null,null,null,{"$f":"'1.2.3 Concertación'!Y9","v":0},null,null,null,null,null,{"$f":"'1.2.3 Concertación'!N9","v":0},null,null,null,null,null,null,null,null,null,{"$f":"'1.2.3 Concertación'!AF9","v":0},null,{"$f":"(U8*V8)","v":0},null,{"$f":"(U8*X8)","v":0}]
[null,null,null,null,null,null,null,null,null,null,{"$f":"'1.2.3 Concertación'!N10","v":0}]
[null,null,null,null,null,null,null,null,null,null,{"$f":"'1.2.3 Concertación'!N11","v":0}]
[null,null,null,null,null,null,null,null,null,null,{"$f":"'1.2.3 Concertación'!N12","v":0}]
[{"$f":"'1.2.3 Concertación'!F13","v":0},null,null,null,{"$f":"'1.2.3 Concertación'!Y13","v":0},null,null,null,null,null,{"$f":"'1.2.3 Concertación'!N13","v":0},null,null,null,null,null,null,null,null,null,{"$f":"'1.2.3 Concertación'!AF13","v":0},null,{"$f":"(U12*V12)","v":0},null,{"$f":"(U12*X12)","v":0}]
[null,null,null,null,null,null,null,null,null,null,{"$f":"'1.2.3 Concertación'!N14","v":0}]
[null,null,null,null,null,null,null,null,null,null,{"$f":"'1.2.3 Concertación'!N15","v":0}]
[null,null,null,null,null,null,null,null,null,null,{"$f":"'1.2.3 Concertación'!N16","v":0}]
[{"$f":"'1.2.3 Concertación'!F17","v":0},null,null,null,{"$f":"'1.2.3 Concertación'!Y17","v":0},null,null,null,null,null,{"$f":"'1.2.3 Concertación'!N17","v":0},null,null,null,null,null,null,null,null,null,{"$f":"'1.2.3 Concertación'!AF17","v":0},null,{"$f":"(U16*V16)","v":0},null,{"$f":"(U16*X16)","v":0}]
[null,null,null,null,null,null,null,null,null,null,{"$f":"'1.2.3 Concertación'!N18","v":0}]
[null,null,null,null,null,null,null,null,null,null,{"$f":"'1.2.3 Concertación'!N19","v":0}]
[null,null,null,null,null,null,null,null,null,null,{"$f":"'1.2.3 Concertación'!N20","v":0}]
[{"$f":"'1.2.3 Concertación'!F21","v":0},null,null,null,{"$f":"'1.2.3 Concertación'!Y21","v":0},null,null,null,null,null,{"$f":"'1.2.3 Concertación'!N21","v":0},null,null,null,null,null,null,null,null,null,{"$f":"'1.2.3 Concertación'!AF21","v":0},null,{"$f":"(U20*V20)","v":0},null,{"$f":"(U20*X20)","v":0}]
[null,null,null,null,null,null,null,null,null,null,{"$f":"'1.2.3 Concertación'!N22","v":0}]
[null,null,null,null,null,null,null,null,null,null,{"$f":"'1.2.3 Concertación'!N23","v":0}]
[null,null,null,null,null,null,null,null,null,null,{"$f":"'1.2.3 Concertación'!N24","v":0}]
[{"$f":"'1.2.3 Concertación'!F25","v":0},null,null,null,{"$f":"'1.2.3 Concertación'!Y25","v":0},null,null,null,null,null,{"$f":"'1.2.3 Concertación'!N25","v":0},null,null,null,null,null,null,null,null,null,{"$f":"'1.2.3 Concertación'!AF25","v":0},null,{"$f":"(U24*V24)","v":0},null,{"$f":"(U24*X24)","v":0}]
[null,null,null,null,null,null,null,null,null,null,{"$f":"'1.2.3 Concertación'!N26","v":0}]
[null,null,null,null,null,null,null,null,null,null,{"$f":"'1.2.3 Concertación'!N27","v":0}]
[null,null,null,null,null,null,null,null,null,null,{"$f":"'1.2.3 Concertación'!N28","v":0}]
[" Total Compromisos Laborales",null,null,null,null,null,null,null,null,null,null,null,null,null,null,null,null,null,null,null,{"$f":"IF(SUM(U8:U27)>100,\"Numero no puede ser mayor que 100\",SUM(U8:U27))","v":0},null,{"$f":"SUM(W8:W27)","v":0},null,{"$f":"SUM(Y8:Y27)","v":0}]
[]
["% Participación Días Laborados para la Evaluación Inferior a 1 año (Mayor a 30 Días)",null,null,"Previa a la Evaluación(Si Hubo)",null,null,{"$f":"IFERROR(+O4/($O$4+$O$5),0)","v":0},null,null,"Sobre 100%",{"$f":"(W28*G30+Y28*G31)","v":0},null,null,"11.7 Calificación Evaluaciòn Primer Semestre (Sobre 80%) ",null,null,null,null,null,null,null,null,null,{"$f":"K30*80%","v":0}]
[null,null,null,"Evaluación Último Período",null,null,{"$f":"IFERROR(+O5/($O$4+$O$5),0)","v":0}]
["11.8 Compromisos Comportamentales Fijados",null,null,null,null,null,null,null,"11.9 Evaluación de Compromisos Comportamentales"]
["Nivel Jerarquico",null,"Competencias Comportamentales",null,null,"Conducta Asociada",null,null,"Eva. Previa\n(Si Hubo)",null,null,null,null,null,null,null,null,"Eva. Último Período."]
[null,null,null,null,null,null,null,null,"Niveles de Frecuencia",null,null,"Descripción ",null,null,null,"Resultados Cuantitativos",null,"Niveles de Frecuencia",null,null,null,"Descripción Cualitativa",null,"Resultado Cuantitativo"]
[{"$f":"+'1.2.3 Concertación'!C32","v":0},null,{"$f":"+'1.2.3 Concertación'!H32","v":0},null,null,{"$f":"+'1.2.3 Concertación'!R32","v":""},null,null,null,null,null,{"$f":"IF(I35='lista de selecciones'!$I$188,'lista de selecciones'!$J$188,IF(I35='lista de selecciones'!$I$189,'lista de selecciones'!$J$189,IF(I35='lista de selecciones'!$I$190,'lista de selecciones'!$J$190,IF(I35='lista de selecciones'!$I$191,'lista de selecciones'!$J$191,0))))","v":0},null,null,null,{"$f":"IF(I35='lista de selecciones'!I188,'lista de selecciones'!K188,IF(I35='lista de selecciones'!I189,'lista de selecciones'!K189,IF(I35='lista de selecciones'!I190,'lista de selecciones'!K190,IF(I35='lista de selecciones'!I191,'lista de selecciones'!K191,0))))","v":0},null,null,null,null,null,{"$f":"IF(R35='lista de selecciones'!$I$188,'lista de selecciones'!$J$188,IF(R35='lista de selecciones'!$I$189,'lista de selecciones'!$J$189,IF(R35='lista de selecciones'!$I$190,'lista de selecciones'!$J$190,IF(R35='lista de selecciones'!$I$191,'lista de selecciones'!$J$191,0))))","v":0},null,{"$f":"IF(R35='lista de selecciones'!I188,'lista de selecciones'!K188,IF(R35='lista de selecciones'!I189,'lista de selecciones'!K189,IF(R35='lista de selecciones'!I190,'lista de selecciones'!K190,IF(R35='lista de selecciones'!I191,'lista de selecciones'!K191,0))))","v":0}]
[{"$f":"A35","v":0},null,{"$f":"+'1.2.3 Concertación'!H33","v":0},null,null,{"$f":"+'1.2.3 Concertación'!R33","v":""},null,null,null,null,null,{"$f":"IF(I36='lista de selecciones'!$I$188,'lista de selecciones'!$J$188,IF(I36='lista de selecciones'!$I$189,'lista de selecciones'!$J$189,IF(I36='lista de selecciones'!$I$190,'lista de selecciones'!$J$190,IF(I36='lista de selecciones'!$I$191,'lista de selecciones'!$J$191,0))))","v":0},null,{"$f":"IF(J36='lista de selecciones'!$I$188,'lista de selecciones'!$J$188,IF(J36='lista de selecciones'!$I$189,'lista de selecciones'!$J$189,IF(J36='lista de selecciones'!$I$190,'lista de selecciones'!$J$190,IF(J36='lista de selecciones'!$I$191,'lista de selecciones'!$J$191,0))))","v":0},null,{"$f":"IF(I36='lista de selecciones'!I188,'lista de selecciones'!K188,IF(I36='lista de selecciones'!I189,'lista de selecciones'!K189,IF(I36='lista de selecciones'!I190,'lista de selecciones'!K190,IF(I36='lista de selecciones'!I191,'lista de selecciones'!K191,0))))","v":0},null,null,null,null,null,{"$f":"IF(R36='lista de selecciones'!$I$188,'lista de selecciones'!$J$188,IF(R36='lista de selecciones'!$I$189,'lista de selecciones'!$J$189,IF(R36='lista de selecciones'!$I$190,'lista de selecciones'!$J$190,IF(R36='lista de selecciones'!$I$191,'lista de selecciones'!$J$191,0))))","v":0},null,{"$f":"IF(R36='lista de selecciones'!I188,'lista de selecciones'!K188,IF(R36='lista de selecciones'!I189,'lista de selecciones'!K189,IF(R36='lista de selecciones'!I190,'lista de selecciones'!K190,IF(R36='lista de selecciones'!I191,'lista de selecciones'!K191,0))))","v":0}]
[{"$f":"A35","v":0},null,{"$f":"+'1.2.3 Concertación'!H34","v":0},null,null,{"$f":"+'1.2.3 Concertación'!R34","v":""},null,null,null,null,null,{"$f":"IF(I37='lista de selecciones'!$I$188,'lista de selecciones'!$J$188,IF(I37='lista de selecciones'!$I$189,'lista de selecciones'!$J$189,IF(I37='lista de selecciones'!$I$190,'lista de selecciones'!$J$190,IF(I37='lista de selecciones'!$I$191,'lista de selecciones'!$J$191,0))))","v":0},null,{"$f":"IF(J37='lista de selecciones'!$I$188,'lista de selecciones'!$J$188,IF(J37='lista de selecciones'!$I$189,'lista de selecciones'!$J$189,IF(J37='lista de selecciones'!$I$190,'lista de selecciones'!$J$190,IF(J37='lista de selecciones'!$I$191,'lista de selecciones'!$J$191,0))))","v":0},null,{"$f":"IF(I37='lista de selecciones'!I188,'lista de selecciones'!K188,IF(I37='lista de selecciones'!I189,'lista de selecciones'!K189,IF(I37='lista de selecciones'!I190,'lista de selecciones'!K190,IF(I37='lista de selecciones'!I191,'lista de selecciones'!K191,0))))","v":0},null,null,null,null,null,{"$f":"IF(R37='lista de selecciones'!$I$188,'lista de selecciones'!$J$188,IF(R37='lista de selecciones'!$I$189,'lista de selecciones'!$J$189,IF(R37='lista de selecciones'!$I$190,'lista de selecciones'!$J$190,IF(R37='lista de selecciones'!$I$191,'lista de selecciones'!$J$191,0))))","v":0},null,{"$f":"IF(R37='lista de selecciones'!I188,'lista de selecciones'!K188,IF(R37='lista de selecciones'!I189,'lista de selecciones'!K189,IF(R37='lista de selecciones'!I190,'lista de selecciones'!K190,IF(R37='lista de selecciones'!I191,'lista de selecciones'!K191,0))))","v":0}]
[{"$f":"A36","v":0},null,{"$f":"+'1.2.3 Concertación'!H35","v":0},null,null,{"$f":"+'1.2.3 Concertación'!R35","v":""},null,null,null,null,null,{"$f":"IF(I38='lista de selecciones'!$I$188,'lista de selecciones'!$J$188,IF(I38='lista de selecciones'!$I$189,'lista de selecciones'!$J$189,IF(I38='lista de selecciones'!$I$190,'lista de selecciones'!$J$190,IF(I38='lista de selecciones'!$I$191,'lista de selecciones'!$J$191,0))))","v":0},null,{"$f":"IF(J38='lista de selecciones'!$I$188,'lista de selecciones'!$J$188,IF(J38='lista de selecciones'!$I$189,'lista de selecciones'!$J$189,IF(J38='lista de selecciones'!$I$190,'lista de selecciones'!$J$190,IF(J38='lista de selecciones'!$I$191,'lista de selecciones'!$J$191,0))))","v":0},null,{"$f":"IF(I38='lista de selecciones'!I188,'lista de selecciones'!K188,IF(I38='lista de selecciones'!I189,'lista de selecciones'!K189,IF(I38='lista de selecciones'!I190,'lista de selecciones'!K190,IF(I38='lista de selecciones'!I191,'lista de selecciones'!K191,0))))","v":0},null,null,null,null,null,{"$f":"IF(R38='lista de selecciones'!$I$188,'lista de selecciones'!$J$188,IF(R38='lista de selecciones'!$I$189,'lista de selecciones'!$J$189,IF(R38='lista de selecciones'!$I$190,'lista de selecciones'!$J$190,IF(R38='lista de selecciones'!$I$191,'lista de selecciones'!$J$191,0))))","v":0},null,{"$f":"IF(R38='lista de selecciones'!I188,'lista de selecciones'!K188,IF(R38='lista de selecciones'!I189,'lista de selecciones'!K189,IF(R38='lista de selecciones'!I190,'lista de selecciones'!K190,IF(R38='lista de selecciones'!I191,'lista de selecciones'!K191,0))))","v":0}]
[null,null,null,null,null,null,null,null,"Total Compromisos Comportamentales Previa a la Evaluación (Si Hubo) ",null,null,null,null,null,null,{"$f":"SUM(P35:Q38)/4","v":0},null,"Total Compromisos Comportamentales Ultimo Periodo ",null,null,null,null,null,{"$f":"SUM(X35:Y38)/4","v":0}]
["% Participación Días Laborados para la Evaluación Inferior a 1 año (Mayor a 30 Días)",null,null,"Previa a la Evaluación\n(Si Hubo)",null,null,{"$f":"IFERROR(+O4/($O$4+$O$5),0)","v":0},null,null,"Sobre 100%",{"$f":"(P39*G40+X39*G41)","v":0},null,null,"11.10 Calificación Total Competencias Comportamentales (Sobre 20%)",null,null,null,null,null,null,null,null,null,{"$f":"(K40*20%)*10","v":0}]
[null,null,null,"Evaluación Último Período",null,null,{"$f":"IFERROR(+O5/($O$4+$O$5),0)","v":0}]
["Resultados Consolidados Evaluación Extraordinaria",null,null,null,null,"Resultados ",{"$f":"X30+X40","v":0},null,null,null,null,"Nivel de Calificación",null,null,null,null,null,{"$f":"IF(G42<=69,'lista de selecciones'!A162,IF(G42<90,'lista de selecciones'!A161,IF(G42>=90,'lista de selecciones'!A160)))","v":"No satisfactorio"}]
[]
["11.11 Notificación"]
["Lugar y Fecha de Diligenciamiento"]
[null,null,null,"Empleado a Evaluar",null,null,null,null,null,"Jefe Inmediato (Primer Evaluador)",null,null,null,null,null,null,null,"Segundo Evaluador \n"]
["Nombre Completo",null,null,{"$f":"'1.2.3 Concertación'!J39","v":0},null,null,null,null,null,{"$f":"'1.2.3 Concertación'!P39","v":0},null,null,null,null,null,null,null,{"$f":"'1.2.3 Concertación'!Z39","v":0}]
["Numero de Documento Identidad",null,null,{"$f":"'1.2.3 Concertación'!J40","v":0},null,null,null,null,null,{"$f":"'1.2.3 Concertación'!P40","v":0},null,null,null,null,null,null,null,{"$f":"'1.2.3 Concertación'!Z40","v":0}]
["Cargo (Denominación-Código-Grado)",null,null,{"$f":"'1.2.3 Concertación'!J41","v":0},null,null,null,null,null,{"$f":"'1.2.3 Concertación'!P41","v":0},null,null,null,null,null,null,null,{"$f":"'1.2.3 Concertación'!Z41","v":0}]
["Dependencia",null,null,{"$f":"'1.2.3 Concertación'!J42","v":0},null,null,null,null,null,{"$f":"'1.2.3 Concertación'!P42","v":0},null,null,null,null,null,null,null,{"$f":"'1.2.3 Concertación'!Z42","v":0}]
["Firmas"]
["11.12 Notificación"]
["Contra Esta Calificación Procede El Recurso de Reposición Y en Subsidio El de apelación Interpuestos ante El Evaluador dentro de Los Cinco (5) Días Hábiles Siguientes a La Fecha de Notificación. Los Recursos deben Presentarse Por Escrito, Personalmente O Mediante apoderado Y Exponiendo Los Motivos de Inconformidad."]
["Interpuso Recurso de Reposición",null,null,null,null,null,null,"Fecha",null,null,null,"Interpuso Recurso de apelación",null,null,null,null,null,null,null,null,null,null,"Fecha"]
[]
[]
[null,"Nombre del Evaluado",null,null,null,null,null,null,null,null,null,null,null,"Firma del Evaluado"]
[]
[null,"Nombre del Notificador",null,null,null,null,null,null,null,null,null,null,null,"Firma del Notificador"]
[]
["11.13 Observaciones"]

{"sheet":"12. Evaluación Periodo Prueba","index":13,"n_rows":60,"n_cols":24,"rows_kept":60,"cut":false,"hidden":false,"merged":[[23,21,26,21],[23,22,26,22],[11,23,14,23],[11,18,14,18],[11,19,14,19],[23,23,26,23],[15,18,18,18],[15,19,18,19],[15,20,18,20],[15,21,18,21],[15,22,18,22],[15,23,18,23],[19,18,22,18],[19,19,22,19],[19,20,22,20],[19,21,22,21],[19,22,22,22],[19,23,22,23],[11,20,14,20],[11,21,14,21],[11,22,14,22],[20,11,20,13],[21,11,21,13],[22,11,22,13],[11,11,11,13],[12,11,12,13],[13,11,13,13],[23,18,26,18],[23,19,26,19],[23,20,26,20],[27,20,28,20],[34,13,34,14],[35,15,35,16],[35,17,35,18],[33,15,33,16],[29,12,30,13],[32,0,33,1],[32,2,33,4],[29,0,30,2],[29,3,29,7],[29,8,29,10],[32,10,32,16],[29,14,30,20],[31,10,31,23],[33,13,33,14],[32,17,32,23],[33,19,33,21],[29,21,30,23],[30,3,30,7],[30,8,30,10],[31,0,31,9],[33,10,33,12],[33,22,33,23],[40,3,40,7],[40,8,40,10],[41,0,42,4],[41,5,42,7],[41,18,42,23],[37,0,37,1],[37,2,37,4],[37,5,37,9],[37,10,37,12],[37,13,37,14],[37,15,37,16],[38,0,38,9],[38,10,38,14],[39,0,40,2],[39,3,39,7],[39,8,39,10],[39,11,40,11],[39,12,40,13],[37,19,37,21],[41,8,42,10],[41,11,42,17],[38,22,38,23],[37,17,37,18],[38,17,38,21],[59,0,59,23],[60,0,60,23],[54,20,54,21],[51,0,51,23],[52,0,53,23],[54,22,54,23],[48,0,48,2],[48,3,48,10],[48,11,48,17],[48,18,48,23],[49,0,49,2],[50,0,50,2],[50,3,50,10],[50,11,50,17],[49,3,49,10],[49,11,49,17],[39,21,40,23],[49,18,49,23],[50,18,50,23],[43,0,43,23],[44,0,44,2],[39,14,40,20],[54,13,54,18],[38,15,38,16],[54,0,54,7],[54,9,54,10],[54,11,54,12],[46,0,46,2],[46,3,46,10],[46,11,46,17],[46,18,46,23],[47,0,47,2],[47,3,47,10],[47,11,47,17],[44,3,44,23],[45,0,45,2],[45,3,45,10],[45,11,45,17],[45,18,45,23],[47,18,47,23],[1,0,1,23],[4,11,4,13],[3,15,4,20],[5,18,5,20],[5,0,5,17],[3,5,3,6],[4,5,4,6],[3,7,3,8],[4,7,4,8],[4,9,4,10],[2,0,2,2],[3,0,4,0],[3,1,3,2],[3,3,3,4],[3,9,3,10],[3,11,3,13],[3,21,4,23],[4,1,4,2],[4,3,4,4],[2,3,2,23],[6,14,6,17],[6,5,6,10],[6,11,6,13],[7,11,7,13],[5,21,5,23],[8,11,8,13],[9,11,9,13],[10,11,10,13],[7,0,10,4],[7,23,10,23],[7,18,10,18],[7,19,10,19],[7,20,10,20],[7,21,10,21],[7,22,10,22],[6,0,6,4],[7,5,10,10],[19,0,22,4],[19,5,22,10],[19,14,22,17],[36,17,36,18],[27,23,28,23],[7,14,10,17],[18,11,18,13],[19,11,19,13],[15,0,18,4],[15,5,18,10],[15,14,18,17],[14,11,14,13],[15,11,15,13],[16,11,16,13],[11,0,14,4],[11,5,14,10],[11,14,14,17],[27,19,28,19],[27,22,28,22],[27,18,28,18],[27,21,28,21],[17,11,17,13],[26,11,26,13],[23,0,26,4],[23,5,26,10],[23,14,26,17],[23,11,23,13],[35,0,35,1],[35,2,35,4],[35,5,35,9],[35,10,35,12],[35,13,35,14],[34,0,34,1],[34,2,34,4],[34,5,34,9],[34,10,34,12],[29,11,30,11],[24,11,24,13],[33,17,33,18],[32,5,33,9],[34,17,34,18],[27,0,28,17],[25,11,25,13],[0,0,0,23],[55,0,55,10],[56,0,56,10],[57,0,57,10],[58,0,58,10],[55,12,55,23],[56,12,56,23],[57,12,57,23],[58,12,58,23],[55,11,58,11],[36,0,36,1],[36,2,36,4],[36,5,36,9],[36,10,36,12],[36,13,36,14],[36,22,36,23],[37,22,37,23],[34,22,34,23],[35,22,35,23],[34,19,34,21],[35,19,35,21],[36,19,36,21],[34,15,34,16],[36,15,36,16]]}
["Evaluación del Desempeño para Servidores Vinculados en Nombramiento Provisional"]
["12. Evaluación en Periodo de Prueba"]
["12.1 Tipo de Empleo",null,null,"Nombramiento Provisional.\nSeguimiento cumplimiento de funciones empleados vinculados mediante Nombramiento Provisional\n(No genera derechos de carrera)"]
["12.2 Fecha de Evaluación","Previa a la evaluación\n(Si hubo)",null,"Desde",null,null,null,"Hasta",null,null,null,"No. Días Evaluados",null,null,{"$f":"IF((J4-F4+1)=1,0,J4-F4+1)","v":0},"12.3 Nivel del Empleo",null,null,null,null,null,{"$f":"+'1.2.3 Concertación'!AC5","v":0}]
[null,"Evaluación último Período",null,"Desde",null,null,null,"Hasta",null,null,null,"No. Días Evaluados",null,null,{"$f":"IF((J5-F5+1)=1,0,J5-F5+1)","v":0}]
["12.4 Evaluación de Compromisos Laborales",null,null,null,null,null,null,null,null,null,null,null,null,null,null,null,null,null,"12.5 Evaluación Realizada Previamente\n(Si hubo)",null,null,"12.6 Evaluación Último Periodo"]
["Compromiso Laboral",null,null,null,null,"Evidencia del Cumplimiento del Compromiso",null,null,null,null,null,"Requisitos de Calidad",null,null,"Comentarios - Ruta de Evidencia",null,null,null,"Peso","Logro %","Puntaje","Peso","Logro %","Puntaje"]
[{"$f":"'1.2.3 Concertación'!F9","v":0},null,null,null,null,{"$f":"+'1.2.3 Concertación'!Y9","v":0},null,null,null,null,null,{"$f":"+'1.2.3 Concertación'!N9","v":0},null,null,null,null,null,null,{"$f":"'1.2.3 Concertación'!AF9","v":0},null,{"$f":"(S8*T8)","v":0},{"$f":"'1.2.3 Concertación'!AF9","v":0},null,{"$f":"(V8*W8)","v":0}]
[null,null,null,null,null,null,null,null,null,null,null,{"$f":"+'1.2.3 Concertación'!N10","v":0}]
[null,null,null,null,null,null,null,null,null,null,null,{"$f":"+'1.2.3 Concertación'!N11","v":0}]
[null,null,null,null,null,null,null,null,null,null,null,{"$f":"+'1.2.3 Concertación'!N12","v":0}]
[{"$f":"'1.2.3 Concertación'!F13","v":0},null,null,null,null,{"$f":"+'1.2.3 Concertación'!Y13","v":0},null,null,null,null,null,{"$f":"+'1.2.3 Concertación'!N13","v":0},null,null,null,null,null,null,{"$f":"'1.2.3 Concertación'!AF13","v":0},null,{"$f":"(S12*T12)","v":0},{"$f":"'1.2.3 Concertación'!AF13","v":0},null,{"$f":"(V12*W12)","v":0}]
[null,null,null,null,null,null,null,null,null,null,null,{"$f":"+'1.2.3 Concertación'!N14","v":0}]
[null,null,null,null,null,null,null,null,null,null,null,{"$f":"+'1.2.3 Concertación'!N15","v":0}]
[null,null,null,null,null,null,null,null,null,null,null,{"$f":"+'1.2.3 Concertación'!N16","v":0}]
[{"$f":"'1.2.3 Concertación'!F17","v":0},null,null,null,null,{"$f":"+'1.2.3 Concertación'!Y17","v":0},null,null,null,null,null,{"$f":"+'1.2.3 Concertación'!N17","v":0},null,null,null,null,null,null,{"$f":"'1.2.3 Concertación'!AF17","v":0},null,{"$f":"(S16*T16)","v":0},{"$f":"'1.2.3 Concertación'!AF17","v":0},null,{"$f":"(V16*W16)","v":0}]
[null,null,null,null,null,null,null,null,null,null,null,{"$f":"+'1.2.3 Concertación'!N18","v":0}]
[null,null,null,null,null,null,null,null,null,null,null,{"$f":"+'1.2.3 Concertación'!N19","v":0}]
[null,null,null,null,null,null,null,null,null,null,null,{"$f":"+'1.2.3 Concertación'!N20","v":0}]
[{"$f":"'1.2.3 Concertación'!F21","v":0},null,null,null,null,{"$f":"+'1.2.3 Concertación'!Y21","v":0},null,null,null,null,null,{"$f":"+'1.2.3 Concertación'!N21","v":0},null,null,null,null,null,null,{"$f":"'1.2.3 Concertación'!AF21","v":0},null,{"$f":"(S20*T20)","v":0},{"$f":"'1.2.3 Concertación'!AF21","v":0},null,{"$f":"(V20*W20)","v":0}]
[null,null,null,null,null,null,null,null,null,null,null,{"$f":"+'1.2.3 Concertación'!N22","v":0}]
[null,null,null,null,null,null,null,null,null,null,null,{"$f":"+'1.2.3 Concertación'!N23","v":0}]
[null,null,null,null,null,null,null,null,null,null,null,{"$f":"+'1.2.3 Concertación'!N24","v":0}]
[{"$f":"'1.2.3 Concertación'!F25","v":0},null,null,null,null,{"$f":"+'1.2.3 Concertación'!Y25","v":0},null,null,null,null,null,{"$f":"+'1.2.3 Concertación'!N25","v":0},null,null,null,null,null,null,{"$f":"'1.2.3 Concertación'!AF25","v":0},null,{"$f":"(S24*T24)","v":0},{"$f":"'1.2.3 Concertación'!AF25","v":0},null,{"$f":"(V24*W24)","v":0}]
[null,null,null,null,null,null,null,null,null,null,null,{"$f":"+'1.2.3 Concertación'!N26","v":0}]
[null,null,null,null,null,null,null,null,null,null,null,{"$f":"+'1.2.3 Concertación'!N27","v":0}]
[null,null,null,null,null,null,null,null,null,null,null,{"$f":"+'1.2.3 Concertación'!N28","v":0}]
[" Total Compromisos Comportamentales",null,null,null,null,null,null,null,null,null,null,null,null,null,null,null,null,null,{"$f":"IF(SUM(S7:S27)>100,\"Numero no puede ser mayor que 100\",SUM(S7:S27))","v":0},null,{"$f":"SUM(U8:U27)","v":0},{"$f":"SUM(V8:V27)","v":0},null,{"$f":"SUM(X8:X27)","v":0}]
[]
["% Participación Días Laborados para la Evaluación en periodo de prueba ",null,null,"Previa a la Evaluación (Si hubo)",null,null,null,null,{"$f":"IFERROR(+O4/($O$4+$O$5),0)","v":0},null,null,"Sobre 100%",{"$f":"(U28*I30+X28*I31)","v":0},null,"12.7 Calificación Evaluación (Sobre 80%) ",null,null,null,null,null,null,{"$f":"+M30*80%","v":0}]
[null,null,null,"Evaluación último Período",null,null,null,null,{"$f":"IFERROR(+O5/($O$4+$O$5),0)","v":0}]
["12.8 Compromisos Comportamentales Fijados",null,null,null,null,null,null,null,null,null,"12.9 Evaluación de Compromisos Comportamentales"]
["Nivel Jerárquico",null,"Competencias Comportamentales",null,null,"Conducta Asociada",null,null,null,null,"Evaluación Previa\n(Si hubo)",null,null,null,null,null,null,"Evaluación Último Periodo"]
[null,null,null,null,null,null,null,null,null,null,"Niveles de Frecuencia",null,null,"Descripción",null,"Resultado Cuantitativo",null,"Niveles de Frecuencia",null,"Descripción",null,null,"Resultados Cuantitativos"]
[{"$f":"+'1.2.3 Concertación'!C32","v":0},null,{"$f":"+'1.2.3 Concertación'!H32","v":0},null,null,{"$f":"+'1.2.3 Concertación'!R32","v":""},null,null,null,null,null,null,null,{"$f":"IF('12. Evaluación Periodo Prueba'!K35='lista de selecciones'!I188,'lista de selecciones'!J188,IF('12. Evaluación Periodo Prueba'!K35='lista de selecciones'!I189,'lista de selecciones'!J189,IF('12. Evaluación Periodo Prueba'!K35='lista de selecciones'!I190,'lista de selecciones'!J190,IF('12. Evaluación Periodo Prueba'!K35='lista de selecciones'!I191,'lista de selecciones'!J191,0))))","v":0},null,{"$f":"IF('12. Evaluación Periodo Prueba'!K35='lista de selecciones'!I188,'lista de selecciones'!K188,IF('12. Evaluación Periodo Prueba'!K35='lista de selecciones'!I189,'lista de selecciones'!K189,IF('12. Evaluación Periodo Prueba'!K35='lista de selecciones'!I190,'lista de selecciones'!K190,IF('12. Evaluación Periodo Prueba'!K35='lista de selecciones'!I191,'lista de selecciones'!K191,0))))","v":0},null,null,null,{"$f":"IF(R35='lista de selecciones'!I188,'lista de selecciones'!J188,IF(R35='lista de selecciones'!I189,'lista de selecciones'!J189,IF(R35='lista de selecciones'!I190,'lista de selecciones'!J190,IF(R35='lista de selecciones'!I191,'lista de selecciones'!J191,0))))","v":0},null,null,{"$f":"IF(R35='lista de selecciones'!I188,'lista de selecciones'!K188,IF(R35='lista de selecciones'!I189,'lista de selecciones'!K189,IF(R35='lista de selecciones'!I190,'lista de selecciones'!K190,IF(R35='lista de selecciones'!I191,'lista de selecciones'!K191,0))))","v":0}]
[{"$f":"A35","v":0},null,{"$f":"+'1.2.3 Concertación'!H33","v":0},null,null,{"$f":"+'1.2.3 Concertación'!R33","v":""},null,null,null,null,null,null,null,{"$f":"IF(K36='lista de selecciones'!I188,'lista de selecciones'!J188,IF(K36='lista de selecciones'!I189,'lista de selecciones'!J189,IF(K36='lista de selecciones'!I190,'lista de selecciones'!J190,IF(K36='lista de selecciones'!I191,'lista de selecciones'!J191,0))))","v":0},null,{"$f":"IF('12. Evaluación Periodo Prueba'!K36='lista de selecciones'!I188,'lista de selecciones'!K188,IF('12. Evaluación Periodo Prueba'!K36='lista de selecciones'!I189,'lista de selecciones'!K189,IF('12. Evaluación Periodo Prueba'!K36='lista de selecciones'!I190,'lista de selecciones'!K190,IF('12. Evaluación Periodo Prueba'!K36='lista de selecciones'!I191,'lista de selecciones'!K191,0))))","v":0},null,null,null,{"$f":"IF(R36='lista de selecciones'!I188,'lista de selecciones'!J188,IF(R36='lista de selecciones'!I189,'lista de selecciones'!J189,IF(R36='lista de selecciones'!I190,'lista de selecciones'!J190,IF(R36='lista de selecciones'!I191,'lista de selecciones'!J191,0))))","v":0},null,null,{"$f":"IF(R36='lista de selecciones'!I188,'lista de selecciones'!K188,IF(R36='lista de selecciones'!I189,'lista de selecciones'!K189,IF(R36='lista de selecciones'!I190,'lista de selecciones'!K190,IF(R36='lista de selecciones'!I191,'lista de selecciones'!K191,0))))","v":0}]
[{"$f":"A35","v":0},null,{"$f":"+'1.2.3 Concertación'!H34","v":0},null,null,{"$f":"+'1.2.3 Concertación'!R34","v":""},null,null,null,null,null,null,null,{"$f":"IF('12. Evaluación Periodo Prueba'!K37='lista de selecciones'!I188,'lista de selecciones'!J188,IF('12. Evaluación Periodo Prueba'!K37='lista de selecciones'!I189,'lista de selecciones'!J189,IF('12. Evaluación Periodo Prueba'!K37='lista de selecciones'!I190,'lista de selecciones'!J190,IF('12. Evaluación Periodo Prueba'!K37='lista de selecciones'!I191,'lista de selecciones'!J191,0))))","v":0},null,{"$f":"IF('12. Evaluación Periodo Prueba'!K37='lista de selecciones'!I188,'lista de selecciones'!K188,IF('12. Evaluación Periodo Prueba'!K37='lista de selecciones'!I189,'lista de selecciones'!K189,IF('12. Evaluación Periodo Prueba'!K37='lista de selecciones'!I190,'lista de selecciones'!K190,IF('12. Evaluación Periodo Prueba'!K37='lista de selecciones'!I191,'lista de selecciones'!K191,0))))","v":0},null,null,null,{"$f":"IF(R37='lista de selecciones'!I188,'lista de selecciones'!J188,IF(R37='lista de selecciones'!I189,'lista de selecciones'!J189,IF(R37='lista de selecciones'!I190,'lista de selecciones'!J190,IF(R37='lista de selecciones'!I191,'lista de selecciones'!J191,0))))","v":0},null,null,{"$f":"IF(R37='lista de selecciones'!I188,'lista de selecciones'!K188,IF(R37='lista de selecciones'!I189,'lista de selecciones'!K189,IF(R37='lista de selecciones'!I190,'lista de selecciones'!K190,IF(R37='lista de selecciones'!I191,'lista de selecciones'!K191,0))))","v":0}]
[{"$f":"A36","v":0},null,{"$f":"+'1.2.3 Concertación'!H35","v":0},null,null,{"$f":"+'1.2.3 Concertación'!R35","v":""},null,null,null,null,null,null,null,{"$f":"IF('12. Evaluación Periodo Prueba'!K38='lista de selecciones'!I188,'lista de selecciones'!J188,IF('12. Evaluación Periodo Prueba'!K38='lista de selecciones'!I189,'lista de selecciones'!J189,IF('12. Evaluación Periodo Prueba'!K38='lista de selecciones'!I190,'lista de selecciones'!J190,IF('12. Evaluación Periodo Prueba'!K38='lista de selecciones'!I191,'lista de selecciones'!J191,0))))","v":0},null,{"$f":"IF('12. Evaluación Periodo Prueba'!K38='lista de selecciones'!I188,'lista de selecciones'!K188,IF('12. Evaluación Periodo Prueba'!K38='lista de selecciones'!I189,'lista de selecciones'!K189,IF('12. Evaluación Periodo Prueba'!K38='lista de selecciones'!I190,'lista de selecciones'!K190,IF('12. Evaluación Periodo Prueba'!K38='lista de selecciones'!I191,'lista de selecciones'!K191,0))))","v":0},null,null,null,{"$f":"IF(R38='lista de selecciones'!I188,'lista de selecciones'!J188,IF(R38='lista de selecciones'!I189,'lista de selecciones'!J189,IF(R38='lista de selecciones'!I190,'lista de selecciones'!J190,IF(R38='lista de selecciones'!I191,'lista de selecciones'!J191,0))))","v":0},null,null,{"$f":"IF(R38='lista de selecciones'!I188,'lista de selecciones'!K188,IF(R38='lista de selecciones'!I189,'lista de selecciones'!K189,IF(R38='lista de selecciones'!I190,'lista de selecciones'!K190,IF(R38='lista de selecciones'!I191,'lista de selecciones'!K191,0))))","v":0}]
[null,null,null,null,null,null,null,null,null,null,"Total Compromisos Comportamentales Previa a la Evaluación Extraordinaria (Si Hubo) ",null,null,null,null,{"$f":"SUM(P35:Q38)/4","v":0},null,"Total Compromisos Comportamentales Último Periodo ",null,null,null,null,{"$f":"SUM(W35:X38)/4","v":0}]
["% Participación Días Laborados para la Evaluación Extraordinaria",null,null,"Previa a la Evaluación (Si hubo)",null,null,null,null,{"$f":"IFERROR(+O4/(O4+O5),0)","v":0},null,null,"Sobre 100%",{"$f":"(P39*I40+W39*I41)","v":0},null,"12.10 Calificación Total Competencias Comportamentales (Sobre 20%)",null,null,null,null,null,null,{"$f":"+(M40*20%)*10","v":0}]
[null,null,null,"Evaluación último Período",null,null,null,null,{"$f":"IFERROR(+O5/($O$4+$O$5),0)","v":0}]
["12.11 Resultados Consolidados Evaluación en Periodo de Prueba",null,null,null,null,"Resultados ",null,null,{"$f":"SUM(V30,V40)","v":0},null,null,"12.12 Nivel de Calificación",null,null,null,null,null,null,{"$f":"IF(I42<=69,'lista de selecciones'!A162,IF(I42<90,'lista de selecciones'!A161,IF(I42>=90,'lista de selecciones'!A160)))","v":"No satisfactorio"}]
[]
["12.13 Notificación"]
["Lugar y Fecha de Diligenciamiento"]
[null,null,null,"Empleado a Evaluar",null,null,null,null,null,null,null,"Jefe Inmediato (Primer Evaluador)",null,null,null,null,null,null,"Segundo Evaluador"]
["Nombre Completo",null,null,{"$f":"+'1.2.3 Concertación'!J39","v":0},null,null,null,null,null,null,null,{"$f":"+'1.2.3 Concertación'!P39","v":0},null,null,null,null,null,null,{"$f":"+'1.2.3 Concertación'!Z39","v":0}]
["Número de Documento Identidad",null,null,{"$f":"+'1.2.3 Concertación'!J40","v":0},null,null,null,null,null,null,null,{"$f":"+'1.2.3 Concertación'!P40","v":0},null,null,null,null,null,null,{"$f":"+'1.2.3 Concertación'!Z40","v":0}]
["Cargo (Denominación-Código-Grado)",null,null,{"$f":"+'1.2.3 Concertación'!J41","v":0},null,null,null,null,null,null,null,{"$f":"+'1.2.3 Concertación'!P41","v":0},null,null,null,null,null,null,{"$f":"+'1.2.3 Concertación'!Z41","v":0}]
["Dependencia",null,null,{"$f":"+'1.2.3 Concertación'!J42","v":0},null,null,null,null,null,null,null,{"$f":"+'1.2.3 Concertación'!P42","v":0},null,null,null,null,null,null,{"$f":"+'1.2.3 Concertación'!Z42","v":0}]
["Firmas"]
["12.14 Notificación"]
["Contra esta calificación procede el recurso de reposición y en subsidio el de apelación interpuestos ante el evaluador dentro de los cinco (5) días hábiles siguientes a la fecha de notificación. Los recursos deben presentarse por escrito, personalmente o mediante apoderado y exponiendo los motivos de inconformidad."]
[]
["Interpuso Recurso de Reposición",null,null,null,null,null,null,null,null,"Fecha",null,null,null,"Interpuso Recurso de Apelación",null,null,null,null,null,null,"Fecha"]
[]
["Nombre del Evaluado",null,null,null,null,null,null,null,null,null,null,null,"Firma del Evaluado"]
[]
["Nombre del Notificador",null,null,null,null,null,null,null,null,null,null,null,"Firma del Notificador"]
["12.15 Observaciones"]